Workbook

Sheet 1-RA Solution Framework
C4: NCHRP Project 14-21:
C5: Resource Allocation Framework to Meet Asset Preservation Needs
C7: Resource Allocation Solution Framework
C9: Developed By
C15: July 2012
B18: Model Version Log
B20: Version | C20: Date Created/Changed | E20: Changed by | F20: Description/Notation
B21: 1 | C21: July 18,2012 | E21: Booz Allen | F21: Case Study Demonstration of Resource Allocation Framework
B22: 1.1 | C22: July 18,2012 | E22: Booz Allen | F22: Scenario 3 Setup as defined in the Final Report

Sheet 2-Overview
B2: Resource Allocation Solution Framework - Overview
B4: 1 | C4: The Resource Allocation Solution Framework can be used to allocate the available Preservation and Maintenance funds across different user defined AAGs
B5: 2 | C5: Up to 15 Districts and 15 AAGs can be set by the user
B6: 3 | C6: For Region-wide Allocation, the user should treat the entire region as a "Single" District and provide the data inputs
B7: 4 | C7: For full application of the Resource Allocation Solution Framework, the following data elements are needed for each of the AAGs specified: (1) AAG Inventory Data (2) Condition Data (3) Deterioration Rates (4) Unit Costs (5) Historical Expenditures. Linear Optimization Program is used to allocate the resources to different AAGs to minimize the deviation between the expected time to achieve rating and the desired time. The user can set policy objectives by setting relative ranks and deviation limits for each asset type orthe desired time to target rating
B8: 5 | C8: The User can identify which of the five data elements identified above are available. If either the Inventory, Condition Data, Deterioration Rates or Unit Costs are not input for a particular AAG, the allocation for the particular AAG is determined by prorating historical allocations and cost escalation factors
B9: 6 | C9: The user can chose to allocate the resources for Non Bridge/Pavement AAGs as a percentage of fund allocated for the Pavement AAGs
B10: 7 | C10: The Resource Allocation Solution Framework should be Run by clicking the "Run Model" button in the Run Model Worksheet. The Final Result can be exported to a new workbook by clicking the "Export Results" button

Sheet 3-Basic Inputs
B1: Resource Allocation Solution Framework - Basic User-Determined Inputs
B3: Table 3-1: AAGs, Units of Measure, and Data/Estimate Availability | I3: Table 3-2: Define District Names (if applicable)
D4: Are Data or Reasonable Estimates Available for the Solution Framework? (See note below table) | I4: (Single District can be used for Statewide Allocation)
B5: Asset-Activity Group (AAG) | C5: Units of Measure | D5: Inventory | E5: Condition Rating | F5: Deterioration Rate | G5: Unit Cost | I5: Description | J5: District Name
B6: Bridges | C6: Bridge Decks | D6: Yes | E6: Yes | F6: Yes | G6: Yes | H6: - | I6: District 1 | J6: -
B7: Pavements | C7: Lane Miles | D7: Yes | E7: Yes | F7: Yes | G7: Yes | H7: Yes | I7: District 2 | J7: -
B8: Signs | C8: # of Signs | D8: No | E8: Yes | F8: Yes | G8: Yes | H8: No | I8: District 3 | J8: -
B9: Highway Lighting | C9: # of Lights | D9: Yes | E9: Yes | F9: Yes | G9: Yes | I9: District 4 | J9: -
B10: Guardrail | C10: Miles of Guardrail | D10: Yes | E10: No | F10: Yes | G10: Yes | I10: District 5 | J10: -
B11: Weigh Stations | C11: # of Stations | D11: Yes | E11: Yes | F11: Yes | G11: Yes | I11: District 6 | J11: -
B12: - | C12: - | D12: - | E12: - | F12: - | G12: - | I12: District 7 | J12: -
B13: - | C13: - | D13: - | E13: - | F13: - | G13: - | I13: District 8 | J13: -
B14: - | C14: - | D14: - | E14: - | F14: - | G14: - | I14: District 9 | J14: -
B15: - | C15: - | D15: - | E15: - | F15: - | G15: - | I15: District 10 | J15: -
B16: - | C16: - | D16: - | E16: - | F16: - | G16: - | I16: District 11 | J16: -
B17: - | C17: - | D17: - | E17: - | F17: - | G17: - | I17: District 12 | J17: -
B18: - | C18: - | D18: - | E18: - | F18: - | G18: - | I18: District 13 | J18: -
B19: - | C19: - | D19: - | E19: - | F19: - | G19: - | I19: District 14 | J19: -
B20: - | C20: - | D20: - | E20: - | F20: - | G20: - | I20: District 15 | J20: -
B21: NOTE: If any of the four data elements is not available for an AAG, the preservation needs for that particular AAG will be estimated based on (a) historical expenditures and escalation, or (b) as a user-set percentage of the preservation needs of another AAG, such as pavements

Sheet 4-Strategy-Inputs
A1: Resource Allocation Solution Framework - Strategic Inputs | G1: INPUTS (Yellow cells in Yellow Tabbed Worksheets) | L1: COMPUTED RESULTS (Blue cells on any Worksheet)
A3: Funding and Agency Goals
B4: Table 4-1: Preservation and Maintenance Funds Availability Data
B5: Total Preservation funds available this year | E5: 281000000 | F5: Yes
B6: Adjustments for directed programs | E6: 66000000 | F6: No
B7: Preservation funds to be allocated | E7: =E5-E6 -> 215000000
B9: Table 4-2: Allocation Methods and Ranking
B10: Use Percent Allocation for Some AAGs | E10: Yes | F10: Region-wide
B11: Use Relative AAG Ranks | E11: Yes
B14: Table 4-3: Strategic Inputs for Allocating Preservation Resources | M14: Table 4-4: Asset Activity Group Rank Deviation Limit
B15: Asset-Activity Group (AAG) | C15: Units of Measure | D15: Ideal Rating | E15: Target Rating | F15: Time (Years) for Target Rating | G15: Relative AAG Rank | H15: Needs based Allocation | I15: % Allocation Basis | J15: Allocation Percentage | K15: Escalation in Expenditure** | N15: Relative AAG Rank | O15: Deviation Limit*
B16: ='3-Basic Inputs'!B6 -> Bridges | C16: ='3-Basic Inputs'!C6 -> Bridge Decks | D16: 1 | E16: 0.8 | F16: 2 | G16: 2 | H16: Yes | I16: No | J16: 0.1 | K16: 0.05 | N16: 1 | O16: 1
B17: ='3-Basic Inputs'!B7 -> Pavements | C17: ='3-Basic Inputs'!C7 -> Lane Miles | D17: 1 | E17: 0.8 | F17: 2 | G17: 1 | H17: Yes | I17: Yes | J17: 0.1 | K17: 0.05 | N17: 2 | O17: 1.1
B18: ='3-Basic Inputs'!B8 -> Signs | C18: ='3-Basic Inputs'!C8 -> # of Signs | D18: 1 | E18: 1 | F18: 8 | G18: 4 | H18: No | I18: No | J18: 0.025 | K18: 0.05 | N18: 3 | O18: 1.2
B19: ='3-Basic Inputs'!B9 -> Highway Lighting | C19: ='3-Basic Inputs'!C9 -> # of Lights | D19: 1 | E19: 0.85 | F19: 4 | G19: 6 | H19: Yes | I19: No | J19: 0.025 | K19: 0.05 | N19: 4 | O19: 1.3
B20: ='3-Basic Inputs'!B10 -> Guardrail | C20: ='3-Basic Inputs'!C10 -> Miles of Guardrail | D20: 1 | E20: 0.8 | F20: 4 | G20: 2 | H20: No | I20: No | J20: 0.025 | K20: 0.05 | N20: 5 | O20: 1.4
B21: ='3-Basic Inputs'!B11 -> Weigh Stations | C21: ='3-Basic Inputs'!C11 -> # of Stations | D21: 1 | E21: 0.8 | F21: 4 | G21: 5 | H21: Yes | I21: No | J21: 0.025 | K21: 0.05 | N21: 6 | O21: 1.5
B22: ='3-Basic Inputs'!B12 -> - | C22: ='3-Basic Inputs'!C12 -> - | N22: 7
B23: ='3-Basic Inputs'!B13 -> - | C23: ='3-Basic Inputs'!C13 -> - | N23: 8
B24: ='3-Basic Inputs'!B14 -> - | C24: ='3-Basic Inputs'!C14 -> - | N24: 9
B25: ='3-Basic Inputs'!B15 -> - | C25: ='3-Basic Inputs'!C15 -> - | N25: 10
B26: ='3-Basic Inputs'!B16 -> - | C26: ='3-Basic Inputs'!C16 -> - | N26: 11
B27: ='3-Basic Inputs'!B17 -> - | C27: ='3-Basic Inputs'!C17 -> - | N27: 12
B28: ='3-Basic Inputs'!B18 -> - | C28: ='3-Basic Inputs'!C18 -> - | N28: 13
B29: ='3-Basic Inputs'!B19 -> - | C29: ='3-Basic Inputs'!C19 -> - | N29: 14
B30: ='3-Basic Inputs'!B20 -> - | C30: ='3-Basic Inputs'!C20 -> - | N30: 15
B31: * Used only when Percent Based Allocation Flag is set as "Yes" | N31: * Allowed Deviation from Pro-rata allocation adjustment
B32: ** Used when Inventory, Condition, Deterioration Rate or Unit Cost data are not available

Sheet 5-Data-Inputs
B1: Resource Allocation Solution Framework
B2: ENSURE that Yes/No Flags have been properly set in the Basic Inputs Table ("Are Data or Reasonable Estimates Available…?")
B4: Table 5-1: Asset-Activity Group (AAG) Inventory Data
E5: Regions
B6: Asset-Activity Group (AAG) | C6: Units of Measure | D6: Total | E6: ='3-Basic Inputs'!$I$6 -> District 1 | F6: ='3-Basic Inputs'!$I$7 -> District 2 | G6: ='3-Basic Inputs'!$I$8 -> District 3 | H6: ='3-Basic Inputs'!$I$9 -> District 4 | I6: ='3-Basic Inputs'!$I$10 -> District 5 | J6: ='3-Basic Inputs'!$I$11 -> District 6 | K6: ='3-Basic Inputs'!$I$12 -> District 7 | L6: ='3-Basic Inputs'!$I$13 -> District 8 | M6: ='3-Basic Inputs'!$I$14 -> District 9 | N6: ='3-Basic Inputs'!$I$15 -> District 10 | O6: ='3-Basic Inputs'!$I$16 -> District 11 | P6: ='3-Basic Inputs'!$I$17 -> District 12 | Q6: ='3-Basic Inputs'!$I$18 -> District 13 | R6: ='3-Basic Inputs'!$I$19 -> District 14 | S6: ='3-Basic Inputs'!$I$20 -> District 15
B7: ='3-Basic Inputs'!B6 -> Bridges | C7: ='3-Basic Inputs'!C6 -> Bridge Decks | D7: =IF(SUM(E7:S7)>0,SUM(E7:S7)," ") -> 3500 | E7: 1475 | F7: 885 | G7: 1140
B8: ='3-Basic Inputs'!B7 -> Pavements | C8: ='3-Basic Inputs'!C7 -> Lane Miles | D8: 20750 | E8: 8190 | F8: 5850 | G8: 6710
B9: ='3-Basic Inputs'!B8 -> Signs | C9: ='3-Basic Inputs'!C8 -> # of Signs | D9: 38100 | E9: 13900 | F9: 11900 | G9: 12300
B10: ='3-Basic Inputs'!B9 -> Highway Lighting | C10: ='3-Basic Inputs'!C9 -> # of Lights | D10: 273050 | E10: 176500 | F10: 56750 | G10: 39800
B11: ='3-Basic Inputs'!B10 -> Guardrail | C11: ='3-Basic Inputs'!C10 -> Miles of Guardrail | D11: 36580 | E11: 16380 | F11: 8590 | G11: 11610
B12: ='3-Basic Inputs'!B11 -> Weigh Stations | C12: ='3-Basic Inputs'!C11 -> # of Stations | D12: 113 | E12: 48 | F12: 31 | G12: 34
B13: ='3-Basic Inputs'!B12 -> - | C13: ='3-Basic Inputs'!C12 -> -
B14: ='3-Basic Inputs'!B13 -> - | C14: ='3-Basic Inputs'!C13 -> -
B15: ='3-Basic Inputs'!B14 -> - | C15: ='3-Basic Inputs'!C14 -> -
B16: ='3-Basic Inputs'!B15 -> - | C16: ='3-Basic Inputs'!C15 -> -
B17: ='3-Basic Inputs'!B16 -> - | C17: ='3-Basic Inputs'!C16 -> -
B18: ='3-Basic Inputs'!B17 -> - | C18: ='3-Basic Inputs'!C17 -> -
B19: ='3-Basic Inputs'!B18 -> - | C19: ='3-Basic Inputs'!C18 -> -
B20: ='3-Basic Inputs'!B19 -> - | C20: ='3-Basic Inputs'!C19 -> -
B21: ='3-Basic Inputs'!B20 -> - | C21: ='3-Basic Inputs'!C20 -> -
B22: TOTAL | E22: =IF(SUM(E7:E21)>0, SUM(E7:E21), " ") -> 216493 | F22: =IF(SUM(F7:F21)>0, SUM(F7:F21), " ") -> 84006 | G22: =IF(SUM(G7:G21)>0, SUM(G7:G21), " ") -> 71594 | H22: =IF(SUM(H7:H21)>0, SUM(H7:H21), " ") ->  | I22: =IF(SUM(I7:I21)>0, SUM(I7:I21), " ") ->  | J22: =IF(SUM(J7:J21)>0, SUM(J7:J21), " ") ->  | K22: =IF(SUM(K7:K21)>0, SUM(K7:K21), " ") ->  | L22: =IF(SUM(L7:L21)>0, SUM(L7:L21), " ") ->  | M22: =IF(SUM(M7:M21)>0, SUM(M7:M21), " ") ->  | N22: =IF(SUM(N7:N21)>0, SUM(N7:N21), " ") ->  | O22: =IF(SUM(O7:O21)>0, SUM(O7:O21), " ") ->  | P22: =IF(SUM(P7:P21)>0, SUM(P7:P21), " ") ->  | Q22: =IF(SUM(Q7:Q21)>0, SUM(Q7:Q21), " ") ->  | R22: =IF(SUM(R7:R21)>0, SUM(R7:R21), " ") ->  | S22: =IF(SUM(S7:S21)>0, SUM(S7:S21), " ") -> 
B25: Table 5-2: Asset-Activity Group (AAG) Current Condition Ratings
E26: Regions
B27: Asset-Activity Group (AAG) | C27: Units of Measure | D27: Average | E27: ='3-Basic Inputs'!$I$6 -> District 1 | F27: ='3-Basic Inputs'!$I$7 -> District 2 | G27: ='3-Basic Inputs'!$I$8 -> District 3 | H27: ='3-Basic Inputs'!$I$9 -> District 4 | I27: ='3-Basic Inputs'!$I$10 -> District 5 | J27: ='3-Basic Inputs'!$I$11 -> District 6 | K27: ='3-Basic Inputs'!$I$12 -> District 7 | L27: ='3-Basic Inputs'!$I$13 -> District 8 | M27: ='3-Basic Inputs'!$I$14 -> District 9 | N27: ='3-Basic Inputs'!$I$15 -> District 10 | O27: ='3-Basic Inputs'!$I$16 -> District 11 | P27: ='3-Basic Inputs'!$I$17 -> District 12 | Q27: ='3-Basic Inputs'!$I$18 -> District 13 | R27: ='3-Basic Inputs'!$I$19 -> District 14 | S27: ='3-Basic Inputs'!$I$20 -> District 15
B28: ='3-Basic Inputs'!B6 -> Bridges | C28: ='3-Basic Inputs'!C6 -> Bridge Decks | D28: =IF(ISNUMBER(SUMPRODUCT(E7:S7,E28:S28)/SUM(E7:S7)),SUMPRODUCT(E7:S7,E28:S28)/SUM(E7:S7),"-") -> 0.7720771429 | E28: 0.772 | F28: 0.762 | G28: 0.78
B29: ='3-Basic Inputs'!B7 -> Pavements | C29: ='3-Basic Inputs'!C7 -> Lane Miles | D29: 0.7585373494 | E29: 0.761 | F29: 0.758 | G29: 0.756
B30: ='3-Basic Inputs'!B8 -> Signs | C30: ='3-Basic Inputs'!C8 -> # of Signs | D30: 0.9257585302 | E30: 0.921 | F30: 0.929 | G30: 0.928
B31: ='3-Basic Inputs'!B9 -> Highway Lighting | C31: ='3-Basic Inputs'!C9 -> # of Lights | D31: 0.8275032045 | E31: 0.83 | F31: 0.825 | G31: 0.82
B32: ='3-Basic Inputs'!B10 -> Guardrail | C32: ='3-Basic Inputs'!C10 -> Miles of Guardrail | D32: 0.757109076 | E32: 0.75 | F32: 0.76 | G32: 0.765
B33: ='3-Basic Inputs'!B11 -> Weigh Stations | C33: ='3-Basic Inputs'!C11 -> # of Stations | D33: 0.7773893805 | E33: 0.78 | F33: 0.765 | G33: 0.785
B34: ='3-Basic Inputs'!B12 -> - | C34: ='3-Basic Inputs'!C12 -> - | D34: -
B35: ='3-Basic Inputs'!B13 -> - | C35: ='3-Basic Inputs'!C13 -> - | D35: -
B36: ='3-Basic Inputs'!B14 -> - | C36: ='3-Basic Inputs'!C14 -> - | D36: -
B37: ='3-Basic Inputs'!B15 -> - | C37: ='3-Basic Inputs'!C15 -> - | D37: -
B38: ='3-Basic Inputs'!B16 -> - | C38: ='3-Basic Inputs'!C16 -> - | D38: -
B39: ='3-Basic Inputs'!B17 -> - | C39: ='3-Basic Inputs'!C17 -> - | D39: -
B40: ='3-Basic Inputs'!B18 -> - | C40: ='3-Basic Inputs'!C18 -> - | D40: -
B41: ='3-Basic Inputs'!B19 -> - | C41: ='3-Basic Inputs'!C19 -> - | D41: -
B42: ='3-Basic Inputs'!B20 -> - | C42: ='3-Basic Inputs'!C20 -> - | D42: -
B43: ='3-Basic Inputs'!#REF! ->  | C43: ='3-Basic Inputs'!#REF! -> 
B44: ='3-Basic Inputs'!J3 -> 0 | C44: ='3-Basic Inputs'!K3 -> 0
B45: ='3-Basic Inputs'!#REF! ->  | C45: ='3-Basic Inputs'!#REF! -> 
B46: ='3-Basic Inputs'!#REF! ->  | C46: ='3-Basic Inputs'!I5 -> Description
B47: ='3-Basic Inputs'!#REF! ->  | C47: ='3-Basic Inputs'!I6 -> District 1
B48: ='3-Basic Inputs'!#REF! ->  | C48: ='3-Basic Inputs'!I7 -> District 2
A49: Allocation vs. Deterioration-- Excess or (Shortfall) | B49: ='3-Basic Inputs'!#REF! ->  | C49: ='3-Basic Inputs'!I8 -> District 3
A50: ='4-Strategy-Inputs'!#REF! ->  | B50: ='3-Basic Inputs'!#REF! ->  | C50: ='3-Basic Inputs'!I9 -> District 4
A51: ='4-Strategy-Inputs'!#REF! ->  | B51: ='3-Basic Inputs'!#REF! ->  | C51: ='3-Basic Inputs'!I10 -> District 5
A52: ='4-Strategy-Inputs'!#REF! ->  | B52: ='3-Basic Inputs'!#REF! ->  | C52: ='3-Basic Inputs'!I11 -> District 6
A53: ='4-Strategy-Inputs'!#REF! ->  | B53: ='3-Basic Inputs'!#REF! ->  | C53: ='3-Basic Inputs'!I12 -> District 7
A54: ='4-Strategy-Inputs'!#REF! ->  | B54: ='3-Basic Inputs'!#REF! ->  | C54: ='3-Basic Inputs'!I13 -> District 8
A55: ='4-Strategy-Inputs'!#REF! ->  | B55: ='3-Basic Inputs'!#REF! ->  | C55: ='3-Basic Inputs'!I14 -> District 9
B56: ='3-Basic Inputs'!#REF! ->  | C56: ='3-Basic Inputs'!I15 -> District 10
B57: ='3-Basic Inputs'!#REF! ->  | C57: ='3-Basic Inputs'!I16 -> District 11
B58: ='3-Basic Inputs'!#REF! ->  | C58: ='3-Basic Inputs'!I17 -> District 12
B59: ='3-Basic Inputs'!#REF! ->  | C59: ='3-Basic Inputs'!I18 -> District 13
A60: =SUM(A50:A55) ->  | B60: ='3-Basic Inputs'!#REF! ->  | C60: ='3-Basic Inputs'!I19 -> District 14
B61: ='3-Basic Inputs'!#REF! ->  | C61: ='3-Basic Inputs'!I20 -> District 15
B64: Table 5-3: Asset-Activity Group (AAG) Unit Costs
E65: Regions
B66: Asset-Activity Group (AAG) | C66: Description | D66: Average | E66: ='3-Basic Inputs'!$I$6 -> District 1 | F66: ='3-Basic Inputs'!$I$7 -> District 2 | G66: ='3-Basic Inputs'!$I$8 -> District 3 | H66: ='3-Basic Inputs'!$I$9 -> District 4 | I66: ='3-Basic Inputs'!$I$10 -> District 5 | J66: ='3-Basic Inputs'!$I$11 -> District 6 | K66: ='3-Basic Inputs'!$I$12 -> District 7 | L66: ='3-Basic Inputs'!$I$13 -> District 8 | M66: ='3-Basic Inputs'!$I$14 -> District 9 | N66: ='3-Basic Inputs'!$I$15 -> District 10 | O66: ='3-Basic Inputs'!$I$16 -> District 11 | P66: ='3-Basic Inputs'!$I$17 -> District 12 | Q66: ='3-Basic Inputs'!$I$18 -> District 13 | R66: ='3-Basic Inputs'!$I$19 -> District 14 | S66: ='3-Basic Inputs'!$I$20 -> District 15
B67: ='3-Basic Inputs'!B6 -> Bridges | C67: Estimated average cost to improve typical bridge structure to meet Ideal standard | D67: =IF(ISNUMBER(AVERAGE(E67:G67)),AVERAGE(E67:G67),"-") -> 1100000 | E67: 1100000 | F67: 1100000 | G67: 1100000
B68: ='3-Basic Inputs'!B7 -> Pavements | C68: Estimated average cost to improve typical lane mile to meet Ideal standard | D68: =IF(ISNUMBER(AVERAGE(E68:G68)),AVERAGE(E68:G68),"-") -> 120000 | E68: 120000 | F68: 120000 | G68: 120000
B69: ='3-Basic Inputs'!B8 -> Signs | C69: Estimated average cost to improve typical sign to meet Ideal standard | D69: 2000 | E69: 2000 | F69: 2000 | G69: 2000
B70: ='3-Basic Inputs'!B9 -> Highway Lighting | C70: Estimated average cost to improve Highway Lighting to meet Ideal standard | D70: 250 | E70: 250 | F70: 250 | G70: 250
B71: ='3-Basic Inputs'!B10 -> Guardrail | C71: Estimated average cost to improve typical guardrail to meet Ideal standard | D71: 1000 | E71: 1000 | F71: 1000 | G71: 1000
B72: ='3-Basic Inputs'!B11 -> Weigh Stations | C72: Estimated average cost to improve typical weigh station to meet Ideal standard | D72: 50000 | E72: 50000 | F72: 50000 | G72: 50000
B73: ='3-Basic Inputs'!B12 -> - | D73: -
B74: ='3-Basic Inputs'!B13 -> - | D74: -
B75: ='3-Basic Inputs'!B14 -> - | D75: -
B76: ='3-Basic Inputs'!B15 -> - | D76: -
B77: ='3-Basic Inputs'!B16 -> - | D77: -
B78: ='3-Basic Inputs'!B17 -> - | D78: -
B79: ='3-Basic Inputs'!B18 -> - | D79: -
B80: ='3-Basic Inputs'!B19 -> - | D80: -
B81: ='3-Basic Inputs'!B20 -> - | D81: -
B84: Table 5-4: Asset-Activity Group (AAG) Deterioration Rates
E85: Regions
B86: Asset-Activity Group (AAG) | C86: Units of Measure | D86: Average | E86: ='3-Basic Inputs'!$I$6 -> District 1 | F86: ='3-Basic Inputs'!$I$7 -> District 2 | G86: ='3-Basic Inputs'!$I$8 -> District 3 | H86: ='3-Basic Inputs'!$I$9 -> District 4 | I86: ='3-Basic Inputs'!$I$10 -> District 5 | J86: ='3-Basic Inputs'!$I$11 -> District 6 | K86: ='3-Basic Inputs'!$I$12 -> District 7 | L86: ='3-Basic Inputs'!$I$13 -> District 8 | M86: ='3-Basic Inputs'!$I$14 -> District 9 | N86: ='3-Basic Inputs'!$I$15 -> District 10 | O86: ='3-Basic Inputs'!$I$16 -> District 11 | P86: ='3-Basic Inputs'!$I$17 -> District 12 | Q86: ='3-Basic Inputs'!$I$18 -> District 13 | R86: ='3-Basic Inputs'!$I$19 -> District 14 | S86: ='3-Basic Inputs'!$I$20 -> District 15
B87: ='3-Basic Inputs'!B6 -> Bridges | C87: ='3-Basic Inputs'!C6 -> Bridge Decks | D87: =IF(ISNUMBER(AVERAGE(E87:S87)),AVERAGE(E87:S87),"-") -> 0.015 | E87: 0.015 | F87: 0.015 | G87: 0.015
B88: ='3-Basic Inputs'!B7 -> Pavements | C88: ='3-Basic Inputs'!C7 -> Lane Miles | D88: =IF(ISNUMBER(AVERAGE(E88:S88)),AVERAGE(E88:S88),"-") -> 0.05 | E88: 0.05 | F88: 0.05 | G88: 0.05
B89: ='3-Basic Inputs'!B8 -> Signs | C89: ='3-Basic Inputs'!C8 -> # of Signs | D89: 0.1 | E89: 0.1 | F89: 0.1 | G89: 0.1
B90: ='3-Basic Inputs'!B9 -> Highway Lighting | C90: ='3-Basic Inputs'!C9 -> # of Lights | D90: 0.04 | E90: 0.04 | F90: 0.04 | G90: 0.04
B91: ='3-Basic Inputs'!B10 -> Guardrail | C91: ='3-Basic Inputs'!C10 -> Miles of Guardrail | D91: 0.03 | E91: 0.03 | F91: 0.03 | G91: 0.03
B92: ='3-Basic Inputs'!B11 -> Weigh Stations | C92: ='3-Basic Inputs'!C11 -> # of Stations | D92: 0.02 | E92: 0.02 | F92: 0.02 | G92: 0.02
B93: ='3-Basic Inputs'!B12 -> - | C93: ='3-Basic Inputs'!C12 -> - | D93: -
B94: ='3-Basic Inputs'!B13 -> - | C94: ='3-Basic Inputs'!C13 -> - | D94: -
B95: ='3-Basic Inputs'!B14 -> - | C95: ='3-Basic Inputs'!C14 -> - | D95: -
B96: ='3-Basic Inputs'!B15 -> - | C96: ='3-Basic Inputs'!C15 -> - | D96: -
B97: ='3-Basic Inputs'!B16 -> - | C97: ='3-Basic Inputs'!C16 -> - | D97: -
B98: ='3-Basic Inputs'!B17 -> - | C98: ='3-Basic Inputs'!C17 -> - | D98: -
B99: ='3-Basic Inputs'!B18 -> - | C99: ='3-Basic Inputs'!C18 -> - | D99: -
B100: ='3-Basic Inputs'!B19 -> - | C100: ='3-Basic Inputs'!C19 -> - | D100: -
B101: ='3-Basic Inputs'!B20 -> - | C101: ='3-Basic Inputs'!C20 -> - | D101: -
B103: Table 5-5: Asset-Activity Group (AAG) Historical Expenditures
E104: Regions
B105: Asset-Activity Group (AAG) | C105: Units of Measure | D105: Total | E105: ='3-Basic Inputs'!$I$6 -> District 1 | F105: ='3-Basic Inputs'!$I$7 -> District 2 | G105: ='3-Basic Inputs'!$I$8 -> District 3 | H105: ='3-Basic Inputs'!$I$9 -> District 4 | I105: ='3-Basic Inputs'!$I$10 -> District 5 | J105: ='3-Basic Inputs'!$I$11 -> District 6 | K105: ='3-Basic Inputs'!$I$12 -> District 7 | L105: ='3-Basic Inputs'!$I$13 -> District 8 | M105: ='3-Basic Inputs'!$I$14 -> District 9 | N105: ='3-Basic Inputs'!$I$15 -> District 10 | O105: ='3-Basic Inputs'!$I$16 -> District 11 | P105: ='3-Basic Inputs'!$I$17 -> District 12 | Q105: ='3-Basic Inputs'!$I$18 -> District 13 | R105: ='3-Basic Inputs'!$I$19 -> District 14 | S105: ='3-Basic Inputs'!$I$20 -> District 15
B106: ='3-Basic Inputs'!B6 -> Bridges | C106: ='3-Basic Inputs'!C6 -> Bridge Decks | D106: =IF(SUM(E106:S106)>0,SUM(E106:S106),"-") -> 67998000 | E106: 29854000 | F106: 16889000 | G106: 21255000
B107: ='3-Basic Inputs'!B7 -> Pavements | C107: ='3-Basic Inputs'!C7 -> Lane Miles | D107: =IF(SUM(E107:S107)>0,SUM(E107:S107),"-") -> 138419000 | E107: 50802000 | F107: 42724000 | G107: 44893000
B108: ='3-Basic Inputs'!B8 -> Signs | C108: ='3-Basic Inputs'!C8 -> # of Signs | D108: 4395333.333 | E108: 1627900 | F108: 1348833.333 | G108: 1418600
B109: ='3-Basic Inputs'!B9 -> Highway Lighting | C109: ='3-Basic Inputs'!C9 -> # of Lights | D109: 1595000 | E109: 447500 | F109: 587500 | G109: 560000
B110: ='3-Basic Inputs'!B10 -> Guardrail | C110: ='3-Basic Inputs'!C10 -> Miles of Guardrail | D110: 1269000 | E110: 442000 | F110: 274000 | G110: 553000
B111: ='3-Basic Inputs'!B11 -> Weigh Stations | C111: ='3-Basic Inputs'!C11 -> # of Stations | D111: 195000 | E111: 45000 | F111: 20000 | G111: 130000
B112: ='3-Basic Inputs'!B12 -> - | C112: ='3-Basic Inputs'!C12 -> - | D112: -
B113: ='3-Basic Inputs'!B13 -> - | C113: ='3-Basic Inputs'!C13 -> - | D113: -
B114: ='3-Basic Inputs'!B14 -> - | C114: ='3-Basic Inputs'!C14 -> - | D114: -
B115: ='3-Basic Inputs'!B15 -> - | C115: ='3-Basic Inputs'!C15 -> - | D115: -
B116: ='3-Basic Inputs'!B16 -> - | C116: ='3-Basic Inputs'!C16 -> - | D116: -
B117: ='3-Basic Inputs'!B17 -> - | C117: ='3-Basic Inputs'!C17 -> - | D117: -
B118: ='3-Basic Inputs'!B18 -> - | C118: ='3-Basic Inputs'!C18 -> - | D118: -
B119: ='3-Basic Inputs'!B19 -> - | C119: ='3-Basic Inputs'!C19 -> - | D119: -
B120: ='3-Basic Inputs'!B20 -> - | C120: ='3-Basic Inputs'!C20 -> - | D120: -
B121: TOTAL | D121: =SUM(D106:D120) -> 213871333.3 | E121: =IF(SUM(E106:E120)>0, SUM(E106:E120), " ") -> 83218400 | F121: =IF(SUM(F106:F120)>0, SUM(F106:F120), " ") -> 61843333.33 | G121: 68809600
B122: * Note that the Historical Expenditure Data entered here is is used to determine the percentage allocation for AAGs other than Bridge and Pavement assets if percentage based allocation is used
B125: Table 5-6: Flag Check
B126: Asset-Activity ID | C126: Units of Measure | D126: Inventory | E126: Condition | F126: Deterioration Rates | G126: Unit Costs
B127: =B7 -> Bridges | C127: =C7 -> Bridge Decks | D127: =IF('3-Basic Inputs'!D6="No",IF(D7>0,"ERROR","OK"),IF(D7>0,"OK","ERROR")) -> OK | E127: =IF('3-Basic Inputs'!E6="No",IF(D28>0,"ERROR","OK"),IF(D28>0,"OK","ERROR")) -> OK | F127: =IF('3-Basic Inputs'!F6="No",IF(D87>0,"ERROR","OK"),IF(D87>0,"OK","ERROR")) -> OK | G127: =IF('3-Basic Inputs'!G6="No",IF(D67>0,"ERROR","OK"),IF(D67>0,"OK","ERROR")) -> OK
B128: =B8 -> Pavements | C128: Lane Miles | D128: =IF('3-Basic Inputs'!D7="No",IF(D8>0,"ERROR","OK"),IF(D8>0,"OK","ERROR")) -> OK | E128: =IF('3-Basic Inputs'!E7="No",IF(D29>0,"ERROR","OK"),IF(D29>0,"OK","ERROR")) -> OK | F128: =IF('3-Basic Inputs'!F7="No",IF(D88>0,"ERROR","OK"),IF(D88>0,"OK","ERROR")) -> OK | G128: =IF('3-Basic Inputs'!G7="No",IF(D68>0,"ERROR","OK"),IF(D68>0,"OK","ERROR")) -> OK
B129: =B9 -> Signs | C129: # of Signs | D129: =IF('3-Basic Inputs'!D8="No",IF(D9>0,"ERROR","OK"),IF(D9>0,"OK","ERROR")) -> ERROR | E129: =IF('3-Basic Inputs'!E8="No",IF(D30>0,"ERROR","OK"),IF(D30>0,"OK","ERROR")) -> OK | F129: =IF('3-Basic Inputs'!F8="No",IF(D89>0,"ERROR","OK"),IF(D89>0,"OK","ERROR")) -> OK | G129: =IF('3-Basic Inputs'!G8="No",IF(D69>0,"ERROR","OK"),IF(D69>0,"OK","ERROR")) -> OK
B130: =B10 -> Highway Lighting | C130: # of Lights | D130: =IF('3-Basic Inputs'!D9="No",IF(D10>0,"ERROR","OK"),IF(D10>0,"OK","ERROR")) -> OK | E130: =IF('3-Basic Inputs'!E9="No",IF(D31>0,"ERROR","OK"),IF(D31>0,"OK","ERROR")) -> OK | F130: =IF('3-Basic Inputs'!F9="No",IF(D90>0,"ERROR","OK"),IF(D90>0,"OK","ERROR")) -> OK | G130: =IF('3-Basic Inputs'!G9="No",IF(D70>0,"ERROR","OK"),IF(D70>0,"OK","ERROR")) -> OK
B131: =B11 -> Guardrail | C131: Miles of Guardrail | D131: =IF('3-Basic Inputs'!D10="No",IF(D11>0,"ERROR","OK"),IF(D11>0,"OK","ERROR")) -> OK | E131: =IF('3-Basic Inputs'!E10="No",IF(D32>0,"ERROR","OK"),IF(D32>0,"OK","ERROR")) -> ERROR | F131: =IF('3-Basic Inputs'!F10="No",IF(D91>0,"ERROR","OK"),IF(D91>0,"OK","ERROR")) -> OK | G131: =IF('3-Basic Inputs'!G10="No",IF(D71>0,"ERROR","OK"),IF(D71>0,"OK","ERROR")) -> OK
B132: =B12 -> Weigh Stations | C132: # of Stations | D132: =IF('3-Basic Inputs'!D11="No",IF(D12>0,"ERROR","OK"),IF(D12>0,"OK","ERROR")) -> OK | E132: =IF('3-Basic Inputs'!E11="No",IF(D33>0,"ERROR","OK"),IF(D33>0,"OK","ERROR")) -> OK | F132: =IF('3-Basic Inputs'!F11="No",IF(D92>0,"ERROR","OK"),IF(D92>0,"OK","ERROR")) -> OK | G132: =IF('3-Basic Inputs'!G11="No",IF(D72>0,"ERROR","OK"),IF(D72>0,"OK","ERROR")) -> OK
B133: =B13 -> - | C133: - | D133: =IF('3-Basic Inputs'!D12="No",IF(D13>0,"ERROR","OK"),IF(D13>0,"OK","ERROR")) -> OK | E133: =IF('3-Basic Inputs'!E12="No",IF(D34>0,"ERROR","OK"),IF(D34>0,"OK","ERROR")) -> OK | F133: =IF('3-Basic Inputs'!F12="No",IF(D93>0,"ERROR","OK"),IF(D93>0,"OK","ERROR")) -> OK | G133: =IF('3-Basic Inputs'!G12="No",IF(D73>0,"ERROR","OK"),IF(D73>0,"OK","ERROR")) -> OK
B134: =B14 -> - | C134: - | D134: =IF('3-Basic Inputs'!D13="No",IF(D14>0,"ERROR","OK"),IF(D14>0,"OK","ERROR")) -> OK | E134: =IF('3-Basic Inputs'!E13="No",IF(D35>0,"ERROR","OK"),IF(D35>0,"OK","ERROR")) -> OK | F134: =IF('3-Basic Inputs'!F13="No",IF(D94>0,"ERROR","OK"),IF(D94>0,"OK","ERROR")) -> OK | G134: =IF('3-Basic Inputs'!G13="No",IF(D74>0,"ERROR","OK"),IF(D74>0,"OK","ERROR")) -> OK
B135: =B15 -> - | C135: - | D135: =IF('3-Basic Inputs'!D14="No",IF(D15>0,"ERROR","OK"),IF(D15>0,"OK","ERROR")) -> OK | E135: =IF('3-Basic Inputs'!E14="No",IF(D36>0,"ERROR","OK"),IF(D36>0,"OK","ERROR")) -> OK | F135: =IF('3-Basic Inputs'!F14="No",IF(D95>0,"ERROR","OK"),IF(D95>0,"OK","ERROR")) -> OK | G135: =IF('3-Basic Inputs'!G14="No",IF(D75>0,"ERROR","OK"),IF(D75>0,"OK","ERROR")) -> OK
B136: =B16 -> - | C136: - | D136: =IF('3-Basic Inputs'!D15="No",IF(D16>0,"ERROR","OK"),IF(D16>0,"OK","ERROR")) -> OK | E136: =IF('3-Basic Inputs'!E15="No",IF(D37>0,"ERROR","OK"),IF(D37>0,"OK","ERROR")) -> OK | F136: =IF('3-Basic Inputs'!F15="No",IF(D96>0,"ERROR","OK"),IF(D96>0,"OK","ERROR")) -> OK | G136: =IF('3-Basic Inputs'!G15="No",IF(D76>0,"ERROR","OK"),IF(D76>0,"OK","ERROR")) -> OK
B137: =B17 -> - | C137: - | D137: =IF('3-Basic Inputs'!D16="No",IF(D17>0,"ERROR","OK"),IF(D17>0,"OK","ERROR")) -> OK | E137: =IF('3-Basic Inputs'!E16="No",IF(D38>0,"ERROR","OK"),IF(D38>0,"OK","ERROR")) -> OK | F137: =IF('3-Basic Inputs'!F16="No",IF(D97>0,"ERROR","OK"),IF(D97>0,"OK","ERROR")) -> OK | G137: =IF('3-Basic Inputs'!G16="No",IF(D77>0,"ERROR","OK"),IF(D77>0,"OK","ERROR")) -> OK
B138: =B18 -> - | C138: - | D138: =IF('3-Basic Inputs'!D17="No",IF(D18>0,"ERROR","OK"),IF(D18>0,"OK","ERROR")) -> OK | E138: =IF('3-Basic Inputs'!E17="No",IF(D39>0,"ERROR","OK"),IF(D39>0,"OK","ERROR")) -> OK | F138: =IF('3-Basic Inputs'!F17="No",IF(D98>0,"ERROR","OK"),IF(D98>0,"OK","ERROR")) -> OK | G138: =IF('3-Basic Inputs'!G17="No",IF(D78>0,"ERROR","OK"),IF(D78>0,"OK","ERROR")) -> OK
B139: =B19 -> - | C139: - | D139: =IF('3-Basic Inputs'!D18="No",IF(D19>0,"ERROR","OK"),IF(D19>0,"OK","ERROR")) -> OK | E139: =IF('3-Basic Inputs'!E18="No",IF(D40>0,"ERROR","OK"),IF(D40>0,"OK","ERROR")) -> OK | F139: =IF('3-Basic Inputs'!F18="No",IF(D99>0,"ERROR","OK"),IF(D99>0,"OK","ERROR")) -> OK | G139: =IF('3-Basic Inputs'!G18="No",IF(D79>0,"ERROR","OK"),IF(D79>0,"OK","ERROR")) -> OK
B140: =B20 -> - | C140: - | D140: =IF('3-Basic Inputs'!D19="No",IF(D20>0,"ERROR","OK"),IF(D20>0,"OK","ERROR")) -> OK | E140: =IF('3-Basic Inputs'!E19="No",IF(D41>0,"ERROR","OK"),IF(D41>0,"OK","ERROR")) -> OK | F140: =IF('3-Basic Inputs'!F19="No",IF(D100>0,"ERROR","OK"),IF(D100>0,"OK","ERROR")) -> OK | G140: =IF('3-Basic Inputs'!G19="No",IF(D80>0,"ERROR","OK"),IF(D80>0,"OK","ERROR")) -> OK
B141: =B21 -> - | C141: - | D141: =IF('3-Basic Inputs'!D20="No",IF(D21>0,"ERROR","OK"),IF(D21>0,"OK","ERROR")) -> OK | E141: =IF('3-Basic Inputs'!E20="No",IF(D42>0,"ERROR","OK"),IF(D42>0,"OK","ERROR")) -> OK | F141: =IF('3-Basic Inputs'!F20="No",IF(D101>0,"ERROR","OK"),IF(D101>0,"OK","ERROR")) -> OK | G141: =IF('3-Basic Inputs'!G20="No",IF(D81>0,"ERROR","OK"),IF(D81>0,"OK","ERROR")) -> OK
B142: ERROR Count | D142: =+COUNTIF(D127:H141,B143) -> 2
B143: ERROR

Sheet 6-Needs-Estimation
B1: INPUTS (Yellow cells in Yellow Tabbed Worksheets) | H1: COMPUTED RESULTS (Blue cells on any Worksheet)
B5: Asset-Activity Group #1 | C5: Total | D5: Districts
B6: ='3-Basic Inputs'!B6 -> Bridges | D6: ='3-Basic Inputs'!$I$6 -> District 1 | E6: ='3-Basic Inputs'!$I$7 -> District 2 | F6: ='3-Basic Inputs'!$I$8 -> District 3 | G6: ='3-Basic Inputs'!$I$9 -> District 4 | H6: ='3-Basic Inputs'!$I$10 -> District 5 | I6: ='3-Basic Inputs'!$I$11 -> District 6 | J6: ='3-Basic Inputs'!$I$12 -> District 7 | K6: ='3-Basic Inputs'!$I$13 -> District 8 | L6: ='3-Basic Inputs'!$I$14 -> District 9 | M6: ='3-Basic Inputs'!$I$15 -> District 10 | N6: ='3-Basic Inputs'!$I$16 -> District 11 | O6: ='3-Basic Inputs'!$I$17 -> District 12 | P6: ='3-Basic Inputs'!$I$18 -> District 13 | Q6: ='3-Basic Inputs'!$I$19 -> District 14 | R6: ='3-Basic Inputs'!$I$20 -> District 15
B7: ='3-Basic Inputs'!C6 -> Bridge Decks | C7: =SUM(D7:R7) -> 3500 | D7: =IF('5-Data-Inputs'!E7>0,'5-Data-Inputs'!E7,"-") -> 1475 | E7: =IF('5-Data-Inputs'!F7>0,'5-Data-Inputs'!F7,"-") -> 885 | F7: =IF('5-Data-Inputs'!G7>0,'5-Data-Inputs'!G7,"-") -> 1140 | G7: =IF('5-Data-Inputs'!H7>0,'5-Data-Inputs'!H7,"-") -> - | H7: =IF('5-Data-Inputs'!I7>0,'5-Data-Inputs'!I7,"-") -> - | I7: =IF('5-Data-Inputs'!J7>0,'5-Data-Inputs'!J7,"-") -> - | J7: =IF('5-Data-Inputs'!K7>0,'5-Data-Inputs'!K7,"-") -> - | K7: =IF('5-Data-Inputs'!L7>0,'5-Data-Inputs'!L7,"-") -> - | L7: =IF('5-Data-Inputs'!M7>0,'5-Data-Inputs'!M7,"-") -> - | M7: =IF('5-Data-Inputs'!N7>0,'5-Data-Inputs'!N7,"-") -> - | N7: =IF('5-Data-Inputs'!O7>0,'5-Data-Inputs'!O7,"-") -> - | O7: =IF('5-Data-Inputs'!P7>0,'5-Data-Inputs'!P7,"-") -> - | P7: =IF('5-Data-Inputs'!Q7>0,'5-Data-Inputs'!Q7,"-") -> - | Q7: =IF('5-Data-Inputs'!R7>0,'5-Data-Inputs'!R7,"-") -> - | R7: =IF('5-Data-Inputs'!S7>0,'5-Data-Inputs'!S7,"-") -> -
B8: Current Rating | C8: - | D8: =IF(D7<>"-", '5-Data-Inputs'!E28,"-") -> 0.772 | E8: =IF(E7<>"-", '5-Data-Inputs'!F28,"-") -> 0.762 | F8: =IF(F7<>"-", '5-Data-Inputs'!G28,"-") -> 0.78 | G8: =IF(G7<>"-", '5-Data-Inputs'!H28,"-") -> - | H8: =IF(H7<>"-", '5-Data-Inputs'!I28,"-") -> - | I8: =IF(I7<>"-", '5-Data-Inputs'!J28,"-") -> - | J8: =IF(J7<>"-", '5-Data-Inputs'!K28,"-") -> - | K8: =IF(K7<>"-", '5-Data-Inputs'!L28,"-") -> - | L8: =IF(L7<>"-", '5-Data-Inputs'!M28,"-") -> - | M8: =IF(M7<>"-", '5-Data-Inputs'!N28,"-") -> - | N8: =IF(N7<>"-", '5-Data-Inputs'!O28,"-") -> - | O8: =IF(O7<>"-", '5-Data-Inputs'!P28,"-") -> - | P8: =IF(P7<>"-", '5-Data-Inputs'!Q28,"-") -> - | Q8: =IF(Q7<>"-", '5-Data-Inputs'!R28,"-") -> - | R8: =IF(R7<>"-", '5-Data-Inputs'!S28,"-") -> -
B9: Ideal Rating | C9: - | D9: =IF(D7<>"-",'4-Strategy-Inputs'!$D$16,"-") -> 1 | E9: =IF(E7<>"-",'4-Strategy-Inputs'!$D$16,"-") -> 1 | F9: =IF(F7<>"-",'4-Strategy-Inputs'!$D$16,"-") -> 1 | G9: =IF(G7<>"-",'4-Strategy-Inputs'!$D$16,"-") -> - | H9: =IF(H7<>"-",'4-Strategy-Inputs'!$D$16,"-") -> - | I9: =IF(I7<>"-",'4-Strategy-Inputs'!$D$16,"-") -> - | J9: =IF(J7<>"-",'4-Strategy-Inputs'!$D$16,"-") -> - | K9: =IF(K7<>"-",'4-Strategy-Inputs'!$D$16,"-") -> - | L9: =IF(L7<>"-",'4-Strategy-Inputs'!$D$16,"-") -> - | M9: =IF(M7<>"-",'4-Strategy-Inputs'!$D$16,"-") -> - | N9: =IF(N7<>"-",'4-Strategy-Inputs'!$D$16,"-") -> - | O9: =IF(O7<>"-",'4-Strategy-Inputs'!$D$16,"-") -> - | P9: =IF(P7<>"-",'4-Strategy-Inputs'!$D$16,"-") -> - | Q9: =IF(Q7<>"-",'4-Strategy-Inputs'!$D$16,"-") -> - | R9: =IF(R7<>"-",'4-Strategy-Inputs'!$D$16,"-") -> -
B10: Target Rating | C10: - | D10: =IF(D7<>"-",'4-Strategy-Inputs'!$E$16,"-") -> 0.8 | E10: =IF(E7<>"-",'4-Strategy-Inputs'!$E$16,"-") -> 0.8 | F10: =IF(F7<>"-",'4-Strategy-Inputs'!$E$16,"-") -> 0.8 | G10: =IF(G7<>"-",'4-Strategy-Inputs'!$E$16,"-") -> - | H10: =IF(H7<>"-",'4-Strategy-Inputs'!$E$16,"-") -> - | I10: =IF(I7<>"-",'4-Strategy-Inputs'!$E$16,"-") -> - | J10: =IF(J7<>"-",'4-Strategy-Inputs'!$E$16,"-") -> - | K10: =IF(K7<>"-",'4-Strategy-Inputs'!$E$16,"-") -> - | L10: =IF(L7<>"-",'4-Strategy-Inputs'!$E$16,"-") -> - | M10: =IF(M7<>"-",'4-Strategy-Inputs'!$E$16,"-") -> - | N10: =IF(N7<>"-",'4-Strategy-Inputs'!$E$16,"-") -> - | O10: =IF(O7<>"-",'4-Strategy-Inputs'!$E$16,"-") -> - | P10: =IF(P7<>"-",'4-Strategy-Inputs'!$E$16,"-") -> - | Q10: =IF(Q7<>"-",'4-Strategy-Inputs'!$E$16,"-") -> - | R10: =IF(R7<>"-",'4-Strategy-Inputs'!$E$16,"-") -> -
B11: Average Unit Cost $ | C11: - | D11: =IF(D7<>"-",'5-Data-Inputs'!E67,"-") -> 1100000 | E11: =IF(E7<>"-",'5-Data-Inputs'!F67,"-") -> 1100000 | F11: =IF(F7<>"-",'5-Data-Inputs'!G67,"-") -> 1100000 | G11: =IF(G7<>"-",'5-Data-Inputs'!H67,"-") -> - | H11: =IF(H7<>"-",'5-Data-Inputs'!I67,"-") -> - | I11: =IF(I7<>"-",'5-Data-Inputs'!J67,"-") -> - | J11: =IF(J7<>"-",'5-Data-Inputs'!K67,"-") -> - | K11: =IF(K7<>"-",'5-Data-Inputs'!L67,"-") -> - | L11: =IF(L7<>"-",'5-Data-Inputs'!M67,"-") -> - | M11: =IF(M7<>"-",'5-Data-Inputs'!N67,"-") -> - | N11: =IF(N7<>"-",'5-Data-Inputs'!O67,"-") -> - | O11: =IF(O7<>"-",'5-Data-Inputs'!P67,"-") -> - | P11: =IF(P7<>"-",'5-Data-Inputs'!Q67,"-") -> - | Q11: =IF(Q7<>"-",'5-Data-Inputs'!R67,"-") -> - | R11: =IF(R7<>"-",'5-Data-Inputs'!S67,"-") -> -
B12: Deterioration Rate | C12: - | D12: =IF(D7<>"-",'5-Data-Inputs'!E87,"-") -> 0.015 | E12: =IF(E7<>"-",'5-Data-Inputs'!F87,"-") -> 0.015 | F12: =IF(F7<>"-",'5-Data-Inputs'!G87,"-") -> 0.015 | G12: =IF(G7<>"-",'5-Data-Inputs'!H87,"-") -> - | H12: =IF(H7<>"-",'5-Data-Inputs'!I87,"-") -> - | I12: =IF(I7<>"-",'5-Data-Inputs'!J87,"-") -> - | J12: =IF(J7<>"-",'5-Data-Inputs'!K87,"-") -> - | K12: =IF(K7<>"-",'5-Data-Inputs'!L87,"-") -> - | L12: =IF(L7<>"-",'5-Data-Inputs'!M87,"-") -> - | M12: =IF(M7<>"-",'5-Data-Inputs'!N87,"-") -> - | N12: =IF(N7<>"-",'5-Data-Inputs'!O87,"-") -> - | O12: =IF(O7<>"-",'5-Data-Inputs'!P87,"-") -> - | P12: =IF(P7<>"-",'5-Data-Inputs'!Q87,"-") -> - | Q12: =IF(Q7<>"-",'5-Data-Inputs'!R87,"-") -> - | R12: =IF(R7<>"-",'5-Data-Inputs'!S87,"-") -> -
B13: Unconstrained Need | C13: =SUM(D13:R13) -> 877503000 | D13: =IF(D7<>"-",(D9-D8)*D11*D7,"-") -> 369930000 | E13: =IF(E7<>"-",(E9-E8)*E11*E7,"-") -> 231693000 | F13: 275880000 | G13: - | H13: - | I13: - | J13: - | K13: - | L13: - | M13: - | N13: - | O13: - | P13: - | Q13: - | R13: -
B14: Ave. Annual Deterioration | C14: =SUM(D14:R14) -> 57750000 | D14: =IF(D7<>"-",D12*D7*D11,"-") -> 24337500 | E14: =IF(E7<>"-",E12*E7*E11,"-") -> 14602500 | F14: 18810000 | G14: - | H14: - | I14: - | J14: - | K14: - | L14: - | M14: - | N14: - | O14: - | P14: - | Q14: - | R14: -
B15: Total needed for Target Rating | C15: =SUM(D15:R15) -> 107503000 | D15: =IF(D7<>"-",(D10-D8)*D11*D7,"-") -> 45430000 | E15: =IF(E7<>"-",(E10-E8)*E11*E7,"-") -> 36993000 | F15: 25080000 | G15: - | H15: - | I15: - | J15: - | K15: - | L15: - | M15: - | N15: - | O15: - | P15: - | Q15: - | R15: -
B16: Desired Time for Target Rating (Years) | C16: - | D16: =IF(D7<>"-",'4-Strategy-Inputs'!$F$16,"-") -> 2 | E16: =IF(E7<>"-",'4-Strategy-Inputs'!$F$16,"-") -> 2 | F16: =IF(F7<>"-",'4-Strategy-Inputs'!$F$16,"-") -> 2 | G16: =IF(G7<>"-",'4-Strategy-Inputs'!$F$16,"-") -> - | H16: =IF(H7<>"-",'4-Strategy-Inputs'!$F$16,"-") -> - | I16: =IF(I7<>"-",'4-Strategy-Inputs'!$F$16,"-") -> - | J16: =IF(J7<>"-",'4-Strategy-Inputs'!$F$16,"-") -> - | K16: =IF(K7<>"-",'4-Strategy-Inputs'!$F$16,"-") -> - | L16: =IF(L7<>"-",'4-Strategy-Inputs'!$F$16,"-") -> - | M16: =IF(M7<>"-",'4-Strategy-Inputs'!$F$16,"-") -> - | N16: =IF(N7<>"-",'4-Strategy-Inputs'!$F$16,"-") -> - | O16: =IF(O7<>"-",'4-Strategy-Inputs'!$F$16,"-") -> - | P16: =IF(P7<>"-",'4-Strategy-Inputs'!$F$16,"-") -> - | Q16: =IF(Q7<>"-",'4-Strategy-Inputs'!$F$16,"-") -> - | R16: =IF(R7<>"-",'4-Strategy-Inputs'!$F$16,"-") -> -
B17: Annual Allocation needed to meet target Ratings and timelines | C17: =SUM(D17:R17) -> 111501500 | D17: =IF(D7<>"-",IF(D16>0, D14+(D15/D16),0),"-") -> 47052500 | E17: =IF(E7<>"-",IF(E16>0, E14+(E15/E16),0),"-") -> 33099000 | F17: 31350000 | G17: - | H17: - | I17: - | J17: - | K17: - | L17: - | M17: - | N17: - | O17: - | P17: - | Q17: - | R17: -
B18: Funds needed to improve average current rating by 1% | C18: =SUM(D18:R18) -> 38500000 | D18: =IF(D7<>"-",D11*D7/100,"-") -> 16225000 | E18: =IF(E7<>"-",E11*E7/100,"-") -> 9735000 | F18: 12540000 | G18: - | H18: - | I18: - | J18: - | K18: - | L18: - | M18: - | N18: - | O18: - | P18: - | Q18: - | R18: -
B20: Asset-Activity Group #2 | C20: Total | D20: Districts
B21: ='3-Basic Inputs'!B7 -> Pavements | D21: ='3-Basic Inputs'!$I$6 -> District 1 | E21: ='3-Basic Inputs'!$I$7 -> District 2 | F21: ='3-Basic Inputs'!$I$8 -> District 3 | G21: ='3-Basic Inputs'!$I$9 -> District 4 | H21: ='3-Basic Inputs'!$I$10 -> District 5 | I21: ='3-Basic Inputs'!$I$11 -> District 6 | J21: ='3-Basic Inputs'!$I$12 -> District 7 | K21: ='3-Basic Inputs'!$I$13 -> District 8 | L21: ='3-Basic Inputs'!$I$14 -> District 9 | M21: ='3-Basic Inputs'!$I$15 -> District 10 | N21: ='3-Basic Inputs'!$I$16 -> District 11 | O21: ='3-Basic Inputs'!$I$17 -> District 12 | P21: ='3-Basic Inputs'!$I$18 -> District 13 | Q21: ='3-Basic Inputs'!$I$19 -> District 14 | R21: ='3-Basic Inputs'!$I$20 -> District 15
B22: ='3-Basic Inputs'!C7 -> Lane Miles | C22: =SUM(D22:R22) -> 20750 | D22: =IF('5-Data-Inputs'!E8>0,'5-Data-Inputs'!E8,"-") -> 8190 | E22: =IF('5-Data-Inputs'!F8>0,'5-Data-Inputs'!F8,"-") -> 5850 | F22: =IF('5-Data-Inputs'!G8>0,'5-Data-Inputs'!G8,"-") -> 6710 | G22: =IF('5-Data-Inputs'!H8>0,'5-Data-Inputs'!H8,"-") -> - | H22: =IF('5-Data-Inputs'!I8>0,'5-Data-Inputs'!I8,"-") -> - | I22: =IF('5-Data-Inputs'!J8>0,'5-Data-Inputs'!J8,"-") -> - | J22: =IF('5-Data-Inputs'!K8>0,'5-Data-Inputs'!K8,"-") -> - | K22: =IF('5-Data-Inputs'!L8>0,'5-Data-Inputs'!L8,"-") -> - | L22: =IF('5-Data-Inputs'!M8>0,'5-Data-Inputs'!M8,"-") -> - | M22: =IF('5-Data-Inputs'!N8>0,'5-Data-Inputs'!N8,"-") -> - | N22: =IF('5-Data-Inputs'!O8>0,'5-Data-Inputs'!O8,"-") -> - | O22: =IF('5-Data-Inputs'!P8>0,'5-Data-Inputs'!P8,"-") -> - | P22: =IF('5-Data-Inputs'!Q8>0,'5-Data-Inputs'!Q8,"-") -> - | Q22: =IF('5-Data-Inputs'!R8>0,'5-Data-Inputs'!R8,"-") -> - | R22: =IF('5-Data-Inputs'!S8>0,'5-Data-Inputs'!S8,"-") -> -
B23: Current Rating | C23: - | D23: =IF(D22<>"-", '5-Data-Inputs'!E29, "-") -> 0.761 | E23: =IF(E22<>"-", '5-Data-Inputs'!F29, "-") -> 0.758 | F23: =IF(F22<>"-", '5-Data-Inputs'!G29, "-") -> 0.756 | G23: =IF(G22<>"-", '5-Data-Inputs'!H29, "-") -> - | H23: =IF(H22<>"-", '5-Data-Inputs'!I29, "-") -> - | I23: =IF(I22<>"-", '5-Data-Inputs'!J29, "-") -> - | J23: =IF(J22<>"-", '5-Data-Inputs'!K29, "-") -> - | K23: =IF(K22<>"-", '5-Data-Inputs'!L29, "-") -> - | L23: =IF(L22<>"-", '5-Data-Inputs'!M29, "-") -> - | M23: =IF(M22<>"-", '5-Data-Inputs'!N29, "-") -> - | N23: =IF(N22<>"-", '5-Data-Inputs'!O29, "-") -> - | O23: =IF(O22<>"-", '5-Data-Inputs'!P29, "-") -> - | P23: =IF(P22<>"-", '5-Data-Inputs'!Q29, "-") -> - | Q23: =IF(Q22<>"-", '5-Data-Inputs'!R29, "-") -> - | R23: =IF(R22<>"-", '5-Data-Inputs'!S29, "-") -> -
B24: Ideal Rating | C24: - | D24: =IF(D22<>"-", '4-Strategy-Inputs'!$D$17,"-") -> 1 | E24: =IF(E22<>"-", '4-Strategy-Inputs'!$D$17,"-") -> 1 | F24: =IF(F22<>"-", '4-Strategy-Inputs'!$D$17,"-") -> 1 | G24: =IF(G22<>"-", '4-Strategy-Inputs'!$D$17,"-") -> - | H24: =IF(H22<>"-", '4-Strategy-Inputs'!$D$17,"-") -> - | I24: =IF(I22<>"-", '4-Strategy-Inputs'!$D$17,"-") -> - | J24: =IF(J22<>"-", '4-Strategy-Inputs'!$D$17,"-") -> - | K24: =IF(K22<>"-", '4-Strategy-Inputs'!$D$17,"-") -> - | L24: =IF(L22<>"-", '4-Strategy-Inputs'!$D$17,"-") -> - | M24: =IF(M22<>"-", '4-Strategy-Inputs'!$D$17,"-") -> - | N24: =IF(N22<>"-", '4-Strategy-Inputs'!$D$17,"-") -> - | O24: =IF(O22<>"-", '4-Strategy-Inputs'!$D$17,"-") -> - | P24: =IF(P22<>"-", '4-Strategy-Inputs'!$D$17,"-") -> - | Q24: =IF(Q22<>"-", '4-Strategy-Inputs'!$D$17,"-") -> - | R24: =IF(R22<>"-", '4-Strategy-Inputs'!$D$17,"-") -> -
B25: Target Rating | C25: - | D25: =IF(D22<>"-", '4-Strategy-Inputs'!$E$17,"-") -> 0.8 | E25: =IF(E22<>"-", '4-Strategy-Inputs'!$E$17,"-") -> 0.8 | F25: =IF(F22<>"-", '4-Strategy-Inputs'!$E$17,"-") -> 0.8 | G25: =IF(G22<>"-", '4-Strategy-Inputs'!$E$17,"-") -> - | H25: =IF(H22<>"-", '4-Strategy-Inputs'!$E$17,"-") -> - | I25: =IF(I22<>"-", '4-Strategy-Inputs'!$E$17,"-") -> - | J25: =IF(J22<>"-", '4-Strategy-Inputs'!$E$17,"-") -> - | K25: =IF(K22<>"-", '4-Strategy-Inputs'!$E$17,"-") -> - | L25: =IF(L22<>"-", '4-Strategy-Inputs'!$E$17,"-") -> - | M25: =IF(M22<>"-", '4-Strategy-Inputs'!$E$17,"-") -> - | N25: =IF(N22<>"-", '4-Strategy-Inputs'!$E$17,"-") -> - | O25: =IF(O22<>"-", '4-Strategy-Inputs'!$E$17,"-") -> - | P25: =IF(P22<>"-", '4-Strategy-Inputs'!$E$17,"-") -> - | Q25: =IF(Q22<>"-", '4-Strategy-Inputs'!$E$17,"-") -> - | R25: =IF(R22<>"-", '4-Strategy-Inputs'!$E$17,"-") -> -
B26: Average Unit Cost $ | C26: - | D26: =IF(D22<>"-", '5-Data-Inputs'!E68,"-") -> 120000 | E26: =IF(E22<>"-", '5-Data-Inputs'!F68,"-") -> 120000 | F26: =IF(F22<>"-", '5-Data-Inputs'!G68,"-") -> 120000 | G26: =IF(G22<>"-", '5-Data-Inputs'!H68,"-") -> - | H26: =IF(H22<>"-", '5-Data-Inputs'!I68,"-") -> - | I26: =IF(I22<>"-", '5-Data-Inputs'!J68,"-") -> - | J26: =IF(J22<>"-", '5-Data-Inputs'!K68,"-") -> - | K26: =IF(K22<>"-", '5-Data-Inputs'!L68,"-") -> - | L26: =IF(L22<>"-", '5-Data-Inputs'!M68,"-") -> - | M26: =IF(M22<>"-", '5-Data-Inputs'!N68,"-") -> - | N26: =IF(N22<>"-", '5-Data-Inputs'!O68,"-") -> - | O26: =IF(O22<>"-", '5-Data-Inputs'!P68,"-") -> - | P26: =IF(P22<>"-", '5-Data-Inputs'!Q68,"-") -> - | Q26: =IF(Q22<>"-", '5-Data-Inputs'!R68,"-") -> - | R26: =IF(R22<>"-", '5-Data-Inputs'!S68,"-") -> -
B27: Deterioration Rate | C27: - | D27: =IF(D22<>"-", '5-Data-Inputs'!E88,"-") -> 0.05 | E27: =IF(E22<>"-", '5-Data-Inputs'!F88,"-") -> 0.05 | F27: =IF(F22<>"-", '5-Data-Inputs'!G88,"-") -> 0.05 | G27: =IF(G22<>"-", '5-Data-Inputs'!H88,"-") -> - | H27: =IF(H22<>"-", '5-Data-Inputs'!I88,"-") -> - | I27: =IF(I22<>"-", '5-Data-Inputs'!J88,"-") -> - | J27: =IF(J22<>"-", '5-Data-Inputs'!K88,"-") -> - | K27: =IF(K22<>"-", '5-Data-Inputs'!L88,"-") -> - | L27: =IF(L22<>"-", '5-Data-Inputs'!M88,"-") -> - | M27: =IF(M22<>"-", '5-Data-Inputs'!N88,"-") -> - | N27: =IF(N22<>"-", '5-Data-Inputs'!O88,"-") -> - | O27: =IF(O22<>"-", '5-Data-Inputs'!P88,"-") -> - | P27: =IF(P22<>"-", '5-Data-Inputs'!Q88,"-") -> - | Q27: =IF(Q22<>"-", '5-Data-Inputs'!R88,"-") -> - | R27: =IF(R22<>"-", '5-Data-Inputs'!S88,"-") -> -
B28: Unconstrained Need | C28: =SUM(D28:R28) -> 601242000 | D28: =IF(D22<>"-", (D24-D23)*D26*D22,"-") -> 234889200 | E28: =IF(E22<>"-", (E24-E23)*E26*E22,"-") -> 169884000 | F28: 196468800 | G28: - | H28: - | I28: - | J28: - | K28: - | L28: - | M28: - | N28: - | O28: - | P28: - | Q28: - | R28: -
B29: Ave. Annual Deterioration | C29: =SUM(D29:R29) -> 124500000 | D29: =IF(D22<>"-", D27*D22*D26,"-") -> 49140000 | E29: =IF(E22<>"-", E27*E22*E26,"-") -> 35100000 | F29: 40260000 | G29: - | H29: - | I29: - | J29: - | K29: - | L29: - | M29: - | N29: - | O29: - | P29: - | Q29: - | R29: -
B30: Total needed for Target Rating | C30: =SUM(D30:R30) -> 103242000 | D30: =IF(D22<>"-", (D25-D23)*D26*D22,"-") -> 38329200 | E30: =IF(E22<>"-", (E25-E23)*E26*E22,"-") -> 29484000 | F30: 35428800 | G30: - | H30: - | I30: - | J30: - | K30: - | L30: - | M30: - | N30: - | O30: - | P30: - | Q30: - | R30: -
B31: Desired Time for Target Rating (Years) | C31: - | D31: =IF(D22<>"-", '4-Strategy-Inputs'!$F$17,"-") -> 2 | E31: =IF(E22<>"-", '4-Strategy-Inputs'!$F$17,"-") -> 2 | F31: =IF(F22<>"-", '4-Strategy-Inputs'!$F$17,"-") -> 2 | G31: =IF(G22<>"-", '4-Strategy-Inputs'!$F$17,"-") -> - | H31: =IF(H22<>"-", '4-Strategy-Inputs'!$F$17,"-") -> - | I31: =IF(I22<>"-", '4-Strategy-Inputs'!$F$17,"-") -> - | J31: =IF(J22<>"-", '4-Strategy-Inputs'!$F$17,"-") -> - | K31: =IF(K22<>"-", '4-Strategy-Inputs'!$F$17,"-") -> - | L31: =IF(L22<>"-", '4-Strategy-Inputs'!$F$17,"-") -> - | M31: =IF(M22<>"-", '4-Strategy-Inputs'!$F$17,"-") -> - | N31: =IF(N22<>"-", '4-Strategy-Inputs'!$F$17,"-") -> - | O31: =IF(O22<>"-", '4-Strategy-Inputs'!$F$17,"-") -> - | P31: =IF(P22<>"-", '4-Strategy-Inputs'!$F$17,"-") -> - | Q31: =IF(Q22<>"-", '4-Strategy-Inputs'!$F$17,"-") -> - | R31: =IF(R22<>"-", '4-Strategy-Inputs'!$F$17,"-") -> -
B32: Annual Allocation needed to meet target Ratings and timelines | C32: =SUM(D32:R32) -> 176121000 | D32: =IF(D22<>"-", IF(D31>0, D29+(D30/D31),0),"-") -> 68304600 | E32: =IF(E22<>"-", IF(E31>0, E29+(E30/E31),0),"-") -> 49842000 | F32: 57974400 | G32: - | H32: - | I32: - | J32: - | K32: - | L32: - | M32: - | N32: - | O32: - | P32: - | Q32: - | R32: -
B33: Funds needed to improve average current rating by 1% | C33: =SUM(D33:R33) -> 24900000 | D33: =IF(D22<>"-", D26*D22/100,"-") -> 9828000 | E33: =IF(E22<>"-", E26*E22/100,"-") -> 7020000 | F33: 8052000 | G33: - | H33: - | I33: - | J33: - | K33: - | L33: - | M33: - | N33: - | O33: - | P33: - | Q33: - | R33: -
B35: Asset-Activity Group #3 | C35: Total | D35: Districts
B36: ='3-Basic Inputs'!B8 -> Signs | D36: ='3-Basic Inputs'!$I$6 -> District 1 | E36: ='3-Basic Inputs'!$I$7 -> District 2 | F36: ='3-Basic Inputs'!$I$8 -> District 3 | G36: ='3-Basic Inputs'!$I$9 -> District 4 | H36: ='3-Basic Inputs'!$I$10 -> District 5 | I36: ='3-Basic Inputs'!$I$11 -> District 6 | J36: ='3-Basic Inputs'!$I$12 -> District 7 | K36: ='3-Basic Inputs'!$I$13 -> District 8 | L36: ='3-Basic Inputs'!$I$14 -> District 9 | M36: ='3-Basic Inputs'!$I$15 -> District 10 | N36: ='3-Basic Inputs'!$I$16 -> District 11 | O36: ='3-Basic Inputs'!$I$17 -> District 12 | P36: ='3-Basic Inputs'!$I$18 -> District 13 | Q36: ='3-Basic Inputs'!$I$19 -> District 14 | R36: ='3-Basic Inputs'!$I$20 -> District 15
B37: ='3-Basic Inputs'!C8 -> # of Signs | C37: =SUM(D37:R37) -> 38100 | D37: =IF('5-Data-Inputs'!E9>0,'5-Data-Inputs'!E9,"-") -> 13900 | E37: =IF('5-Data-Inputs'!F9>0,'5-Data-Inputs'!F9,"-") -> 11900 | F37: =IF('5-Data-Inputs'!G9>0,'5-Data-Inputs'!G9,"-") -> 12300 | G37: =IF('5-Data-Inputs'!H9>0,'5-Data-Inputs'!H9,"-") -> - | H37: =IF('5-Data-Inputs'!I9>0,'5-Data-Inputs'!I9,"-") -> - | I37: =IF('5-Data-Inputs'!J9>0,'5-Data-Inputs'!J9,"-") -> - | J37: =IF('5-Data-Inputs'!K9>0,'5-Data-Inputs'!K9,"-") -> - | K37: =IF('5-Data-Inputs'!L9>0,'5-Data-Inputs'!L9,"-") -> - | L37: =IF('5-Data-Inputs'!M9>0,'5-Data-Inputs'!M9,"-") -> - | M37: =IF('5-Data-Inputs'!N9>0,'5-Data-Inputs'!N9,"-") -> - | N37: =IF('5-Data-Inputs'!O9>0,'5-Data-Inputs'!O9,"-") -> - | O37: =IF('5-Data-Inputs'!P9>0,'5-Data-Inputs'!P9,"-") -> - | P37: =IF('5-Data-Inputs'!Q9>0,'5-Data-Inputs'!Q9,"-") -> - | Q37: =IF('5-Data-Inputs'!R9>0,'5-Data-Inputs'!R9,"-") -> - | R37: =IF('5-Data-Inputs'!S9>0,'5-Data-Inputs'!S9,"-") -> -
B38: Current Rating | C38: - | D38: =IF(D37<>"-", '5-Data-Inputs'!E30,"-") -> 0.921 | E38: =IF(E37<>"-", '5-Data-Inputs'!F30,"-") -> 0.929 | F38: =IF(F37<>"-", '5-Data-Inputs'!G30,"-") -> 0.928 | G38: =IF(G37<>"-", '5-Data-Inputs'!H30,"-") -> - | H38: =IF(H37<>"-", '5-Data-Inputs'!I30,"-") -> - | I38: =IF(I37<>"-", '5-Data-Inputs'!J30,"-") -> - | J38: =IF(J37<>"-", '5-Data-Inputs'!K30,"-") -> - | K38: =IF(K37<>"-", '5-Data-Inputs'!L30,"-") -> - | L38: =IF(L37<>"-", '5-Data-Inputs'!M30,"-") -> - | M38: =IF(M37<>"-", '5-Data-Inputs'!N30,"-") -> - | N38: =IF(N37<>"-", '5-Data-Inputs'!O30,"-") -> - | O38: =IF(O37<>"-", '5-Data-Inputs'!P30,"-") -> - | P38: =IF(P37<>"-", '5-Data-Inputs'!Q30,"-") -> - | Q38: =IF(Q37<>"-", '5-Data-Inputs'!R30,"-") -> - | R38: =IF(R37<>"-", '5-Data-Inputs'!S30,"-") -> -
B39: Ideal Rating | C39: - | D39: =IF(D37<>"-", '4-Strategy-Inputs'!$D$18,"-") -> 1 | E39: =IF(E37<>"-", '4-Strategy-Inputs'!$D$18,"-") -> 1 | F39: =IF(F37<>"-", '4-Strategy-Inputs'!$D$18,"-") -> 1 | G39: =IF(G37<>"-", '4-Strategy-Inputs'!$D$18,"-") -> - | H39: =IF(H37<>"-", '4-Strategy-Inputs'!$D$18,"-") -> - | I39: =IF(I37<>"-", '4-Strategy-Inputs'!$D$18,"-") -> - | J39: =IF(J37<>"-", '4-Strategy-Inputs'!$D$18,"-") -> - | K39: =IF(K37<>"-", '4-Strategy-Inputs'!$D$18,"-") -> - | L39: =IF(L37<>"-", '4-Strategy-Inputs'!$D$18,"-") -> - | M39: =IF(M37<>"-", '4-Strategy-Inputs'!$D$18,"-") -> - | N39: =IF(N37<>"-", '4-Strategy-Inputs'!$D$18,"-") -> - | O39: =IF(O37<>"-", '4-Strategy-Inputs'!$D$18,"-") -> - | P39: =IF(P37<>"-", '4-Strategy-Inputs'!$D$18,"-") -> - | Q39: =IF(Q37<>"-", '4-Strategy-Inputs'!$D$18,"-") -> - | R39: =IF(R37<>"-", '4-Strategy-Inputs'!$D$18,"-") -> -
B40: Target Rating | C40: - | D40: =IF(D37<>"-", '4-Strategy-Inputs'!$E$18,"_") -> 1 | E40: =IF(E37<>"-", '4-Strategy-Inputs'!$E$18,"_") -> 1 | F40: =IF(F37<>"-", '4-Strategy-Inputs'!$E$18,"_") -> 1 | G40: =IF(G37<>"-", '4-Strategy-Inputs'!$E$18,"_") -> _ | H40: =IF(H37<>"-", '4-Strategy-Inputs'!$E$18,"_") -> _ | I40: =IF(I37<>"-", '4-Strategy-Inputs'!$E$18,"_") -> _ | J40: =IF(J37<>"-", '4-Strategy-Inputs'!$E$18,"_") -> _ | K40: =IF(K37<>"-", '4-Strategy-Inputs'!$E$18,"_") -> _ | L40: =IF(L37<>"-", '4-Strategy-Inputs'!$E$18,"_") -> _ | M40: =IF(M37<>"-", '4-Strategy-Inputs'!$E$18,"_") -> _ | N40: =IF(N37<>"-", '4-Strategy-Inputs'!$E$18,"_") -> _ | O40: =IF(O37<>"-", '4-Strategy-Inputs'!$E$18,"_") -> _ | P40: =IF(P37<>"-", '4-Strategy-Inputs'!$E$18,"_") -> _ | Q40: =IF(Q37<>"-", '4-Strategy-Inputs'!$E$18,"_") -> _ | R40: =IF(R37<>"-", '4-Strategy-Inputs'!$E$18,"_") -> _
B41: Average Unit Cost $ | C41: - | D41: =IF(D37<>"-", '5-Data-Inputs'!E69,"-") -> 2000 | E41: =IF(E37<>"-", '5-Data-Inputs'!F69,"-") -> 2000 | F41: =IF(F37<>"-", '5-Data-Inputs'!G69,"-") -> 2000 | G41: =IF(G37<>"-", '5-Data-Inputs'!H69,"-") -> - | H41: =IF(H37<>"-", '5-Data-Inputs'!I69,"-") -> - | I41: =IF(I37<>"-", '5-Data-Inputs'!J69,"-") -> - | J41: =IF(J37<>"-", '5-Data-Inputs'!K69,"-") -> - | K41: =IF(K37<>"-", '5-Data-Inputs'!L69,"-") -> - | L41: =IF(L37<>"-", '5-Data-Inputs'!M69,"-") -> - | M41: =IF(M37<>"-", '5-Data-Inputs'!N69,"-") -> - | N41: =IF(N37<>"-", '5-Data-Inputs'!O69,"-") -> - | O41: =IF(O37<>"-", '5-Data-Inputs'!P69,"-") -> - | P41: =IF(P37<>"-", '5-Data-Inputs'!Q69,"-") -> - | Q41: =IF(Q37<>"-", '5-Data-Inputs'!R69,"-") -> - | R41: =IF(R37<>"-", '5-Data-Inputs'!S69,"-") -> -
B42: Deterioration Rate | C42: - | D42: =IF(D37<>"-", '5-Data-Inputs'!E89,"-") -> 0.1 | E42: =IF(E37<>"-", '5-Data-Inputs'!F89,"-") -> 0.1 | F42: =IF(F37<>"-", '5-Data-Inputs'!G89,"-") -> 0.1 | G42: =IF(G37<>"-", '5-Data-Inputs'!H89,"-") -> - | H42: =IF(H37<>"-", '5-Data-Inputs'!I89,"-") -> - | I42: =IF(I37<>"-", '5-Data-Inputs'!J89,"-") -> - | J42: =IF(J37<>"-", '5-Data-Inputs'!K89,"-") -> - | K42: =IF(K37<>"-", '5-Data-Inputs'!L89,"-") -> - | L42: =IF(L37<>"-", '5-Data-Inputs'!M89,"-") -> - | M42: =IF(M37<>"-", '5-Data-Inputs'!N89,"-") -> - | N42: =IF(N37<>"-", '5-Data-Inputs'!O89,"-") -> - | O42: =IF(O37<>"-", '5-Data-Inputs'!P89,"-") -> - | P42: =IF(P37<>"-", '5-Data-Inputs'!Q89,"-") -> - | Q42: =IF(Q37<>"-", '5-Data-Inputs'!R89,"-") -> - | R42: =IF(R37<>"-", '5-Data-Inputs'!S89,"-") -> -
B43: Unconstrained Need | C43: =SUM(D43:R43) -> 5657200 | D43: =IF(D37<>"-", (D39-D38)*D41*D37,"-") -> 2196200 | E43: =IF(E37<>"-", (E39-E38)*E41*E37,"-") -> 1689800 | F43: 1771200 | G43: - | H43: - | I43: - | J43: - | K43: - | L43: - | M43: - | N43: - | O43: - | P43: - | Q43: - | R43: -
B44: Ave. Annual Deterioration | C44: =SUM(D44:R44) -> 7620000 | D44: =IF(D37<>"-", D42*D37*D41,"-") -> 2780000 | E44: =IF(E37<>"-", E42*E37*E41,"-") -> 2380000 | F44: 2460000 | G44: - | H44: - | I44: - | J44: - | K44: - | L44: - | M44: - | N44: - | O44: - | P44: - | Q44: - | R44: -
B45: Total needed for Target Rating | C45: =SUM(D45:R45) -> 5657200 | D45: =IF(D37<>"-", (D40-D38)*D41*D37,"-") -> 2196200 | E45: =IF(E37<>"-", (E40-E38)*E41*E37,"-") -> 1689800 | F45: 1771200 | G45: - | H45: - | I45: - | J45: - | K45: - | L45: - | M45: - | N45: - | O45: - | P45: - | Q45: - | R45: -
B46: Desired Time for Target Rating (Years) | C46: - | D46: =IF(D37<>"-", '4-Strategy-Inputs'!$F$18,"-") -> 8 | E46: =IF(E37<>"-", '4-Strategy-Inputs'!$F$18,"-") -> 8 | F46: =IF(F37<>"-", '4-Strategy-Inputs'!$F$18,"-") -> 8 | G46: =IF(G37<>"-", '4-Strategy-Inputs'!$F$18,"-") -> - | H46: =IF(H37<>"-", '4-Strategy-Inputs'!$F$18,"-") -> - | I46: =IF(I37<>"-", '4-Strategy-Inputs'!$F$18,"-") -> - | J46: =IF(J37<>"-", '4-Strategy-Inputs'!$F$18,"-") -> - | K46: =IF(K37<>"-", '4-Strategy-Inputs'!$F$18,"-") -> - | L46: =IF(L37<>"-", '4-Strategy-Inputs'!$F$18,"-") -> - | M46: =IF(M37<>"-", '4-Strategy-Inputs'!$F$18,"-") -> - | N46: =IF(N37<>"-", '4-Strategy-Inputs'!$F$18,"-") -> - | O46: =IF(O37<>"-", '4-Strategy-Inputs'!$F$18,"-") -> - | P46: =IF(P37<>"-", '4-Strategy-Inputs'!$F$18,"-") -> - | Q46: =IF(Q37<>"-", '4-Strategy-Inputs'!$F$18,"-") -> - | R46: =IF(R37<>"-", '4-Strategy-Inputs'!$F$18,"-") -> -
B47: Annual Allocation needed to meet target Ratings and timelines | C47: =SUM(D47:R47) -> 8327150 | D47: =IF(D37<>"-", IF(D46>0, D44+(D45/D46),0),"-") -> 3054525 | E47: =IF(E37<>"-", IF(E46>0, E44+(E45/E46),0),"-") -> 2591225 | F47: 2681400 | G47: - | H47: - | I47: - | J47: - | K47: - | L47: - | M47: - | N47: - | O47: - | P47: - | Q47: - | R47: -
B48: Funds needed to improve average current rating by 1% | C48: =SUM(D48:R48) -> 762000 | D48: =IF(D37<>"-", D41*D37/100,"-") -> 278000 | E48: =IF(E37<>"-", E41*E37/100,"-") -> 238000 | F48: 246000 | G48: - | H48: - | I48: - | J48: - | K48: - | L48: - | M48: - | N48: - | O48: - | P48: - | Q48: - | R48: -
B50: Asset-Activity Group #4 | C50: Total | D50: Districts
B51: ='3-Basic Inputs'!B9 -> Highway Lighting | D51: ='3-Basic Inputs'!$I$6 -> District 1 | E51: ='3-Basic Inputs'!$I$7 -> District 2 | F51: ='3-Basic Inputs'!$I$8 -> District 3 | G51: ='3-Basic Inputs'!$I$9 -> District 4 | H51: ='3-Basic Inputs'!$I$10 -> District 5 | I51: ='3-Basic Inputs'!$I$11 -> District 6 | J51: ='3-Basic Inputs'!$I$12 -> District 7 | K51: ='3-Basic Inputs'!$I$13 -> District 8 | L51: ='3-Basic Inputs'!$I$14 -> District 9 | M51: ='3-Basic Inputs'!$I$15 -> District 10 | N51: ='3-Basic Inputs'!$I$16 -> District 11 | O51: ='3-Basic Inputs'!$I$17 -> District 12 | P51: ='3-Basic Inputs'!$I$18 -> District 13 | Q51: ='3-Basic Inputs'!$I$19 -> District 14 | R51: ='3-Basic Inputs'!$I$20 -> District 15
B52: ='3-Basic Inputs'!C9 -> # of Lights | C52: =SUM(D52:R52) -> 273050 | D52: =IF('5-Data-Inputs'!E10>0,'5-Data-Inputs'!E10,"-") -> 176500 | E52: =IF('5-Data-Inputs'!F10>0,'5-Data-Inputs'!F10,"-") -> 56750 | F52: =IF('5-Data-Inputs'!G10>0,'5-Data-Inputs'!G10,"-") -> 39800 | G52: =IF('5-Data-Inputs'!H10>0,'5-Data-Inputs'!H10,"-") -> - | H52: =IF('5-Data-Inputs'!I10>0,'5-Data-Inputs'!I10,"-") -> - | I52: =IF('5-Data-Inputs'!J10>0,'5-Data-Inputs'!J10,"-") -> - | J52: =IF('5-Data-Inputs'!K10>0,'5-Data-Inputs'!K10,"-") -> - | K52: =IF('5-Data-Inputs'!L10>0,'5-Data-Inputs'!L10,"-") -> - | L52: =IF('5-Data-Inputs'!M10>0,'5-Data-Inputs'!M10,"-") -> - | M52: =IF('5-Data-Inputs'!N10>0,'5-Data-Inputs'!N10,"-") -> - | N52: =IF('5-Data-Inputs'!O10>0,'5-Data-Inputs'!O10,"-") -> - | O52: =IF('5-Data-Inputs'!P10>0,'5-Data-Inputs'!P10,"-") -> - | P52: =IF('5-Data-Inputs'!Q10>0,'5-Data-Inputs'!Q10,"-") -> - | Q52: =IF('5-Data-Inputs'!R10>0,'5-Data-Inputs'!R10,"-") -> - | R52: =IF('5-Data-Inputs'!S10>0,'5-Data-Inputs'!S10,"-") -> -
B53: Current Rating | C53: - | D53: =IF(D52<>"-", '5-Data-Inputs'!E31, "-") -> 0.83 | E53: =IF(E52<>"-", '5-Data-Inputs'!F31, "-") -> 0.825 | F53: =IF(F52<>"-", '5-Data-Inputs'!G31, "-") -> 0.82 | G53: =IF(G52<>"-", '5-Data-Inputs'!H31, "-") -> - | H53: =IF(H52<>"-", '5-Data-Inputs'!I31, "-") -> - | I53: =IF(I52<>"-", '5-Data-Inputs'!J31, "-") -> - | J53: =IF(J52<>"-", '5-Data-Inputs'!K31, "-") -> - | K53: =IF(K52<>"-", '5-Data-Inputs'!L31, "-") -> - | L53: =IF(L52<>"-", '5-Data-Inputs'!M31, "-") -> - | M53: =IF(M52<>"-", '5-Data-Inputs'!N31, "-") -> - | N53: =IF(N52<>"-", '5-Data-Inputs'!O31, "-") -> - | O53: =IF(O52<>"-", '5-Data-Inputs'!P31, "-") -> - | P53: =IF(P52<>"-", '5-Data-Inputs'!Q31, "-") -> - | Q53: =IF(Q52<>"-", '5-Data-Inputs'!R31, "-") -> - | R53: =IF(R52<>"-", '5-Data-Inputs'!S31, "-") -> -
B54: Ideal Rating | C54: - | D54: =IF(D52<>"-", '4-Strategy-Inputs'!$D$19,"-") -> 1 | E54: =IF(E52<>"-", '4-Strategy-Inputs'!$D$19,"-") -> 1 | F54: =IF(F52<>"-", '4-Strategy-Inputs'!$D$19,"-") -> 1 | G54: =IF(G52<>"-", '4-Strategy-Inputs'!$D$19,"-") -> - | H54: =IF(H52<>"-", '4-Strategy-Inputs'!$D$19,"-") -> - | I54: =IF(I52<>"-", '4-Strategy-Inputs'!$D$19,"-") -> - | J54: =IF(J52<>"-", '4-Strategy-Inputs'!$D$19,"-") -> - | K54: =IF(K52<>"-", '4-Strategy-Inputs'!$D$19,"-") -> - | L54: =IF(L52<>"-", '4-Strategy-Inputs'!$D$19,"-") -> - | M54: =IF(M52<>"-", '4-Strategy-Inputs'!$D$19,"-") -> - | N54: =IF(N52<>"-", '4-Strategy-Inputs'!$D$19,"-") -> - | O54: =IF(O52<>"-", '4-Strategy-Inputs'!$D$19,"-") -> - | P54: =IF(P52<>"-", '4-Strategy-Inputs'!$D$19,"-") -> - | Q54: =IF(Q52<>"-", '4-Strategy-Inputs'!$D$19,"-") -> - | R54: =IF(R52<>"-", '4-Strategy-Inputs'!$D$19,"-") -> -
B55: Target Rating | C55: - | D55: =IF(D52<>"-", '4-Strategy-Inputs'!$E$19,"-") -> 0.85 | E55: =IF(E52<>"-", '4-Strategy-Inputs'!$E$19,"-") -> 0.85 | F55: =IF(F52<>"-", '4-Strategy-Inputs'!$E$19,"-") -> 0.85 | G55: =IF(G52<>"-", '4-Strategy-Inputs'!$E$19,"-") -> - | H55: =IF(H52<>"-", '4-Strategy-Inputs'!$E$19,"-") -> - | I55: =IF(I52<>"-", '4-Strategy-Inputs'!$E$19,"-") -> - | J55: =IF(J52<>"-", '4-Strategy-Inputs'!$E$19,"-") -> - | K55: =IF(K52<>"-", '4-Strategy-Inputs'!$E$19,"-") -> - | L55: =IF(L52<>"-", '4-Strategy-Inputs'!$E$19,"-") -> - | M55: =IF(M52<>"-", '4-Strategy-Inputs'!$E$19,"-") -> - | N55: =IF(N52<>"-", '4-Strategy-Inputs'!$E$19,"-") -> - | O55: =IF(O52<>"-", '4-Strategy-Inputs'!$E$19,"-") -> - | P55: =IF(P52<>"-", '4-Strategy-Inputs'!$E$19,"-") -> - | Q55: =IF(Q52<>"-", '4-Strategy-Inputs'!$E$19,"-") -> - | R55: =IF(R52<>"-", '4-Strategy-Inputs'!$E$19,"-") -> -
B56: Average Unit Cost $ | C56: - | D56: =IF(D52<>"-", '5-Data-Inputs'!E70,"-") -> 250 | E56: =IF(E52<>"-", '5-Data-Inputs'!F70,"-") -> 250 | F56: =IF(F52<>"-", '5-Data-Inputs'!G70,"-") -> 250 | G56: =IF(G52<>"-", '5-Data-Inputs'!H70,"-") -> - | H56: =IF(H52<>"-", '5-Data-Inputs'!I70,"-") -> - | I56: =IF(I52<>"-", '5-Data-Inputs'!J70,"-") -> - | J56: =IF(J52<>"-", '5-Data-Inputs'!K70,"-") -> - | K56: =IF(K52<>"-", '5-Data-Inputs'!L70,"-") -> - | L56: =IF(L52<>"-", '5-Data-Inputs'!M70,"-") -> - | M56: =IF(M52<>"-", '5-Data-Inputs'!N70,"-") -> - | N56: =IF(N52<>"-", '5-Data-Inputs'!O70,"-") -> - | O56: =IF(O52<>"-", '5-Data-Inputs'!P70,"-") -> - | P56: =IF(P52<>"-", '5-Data-Inputs'!Q70,"-") -> - | Q56: =IF(Q52<>"-", '5-Data-Inputs'!R70,"-") -> - | R56: =IF(R52<>"-", '5-Data-Inputs'!S70,"-") -> -
B57: Deterioration Rate | C57: - | D57: =IF(D52<>"-", '5-Data-Inputs'!E90,"-") -> 0.04 | E57: =IF(E52<>"-", '5-Data-Inputs'!F90,"-") -> 0.04 | F57: =IF(F52<>"-", '5-Data-Inputs'!G90,"-") -> 0.04 | G57: =IF(G52<>"-", '5-Data-Inputs'!H90,"-") -> - | H57: =IF(H52<>"-", '5-Data-Inputs'!I90,"-") -> - | I57: =IF(I52<>"-", '5-Data-Inputs'!J90,"-") -> - | J57: =IF(J52<>"-", '5-Data-Inputs'!K90,"-") -> - | K57: =IF(K52<>"-", '5-Data-Inputs'!L90,"-") -> - | L57: =IF(L52<>"-", '5-Data-Inputs'!M90,"-") -> - | M57: =IF(M52<>"-", '5-Data-Inputs'!N90,"-") -> - | N57: =IF(N52<>"-", '5-Data-Inputs'!O90,"-") -> - | O57: =IF(O52<>"-", '5-Data-Inputs'!P90,"-") -> - | P57: =IF(P52<>"-", '5-Data-Inputs'!Q90,"-") -> - | Q57: =IF(Q52<>"-", '5-Data-Inputs'!R90,"-") -> - | R57: =IF(R52<>"-", '5-Data-Inputs'!S90,"-") -> -
B58: Unconstrained Need | C58: =SUM(D58:R58) -> 11775062.5 | D58: =IF(D52<>"-", (D54-D53)*D56*D52,"-") -> 7501250 | E58: =IF(E52<>"-", (E54-E53)*E56*E52,"-") -> 2482812.5 | F58: 1791000 | G58: - | H58: - | I58: - | J58: - | K58: - | L58: - | M58: - | N58: - | O58: - | P58: - | Q58: - | R58: -
B59: Ave. Annual Deterioration | C59: =SUM(D59:R59) -> 2730500 | D59: =IF(D52<>"-", D57*D52*D56,"-") -> 1765000 | E59: =IF(E52<>"-", E57*E52*E56,"-") -> 567500 | F59: 398000 | G59: - | H59: - | I59: - | J59: - | K59: - | L59: - | M59: - | N59: - | O59: - | P59: - | Q59: - | R59: -
B60: Total needed for Target Rating | C60: =SUM(D60:R60) -> 1535687.5 | D60: =IF(D52<>"-", (D55-D53)*D56*D52,"-") -> 882500 | E60: =IF(E52<>"-", (E55-E53)*E56*E52,"-") -> 354687.5 | F60: 298500 | G60: - | H60: - | I60: - | J60: - | K60: - | L60: - | M60: - | N60: - | O60: - | P60: - | Q60: - | R60: -
B61: Desired Time for Target Rating (Years) | C61: - | D61: =IF(D52<>"-", '4-Strategy-Inputs'!$F$19,"_") -> 4 | E61: =IF(E52<>"-", '4-Strategy-Inputs'!$F$19,"_") -> 4 | F61: =IF(F52<>"-", '4-Strategy-Inputs'!$F$19,"_") -> 4 | G61: =IF(G52<>"-", '4-Strategy-Inputs'!$F$19,"_") -> _ | H61: =IF(H52<>"-", '4-Strategy-Inputs'!$F$19,"_") -> _ | I61: =IF(I52<>"-", '4-Strategy-Inputs'!$F$19,"_") -> _ | J61: =IF(J52<>"-", '4-Strategy-Inputs'!$F$19,"_") -> _ | K61: =IF(K52<>"-", '4-Strategy-Inputs'!$F$19,"_") -> _ | L61: =IF(L52<>"-", '4-Strategy-Inputs'!$F$19,"_") -> _ | M61: =IF(M52<>"-", '4-Strategy-Inputs'!$F$19,"_") -> _ | N61: =IF(N52<>"-", '4-Strategy-Inputs'!$F$19,"_") -> _ | O61: =IF(O52<>"-", '4-Strategy-Inputs'!$F$19,"_") -> _ | P61: =IF(P52<>"-", '4-Strategy-Inputs'!$F$19,"_") -> _ | Q61: =IF(Q52<>"-", '4-Strategy-Inputs'!$F$19,"_") -> _ | R61: =IF(R52<>"-", '4-Strategy-Inputs'!$F$19,"_") -> _
B62: Annual Allocation needed to meet target Ratings and timelines | C62: =SUM(D62:R62) -> 3114421.875 | D62: =IF(D52<>"-", IF(D61>0, D59+(D60/D61),0),"-") -> 1985625 | E62: =IF(E52<>"-", IF(E61>0, E59+(E60/E61),0),"-") -> 656171.875 | F62: 472625 | G62: - | H62: - | I62: - | J62: - | K62: - | L62: - | M62: - | N62: - | O62: - | P62: - | Q62: - | R62: -
B63: Funds needed to improve average current rating by 1% | C63: =SUM(D63:R63) -> 682625 | D63: =IF(D52<>"-", D56*D52/100,"-") -> 441250 | E63: =IF(E52<>"-", E56*E52/100,"-") -> 141875 | F63: 99500 | G63: - | H63: - | I63: - | J63: - | K63: - | L63: - | M63: - | N63: - | O63: - | P63: - | Q63: - | R63: -
B65: Asset-Activity Group #5 | C65: Total | D65: Districts
B66: ='3-Basic Inputs'!B10 -> Guardrail | D66: ='3-Basic Inputs'!$I$6 -> District 1 | E66: ='3-Basic Inputs'!$I$7 -> District 2 | F66: ='3-Basic Inputs'!$I$8 -> District 3 | G66: ='3-Basic Inputs'!$I$9 -> District 4 | H66: ='3-Basic Inputs'!$I$10 -> District 5 | I66: ='3-Basic Inputs'!$I$11 -> District 6 | J66: ='3-Basic Inputs'!$I$12 -> District 7 | K66: ='3-Basic Inputs'!$I$13 -> District 8 | L66: ='3-Basic Inputs'!$I$14 -> District 9 | M66: ='3-Basic Inputs'!$I$15 -> District 10 | N66: ='3-Basic Inputs'!$I$16 -> District 11 | O66: ='3-Basic Inputs'!$I$17 -> District 12 | P66: ='3-Basic Inputs'!$I$18 -> District 13 | Q66: ='3-Basic Inputs'!$I$19 -> District 14 | R66: ='3-Basic Inputs'!$I$20 -> District 15
B67: ='3-Basic Inputs'!C10 -> Miles of Guardrail | C67: =SUM(D67:R67) -> 36580 | D67: =IF('5-Data-Inputs'!E11>0,'5-Data-Inputs'!E11,"-") -> 16380 | E67: =IF('5-Data-Inputs'!F11>0,'5-Data-Inputs'!F11,"-") -> 8590 | F67: =IF('5-Data-Inputs'!G11>0,'5-Data-Inputs'!G11,"-") -> 11610 | G67: =IF('5-Data-Inputs'!H11>0,'5-Data-Inputs'!H11,"-") -> - | H67: =IF('5-Data-Inputs'!I11>0,'5-Data-Inputs'!I11,"-") -> - | I67: =IF('5-Data-Inputs'!J11>0,'5-Data-Inputs'!J11,"-") -> - | J67: =IF('5-Data-Inputs'!K11>0,'5-Data-Inputs'!K11,"-") -> - | K67: =IF('5-Data-Inputs'!L11>0,'5-Data-Inputs'!L11,"-") -> - | L67: =IF('5-Data-Inputs'!M11>0,'5-Data-Inputs'!M11,"-") -> - | M67: =IF('5-Data-Inputs'!N11>0,'5-Data-Inputs'!N11,"-") -> - | N67: =IF('5-Data-Inputs'!O11>0,'5-Data-Inputs'!O11,"-") -> - | O67: =IF('5-Data-Inputs'!P11>0,'5-Data-Inputs'!P11,"-") -> - | P67: =IF('5-Data-Inputs'!Q11>0,'5-Data-Inputs'!Q11,"-") -> - | Q67: =IF('5-Data-Inputs'!R11>0,'5-Data-Inputs'!R11,"-") -> - | R67: =IF('5-Data-Inputs'!S11>0,'5-Data-Inputs'!S11,"-") -> -
B68: Current Rating | C68: - | D68: =IF(D67<>"-",'5-Data-Inputs'!E32,"-") -> 0.75 | E68: =IF(E67<>"-",'5-Data-Inputs'!F32,"-") -> 0.76 | F68: =IF(F67<>"-",'5-Data-Inputs'!G32,"-") -> 0.765 | G68: =IF(G67<>"-",'5-Data-Inputs'!H32,"-") -> - | H68: =IF(H67<>"-",'5-Data-Inputs'!I32,"-") -> - | I68: =IF(I67<>"-",'5-Data-Inputs'!J32,"-") -> - | J68: =IF(J67<>"-",'5-Data-Inputs'!K32,"-") -> - | K68: =IF(K67<>"-",'5-Data-Inputs'!L32,"-") -> - | L68: =IF(L67<>"-",'5-Data-Inputs'!M32,"-") -> - | M68: =IF(M67<>"-",'5-Data-Inputs'!N32,"-") -> - | N68: =IF(N67<>"-",'5-Data-Inputs'!O32,"-") -> - | O68: =IF(O67<>"-",'5-Data-Inputs'!P32,"-") -> - | P68: =IF(P67<>"-",'5-Data-Inputs'!Q32,"-") -> - | Q68: =IF(Q67<>"-",'5-Data-Inputs'!R32,"-") -> - | R68: =IF(R67<>"-",'5-Data-Inputs'!S32,"-") -> -
B69: Ideal Rating | C69: - | D69: =IF(D67<>"-",'4-Strategy-Inputs'!$D$20,"-") -> 1 | E69: =IF(E67<>"-",'4-Strategy-Inputs'!$D$20,"-") -> 1 | F69: =IF(F67<>"-",'4-Strategy-Inputs'!$D$20,"-") -> 1 | G69: =IF(G67<>"-",'4-Strategy-Inputs'!$D$20,"-") -> - | H69: =IF(H67<>"-",'4-Strategy-Inputs'!$D$20,"-") -> - | I69: =IF(I67<>"-",'4-Strategy-Inputs'!$D$20,"-") -> - | J69: =IF(J67<>"-",'4-Strategy-Inputs'!$D$20,"-") -> - | K69: =IF(K67<>"-",'4-Strategy-Inputs'!$D$20,"-") -> - | L69: =IF(L67<>"-",'4-Strategy-Inputs'!$D$20,"-") -> - | M69: =IF(M67<>"-",'4-Strategy-Inputs'!$D$20,"-") -> - | N69: =IF(N67<>"-",'4-Strategy-Inputs'!$D$20,"-") -> - | O69: =IF(O67<>"-",'4-Strategy-Inputs'!$D$20,"-") -> - | P69: =IF(P67<>"-",'4-Strategy-Inputs'!$D$20,"-") -> - | Q69: =IF(Q67<>"-",'4-Strategy-Inputs'!$D$20,"-") -> - | R69: =IF(R67<>"-",'4-Strategy-Inputs'!$D$20,"-") -> -
B70: Target Rating | C70: - | D70: =IF(D67<>"-",'4-Strategy-Inputs'!$E$20,"-") -> 0.8 | E70: =IF(E67<>"-",'4-Strategy-Inputs'!$E$20,"-") -> 0.8 | F70: =IF(F67<>"-",'4-Strategy-Inputs'!$E$20,"-") -> 0.8 | G70: =IF(G67<>"-",'4-Strategy-Inputs'!$E$20,"-") -> - | H70: =IF(H67<>"-",'4-Strategy-Inputs'!$E$20,"-") -> - | I70: =IF(I67<>"-",'4-Strategy-Inputs'!$E$20,"-") -> - | J70: =IF(J67<>"-",'4-Strategy-Inputs'!$E$20,"-") -> - | K70: =IF(K67<>"-",'4-Strategy-Inputs'!$E$20,"-") -> - | L70: =IF(L67<>"-",'4-Strategy-Inputs'!$E$20,"-") -> - | M70: =IF(M67<>"-",'4-Strategy-Inputs'!$E$20,"-") -> - | N70: =IF(N67<>"-",'4-Strategy-Inputs'!$E$20,"-") -> - | O70: =IF(O67<>"-",'4-Strategy-Inputs'!$E$20,"-") -> - | P70: =IF(P67<>"-",'4-Strategy-Inputs'!$E$20,"-") -> - | Q70: =IF(Q67<>"-",'4-Strategy-Inputs'!$E$20,"-") -> - | R70: =IF(R67<>"-",'4-Strategy-Inputs'!$E$20,"-") -> -
B71: Average Unit Cost $ | C71: - | D71: =IF(D67<>"-",'5-Data-Inputs'!E71,"-") -> 1000 | E71: =IF(E67<>"-",'5-Data-Inputs'!F71,"-") -> 1000 | F71: =IF(F67<>"-",'5-Data-Inputs'!G71,"-") -> 1000 | G71: =IF(G67<>"-",'5-Data-Inputs'!H71,"-") -> - | H71: =IF(H67<>"-",'5-Data-Inputs'!I71,"-") -> - | I71: =IF(I67<>"-",'5-Data-Inputs'!J71,"-") -> - | J71: =IF(J67<>"-",'5-Data-Inputs'!K71,"-") -> - | K71: =IF(K67<>"-",'5-Data-Inputs'!L71,"-") -> - | L71: =IF(L67<>"-",'5-Data-Inputs'!M71,"-") -> - | M71: =IF(M67<>"-",'5-Data-Inputs'!N71,"-") -> - | N71: =IF(N67<>"-",'5-Data-Inputs'!O71,"-") -> - | O71: =IF(O67<>"-",'5-Data-Inputs'!P71,"-") -> - | P71: =IF(P67<>"-",'5-Data-Inputs'!Q71,"-") -> - | Q71: =IF(Q67<>"-",'5-Data-Inputs'!R71,"-") -> - | R71: =IF(R67<>"-",'5-Data-Inputs'!S71,"-") -> -
B72: Deterioration Rate | C72: - | D72: =IF(D67<>"-",'5-Data-Inputs'!E91,"-") -> 0.03 | E72: =IF(E67<>"-",'5-Data-Inputs'!F91,"-") -> 0.03 | F72: =IF(F67<>"-",'5-Data-Inputs'!G91,"-") -> 0.03 | G72: =IF(G67<>"-",'5-Data-Inputs'!H91,"-") -> - | H72: =IF(H67<>"-",'5-Data-Inputs'!I91,"-") -> - | I72: =IF(I67<>"-",'5-Data-Inputs'!J91,"-") -> - | J72: =IF(J67<>"-",'5-Data-Inputs'!K91,"-") -> - | K72: =IF(K67<>"-",'5-Data-Inputs'!L91,"-") -> - | L72: =IF(L67<>"-",'5-Data-Inputs'!M91,"-") -> - | M72: =IF(M67<>"-",'5-Data-Inputs'!N91,"-") -> - | N72: =IF(N67<>"-",'5-Data-Inputs'!O91,"-") -> - | O72: =IF(O67<>"-",'5-Data-Inputs'!P91,"-") -> - | P72: =IF(P67<>"-",'5-Data-Inputs'!Q91,"-") -> - | Q72: =IF(Q67<>"-",'5-Data-Inputs'!R91,"-") -> - | R72: =IF(R67<>"-",'5-Data-Inputs'!S91,"-") -> -
B73: Unconstrained Need | C73: =SUM(D73:R73) -> 8884950 | D73: =IF(D67<>"-",(D69-D68)*D71*D67,"-") -> 4095000 | E73: =IF(E67<>"-",(E69-E68)*E71*E67,"-") -> 2061600 | F73: 2728350 | G73: - | H73: - | I73: - | J73: - | K73: - | L73: - | M73: - | N73: - | O73: - | P73: - | Q73: - | R73: -
B74: Ave. Annual Deterioration | C74: =SUM(D74:R74) -> 1097400 | D74: =IF(D67<>"-",D72*D67*D71,"-") -> 491400 | E74: =IF(E67<>"-",E72*E67*E71,"-") -> 257700 | F74: 348300 | G74: - | H74: - | I74: - | J74: - | K74: - | L74: - | M74: - | N74: - | O74: - | P74: - | Q74: - | R74: -
B75: Total needed for Target Rating | C75: =SUM(D75:R75) -> 1568950 | D75: =IF(D67<>"-",(D70-D68)*D71*D67,"-") -> 819000 | E75: =IF(E67<>"-",(E70-E68)*E71*E67,"-") -> 343600 | F75: 406350 | G75: - | H75: - | I75: - | J75: - | K75: - | L75: - | M75: - | N75: - | O75: - | P75: - | Q75: - | R75: -
B76: Desired Time for Target Rating (Years) | C76: - | D76: =IF(D67<>"-",'4-Strategy-Inputs'!$F$20,"-") -> 4 | E76: =IF(E67<>"-",'4-Strategy-Inputs'!$F$20,"-") -> 4 | F76: =IF(F67<>"-",'4-Strategy-Inputs'!$F$20,"-") -> 4 | G76: =IF(G67<>"-",'4-Strategy-Inputs'!$F$20,"-") -> - | H76: =IF(H67<>"-",'4-Strategy-Inputs'!$F$20,"-") -> - | I76: =IF(I67<>"-",'4-Strategy-Inputs'!$F$20,"-") -> - | J76: =IF(J67<>"-",'4-Strategy-Inputs'!$F$20,"-") -> - | K76: =IF(K67<>"-",'4-Strategy-Inputs'!$F$20,"-") -> - | L76: =IF(L67<>"-",'4-Strategy-Inputs'!$F$20,"-") -> - | M76: =IF(M67<>"-",'4-Strategy-Inputs'!$F$20,"-") -> - | N76: =IF(N67<>"-",'4-Strategy-Inputs'!$F$20,"-") -> - | O76: =IF(O67<>"-",'4-Strategy-Inputs'!$F$20,"-") -> - | P76: =IF(P67<>"-",'4-Strategy-Inputs'!$F$20,"-") -> - | Q76: =IF(Q67<>"-",'4-Strategy-Inputs'!$F$20,"-") -> - | R76: =IF(R67<>"-",'4-Strategy-Inputs'!$F$20,"-") -> -
B77: Annual Allocation needed to meet target Ratings and timelines | C77: =SUM(D77:R77) -> 1489637.5 | D77: =IF(D67<>"-",IF(D76>0, D74+(D75/D76),0),"-") -> 696150 | E77: =IF(E67<>"-",IF(E76>0, E74+(E75/E76),0),"-") -> 343600 | F77: 449887.5 | G77: - | H77: - | I77: - | J77: - | K77: - | L77: - | M77: - | N77: - | O77: - | P77: - | Q77: - | R77: -
B78: Funds needed to improve average current rating by 1% | C78: =SUM(D78:R78) -> 365800 | D78: =IF(D67<>"-",D71*D67/100,"-") -> 163800 | E78: =IF(E67<>"-",E71*E67/100,"-") -> 85900 | F78: 116100 | G78: - | H78: - | I78: - | J78: - | K78: - | L78: - | M78: - | N78: - | O78: - | P78: - | Q78: - | R78: -
B80: Asset-Activity Group #6 | C80: Total | D80: Districts
B81: ='3-Basic Inputs'!B11 -> Weigh Stations | D81: ='3-Basic Inputs'!$I$6 -> District 1 | E81: ='3-Basic Inputs'!$I$7 -> District 2 | F81: ='3-Basic Inputs'!$I$8 -> District 3 | G81: ='3-Basic Inputs'!$I$9 -> District 4 | H81: ='3-Basic Inputs'!$I$10 -> District 5 | I81: ='3-Basic Inputs'!$I$11 -> District 6 | J81: ='3-Basic Inputs'!$I$12 -> District 7 | K81: ='3-Basic Inputs'!$I$13 -> District 8 | L81: ='3-Basic Inputs'!$I$14 -> District 9 | M81: ='3-Basic Inputs'!$I$15 -> District 10 | N81: ='3-Basic Inputs'!$I$16 -> District 11 | O81: ='3-Basic Inputs'!$I$17 -> District 12 | P81: ='3-Basic Inputs'!$I$18 -> District 13 | Q81: ='3-Basic Inputs'!$I$19 -> District 14 | R81: ='3-Basic Inputs'!$I$20 -> District 15
B82: ='3-Basic Inputs'!C11 -> # of Stations | C82: =SUM(D82:R82) -> 113 | D82: =IF('5-Data-Inputs'!E12>0,'5-Data-Inputs'!E12,"-") -> 48 | E82: =IF('5-Data-Inputs'!F12>0,'5-Data-Inputs'!F12,"-") -> 31 | F82: =IF('5-Data-Inputs'!G12>0,'5-Data-Inputs'!G12,"-") -> 34 | G82: =IF('5-Data-Inputs'!H12>0,'5-Data-Inputs'!H12,"-") -> - | H82: =IF('5-Data-Inputs'!I12>0,'5-Data-Inputs'!I12,"-") -> - | I82: =IF('5-Data-Inputs'!J12>0,'5-Data-Inputs'!J12,"-") -> - | J82: =IF('5-Data-Inputs'!K12>0,'5-Data-Inputs'!K12,"-") -> - | K82: =IF('5-Data-Inputs'!L12>0,'5-Data-Inputs'!L12,"-") -> - | L82: =IF('5-Data-Inputs'!M12>0,'5-Data-Inputs'!M12,"-") -> - | M82: =IF('5-Data-Inputs'!N12>0,'5-Data-Inputs'!N12,"-") -> - | N82: =IF('5-Data-Inputs'!O12>0,'5-Data-Inputs'!O12,"-") -> - | O82: =IF('5-Data-Inputs'!P12>0,'5-Data-Inputs'!P12,"-") -> - | P82: =IF('5-Data-Inputs'!Q12>0,'5-Data-Inputs'!Q12,"-") -> - | Q82: =IF('5-Data-Inputs'!R12>0,'5-Data-Inputs'!R12,"-") -> - | R82: =IF('5-Data-Inputs'!S12>0,'5-Data-Inputs'!S12,"-") -> -
B83: Current Rating | C83: - | D83: =IF(D82<>"-", '5-Data-Inputs'!E33,"-") -> 0.78 | E83: =IF(E82<>"-", '5-Data-Inputs'!F33,"-") -> 0.765 | F83: =IF(F82<>"-", '5-Data-Inputs'!G33,"-") -> 0.785 | G83: =IF(G82<>"-", '5-Data-Inputs'!H33,"-") -> - | H83: =IF(H82<>"-", '5-Data-Inputs'!I33,"-") -> - | I83: =IF(I82<>"-", '5-Data-Inputs'!J33,"-") -> - | J83: =IF(J82<>"-", '5-Data-Inputs'!K33,"-") -> - | K83: =IF(K82<>"-", '5-Data-Inputs'!L33,"-") -> - | L83: =IF(L82<>"-", '5-Data-Inputs'!M33,"-") -> - | M83: =IF(M82<>"-", '5-Data-Inputs'!N33,"-") -> - | N83: =IF(N82<>"-", '5-Data-Inputs'!O33,"-") -> - | O83: =IF(O82<>"-", '5-Data-Inputs'!P33,"-") -> - | P83: =IF(P82<>"-", '5-Data-Inputs'!Q33,"-") -> - | Q83: =IF(Q82<>"-", '5-Data-Inputs'!R33,"-") -> - | R83: =IF(R82<>"-", '5-Data-Inputs'!S33,"-") -> -
B84: Ideal Rating | C84: - | D84: =IF(D82<>"-", '4-Strategy-Inputs'!$D$21,"-") -> 1 | E84: =IF(E82<>"-", '4-Strategy-Inputs'!$D$21,"-") -> 1 | F84: =IF(F82<>"-", '4-Strategy-Inputs'!$D$21,"-") -> 1 | G84: =IF(G82<>"-", '4-Strategy-Inputs'!$D$21,"-") -> - | H84: =IF(H82<>"-", '4-Strategy-Inputs'!$D$21,"-") -> - | I84: =IF(I82<>"-", '4-Strategy-Inputs'!$D$21,"-") -> - | J84: =IF(J82<>"-", '4-Strategy-Inputs'!$D$21,"-") -> - | K84: =IF(K82<>"-", '4-Strategy-Inputs'!$D$21,"-") -> - | L84: =IF(L82<>"-", '4-Strategy-Inputs'!$D$21,"-") -> - | M84: =IF(M82<>"-", '4-Strategy-Inputs'!$D$21,"-") -> - | N84: =IF(N82<>"-", '4-Strategy-Inputs'!$D$21,"-") -> - | O84: =IF(O82<>"-", '4-Strategy-Inputs'!$D$21,"-") -> - | P84: =IF(P82<>"-", '4-Strategy-Inputs'!$D$21,"-") -> - | Q84: =IF(Q82<>"-", '4-Strategy-Inputs'!$D$21,"-") -> - | R84: =IF(R82<>"-", '4-Strategy-Inputs'!$D$21,"-") -> -
B85: Target Rating | C85: - | D85: =IF(D82<>"-", '4-Strategy-Inputs'!$E$21,"-") -> 0.8 | E85: =IF(E82<>"-", '4-Strategy-Inputs'!$E$21,"-") -> 0.8 | F85: =IF(F82<>"-", '4-Strategy-Inputs'!$E$21,"-") -> 0.8 | G85: =IF(G82<>"-", '4-Strategy-Inputs'!$E$21,"-") -> - | H85: =IF(H82<>"-", '4-Strategy-Inputs'!$E$21,"-") -> - | I85: =IF(I82<>"-", '4-Strategy-Inputs'!$E$21,"-") -> - | J85: =IF(J82<>"-", '4-Strategy-Inputs'!$E$21,"-") -> - | K85: =IF(K82<>"-", '4-Strategy-Inputs'!$E$21,"-") -> - | L85: =IF(L82<>"-", '4-Strategy-Inputs'!$E$21,"-") -> - | M85: =IF(M82<>"-", '4-Strategy-Inputs'!$E$21,"-") -> - | N85: =IF(N82<>"-", '4-Strategy-Inputs'!$E$21,"-") -> - | O85: =IF(O82<>"-", '4-Strategy-Inputs'!$E$21,"-") -> - | P85: =IF(P82<>"-", '4-Strategy-Inputs'!$E$21,"-") -> - | Q85: =IF(Q82<>"-", '4-Strategy-Inputs'!$E$21,"-") -> - | R85: =IF(R82<>"-", '4-Strategy-Inputs'!$E$21,"-") -> -
B86: Average Unit Cost $ | C86: - | D86: =IF(D82<>"-", '5-Data-Inputs'!E72,"-") -> 50000 | E86: =IF(E82<>"-", '5-Data-Inputs'!F72,"-") -> 50000 | F86: =IF(F82<>"-", '5-Data-Inputs'!G72,"-") -> 50000 | G86: =IF(G82<>"-", '5-Data-Inputs'!H72,"-") -> - | H86: =IF(H82<>"-", '5-Data-Inputs'!I72,"-") -> - | I86: =IF(I82<>"-", '5-Data-Inputs'!J72,"-") -> - | J86: =IF(J82<>"-", '5-Data-Inputs'!K72,"-") -> - | K86: =IF(K82<>"-", '5-Data-Inputs'!L72,"-") -> - | L86: =IF(L82<>"-", '5-Data-Inputs'!M72,"-") -> - | M86: =IF(M82<>"-", '5-Data-Inputs'!N72,"-") -> - | N86: =IF(N82<>"-", '5-Data-Inputs'!O72,"-") -> - | O86: =IF(O82<>"-", '5-Data-Inputs'!P72,"-") -> - | P86: =IF(P82<>"-", '5-Data-Inputs'!Q72,"-") -> - | Q86: =IF(Q82<>"-", '5-Data-Inputs'!R72,"-") -> - | R86: =IF(R82<>"-", '5-Data-Inputs'!S72,"-") -> -
B87: Deterioration Rate | C87: - | D87: =IF(D82<>"-", '5-Data-Inputs'!E92,"-") -> 0.02 | E87: =IF(E82<>"-", '5-Data-Inputs'!F92,"-") -> 0.02 | F87: =IF(F82<>"-", '5-Data-Inputs'!G92,"-") -> 0.02 | G87: =IF(G82<>"-", '5-Data-Inputs'!H92,"-") -> - | H87: =IF(H82<>"-", '5-Data-Inputs'!I92,"-") -> - | I87: =IF(I82<>"-", '5-Data-Inputs'!J92,"-") -> - | J87: =IF(J82<>"-", '5-Data-Inputs'!K92,"-") -> - | K87: =IF(K82<>"-", '5-Data-Inputs'!L92,"-") -> - | L87: =IF(L82<>"-", '5-Data-Inputs'!M92,"-") -> - | M87: =IF(M82<>"-", '5-Data-Inputs'!N92,"-") -> - | N87: =IF(N82<>"-", '5-Data-Inputs'!O92,"-") -> - | O87: =IF(O82<>"-", '5-Data-Inputs'!P92,"-") -> - | P87: =IF(P82<>"-", '5-Data-Inputs'!Q92,"-") -> - | Q87: =IF(Q82<>"-", '5-Data-Inputs'!R92,"-") -> - | R87: =IF(R82<>"-", '5-Data-Inputs'!S92,"-") -> -
B88: Unconstrained Need | C88: =SUM(D88:R88) -> 1257750 | D88: =IF(D82<>"-", (D84-D83)*D86*D82,"-") -> 528000 | E88: =IF(E82<>"-", (E84-E83)*E86*E82,"-") -> 364250 | F88: 365500 | G88: - | H88: - | I88: - | J88: - | K88: - | L88: - | M88: - | N88: - | O88: - | P88: - | Q88: - | R88: -
B89: Ave. Annual Deterioration | C89: =SUM(D89:R89) -> 113000 | D89: =IF(D82<>"-", D87*D82*D86,"-") -> 48000 | E89: =IF(E82<>"-", E87*E82*E86,"-") -> 31000 | F89: 34000 | G89: - | H89: - | I89: - | J89: - | K89: - | L89: - | M89: - | N89: - | O89: - | P89: - | Q89: - | R89: -
B90: Total needed for Target Rating | C90: =SUM(D90:R90) -> 127750 | D90: =IF(D82<>"-", (D85-D83)*D86*D82,"-") -> 48000 | E90: =IF(E82<>"-", (E85-E83)*E86*E82,"-") -> 54250 | F90: 25500 | G90: - | H90: - | I90: - | J90: - | K90: - | L90: - | M90: - | N90: - | O90: - | P90: - | Q90: - | R90: -
B91: Desired Time for Target Rating (Years) | C91: - | D91: =IF(D82<>"-", '4-Strategy-Inputs'!$F$21,"-") -> 4 | E91: =IF(E82<>"-", '4-Strategy-Inputs'!$F$21,"-") -> 4 | F91: =IF(F82<>"-", '4-Strategy-Inputs'!$F$21,"-") -> 4 | G91: =IF(G82<>"-", '4-Strategy-Inputs'!$F$21,"-") -> - | H91: =IF(H82<>"-", '4-Strategy-Inputs'!$F$21,"-") -> - | I91: =IF(I82<>"-", '4-Strategy-Inputs'!$F$21,"-") -> - | J91: =IF(J82<>"-", '4-Strategy-Inputs'!$F$21,"-") -> - | K91: =IF(K82<>"-", '4-Strategy-Inputs'!$F$21,"-") -> - | L91: =IF(L82<>"-", '4-Strategy-Inputs'!$F$21,"-") -> - | M91: =IF(M82<>"-", '4-Strategy-Inputs'!$F$21,"-") -> - | N91: =IF(N82<>"-", '4-Strategy-Inputs'!$F$21,"-") -> - | O91: =IF(O82<>"-", '4-Strategy-Inputs'!$F$21,"-") -> - | P91: =IF(P82<>"-", '4-Strategy-Inputs'!$F$21,"-") -> - | Q91: =IF(Q82<>"-", '4-Strategy-Inputs'!$F$21,"-") -> - | R91: =IF(R82<>"-", '4-Strategy-Inputs'!$F$21,"-") -> -
B92: Annual Allocation needed to meet target Ratings and timelines | C92: =SUM(D92:R92) -> 144937.5 | D92: =IF(D82<>"-", IF(D91>0, D89+(D90/D91),0),"-") -> 60000 | E92: =IF(E82<>"-", IF(E91>0, E89+(E90/E91),0),"-") -> 44562.5 | F92: 40375 | G92: - | H92: - | I92: - | J92: - | K92: - | L92: - | M92: - | N92: - | O92: - | P92: - | Q92: - | R92: -
B93: Funds needed to improve average current rating by 1% | C93: =SUM(D93:R93) -> 56500 | D93: =IF(D82<>"-", D86*D82/100,"-") -> 24000 | E93: =IF(E82<>"-", E86*E82/100,"-") -> 15500 | F93: 17000 | G93: - | H93: - | I93: - | J93: - | K93: - | L93: - | M93: - | N93: - | O93: - | P93: - | Q93: - | R93: -
B95: Asset-Activity Group #7 | C95: Total | D95: Districts
B96: ='3-Basic Inputs'!B12 -> - | D96: ='3-Basic Inputs'!$I$6 -> District 1 | E96: ='3-Basic Inputs'!$I$7 -> District 2 | F96: ='3-Basic Inputs'!$I$8 -> District 3 | G96: ='3-Basic Inputs'!$I$9 -> District 4 | H96: ='3-Basic Inputs'!$I$10 -> District 5 | I96: ='3-Basic Inputs'!$I$11 -> District 6 | J96: ='3-Basic Inputs'!$I$12 -> District 7 | K96: ='3-Basic Inputs'!$I$13 -> District 8 | L96: ='3-Basic Inputs'!$I$14 -> District 9 | M96: ='3-Basic Inputs'!$I$15 -> District 10 | N96: ='3-Basic Inputs'!$I$16 -> District 11 | O96: ='3-Basic Inputs'!$I$17 -> District 12 | P96: ='3-Basic Inputs'!$I$18 -> District 13 | Q96: ='3-Basic Inputs'!$I$19 -> District 14 | R96: ='3-Basic Inputs'!$I$20 -> District 15
B97: ='3-Basic Inputs'!C12 -> - | C97: =SUM(D97:R97) -> 0 | D97: =IF('5-Data-Inputs'!E13>0, '5-Data-Inputs'!E13,"-") -> - | E97: =IF('5-Data-Inputs'!F13>0, '5-Data-Inputs'!F13,"-") -> - | F97: =IF('5-Data-Inputs'!G13>0, '5-Data-Inputs'!G13,"-") -> - | G97: =IF('5-Data-Inputs'!H13>0, '5-Data-Inputs'!H13,"-") -> - | H97: =IF('5-Data-Inputs'!I13>0, '5-Data-Inputs'!I13,"-") -> - | I97: =IF('5-Data-Inputs'!J13>0, '5-Data-Inputs'!J13,"-") -> - | J97: =IF('5-Data-Inputs'!K13>0, '5-Data-Inputs'!K13,"-") -> - | K97: =IF('5-Data-Inputs'!L13>0, '5-Data-Inputs'!L13,"-") -> - | L97: =IF('5-Data-Inputs'!M13>0, '5-Data-Inputs'!M13,"-") -> - | M97: =IF('5-Data-Inputs'!N13>0, '5-Data-Inputs'!N13,"-") -> - | N97: =IF('5-Data-Inputs'!O13>0, '5-Data-Inputs'!O13,"-") -> - | O97: =IF('5-Data-Inputs'!P13>0, '5-Data-Inputs'!P13,"-") -> - | P97: =IF('5-Data-Inputs'!Q13>0, '5-Data-Inputs'!Q13,"-") -> - | Q97: =IF('5-Data-Inputs'!R13>0, '5-Data-Inputs'!R13,"-") -> - | R97: =IF('5-Data-Inputs'!S13>0, '5-Data-Inputs'!S13,"-") -> -
B98: Current Rating | C98: - | D98: =IF(D97<>"-", '5-Data-Inputs'!E34, "-") -> - | E98: =IF(E97<>"-", '5-Data-Inputs'!F34, "-") -> - | F98: =IF(F97<>"-", '5-Data-Inputs'!G34, "-") -> - | G98: =IF(G97<>"-", '5-Data-Inputs'!H34, "-") -> - | H98: =IF(H97<>"-", '5-Data-Inputs'!I34, "-") -> - | I98: =IF(I97<>"-", '5-Data-Inputs'!J34, "-") -> - | J98: =IF(J97<>"-", '5-Data-Inputs'!K34, "-") -> - | K98: =IF(K97<>"-", '5-Data-Inputs'!L34, "-") -> - | L98: =IF(L97<>"-", '5-Data-Inputs'!M34, "-") -> - | M98: =IF(M97<>"-", '5-Data-Inputs'!N34, "-") -> - | N98: =IF(N97<>"-", '5-Data-Inputs'!O34, "-") -> - | O98: =IF(O97<>"-", '5-Data-Inputs'!P34, "-") -> - | P98: =IF(P97<>"-", '5-Data-Inputs'!Q34, "-") -> - | Q98: =IF(Q97<>"-", '5-Data-Inputs'!R34, "-") -> - | R98: =IF(R97<>"-", '5-Data-Inputs'!S34, "-") -> -
B99: Ideal Rating | C99: - | D99: =IF(D97<>"-", '4-Strategy-Inputs'!$D$22,"-") -> - | E99: =IF(E97<>"-", '4-Strategy-Inputs'!$D$22,"-") -> - | F99: =IF(F97<>"-", '4-Strategy-Inputs'!$D$22,"-") -> - | G99: =IF(G97<>"-", '4-Strategy-Inputs'!$D$22,"-") -> - | H99: =IF(H97<>"-", '4-Strategy-Inputs'!$D$22,"-") -> - | I99: =IF(I97<>"-", '4-Strategy-Inputs'!$D$22,"-") -> - | J99: =IF(J97<>"-", '4-Strategy-Inputs'!$D$22,"-") -> - | K99: =IF(K97<>"-", '4-Strategy-Inputs'!$D$22,"-") -> - | L99: =IF(L97<>"-", '4-Strategy-Inputs'!$D$22,"-") -> - | M99: =IF(M97<>"-", '4-Strategy-Inputs'!$D$22,"-") -> - | N99: =IF(N97<>"-", '4-Strategy-Inputs'!$D$22,"-") -> - | O99: =IF(O97<>"-", '4-Strategy-Inputs'!$D$22,"-") -> - | P99: =IF(P97<>"-", '4-Strategy-Inputs'!$D$22,"-") -> - | Q99: =IF(Q97<>"-", '4-Strategy-Inputs'!$D$22,"-") -> - | R99: =IF(R97<>"-", '4-Strategy-Inputs'!$D$22,"-") -> -
B100: Target Rating | C100: - | D100: =IF(D97<>"-", '4-Strategy-Inputs'!$E$22,"-") -> - | E100: =IF(E97<>"-", '4-Strategy-Inputs'!$E$22,"-") -> - | F100: =IF(F97<>"-", '4-Strategy-Inputs'!$E$22,"-") -> - | G100: =IF(G97<>"-", '4-Strategy-Inputs'!$E$22,"-") -> - | H100: =IF(H97<>"-", '4-Strategy-Inputs'!$E$22,"-") -> - | I100: =IF(I97<>"-", '4-Strategy-Inputs'!$E$22,"-") -> - | J100: =IF(J97<>"-", '4-Strategy-Inputs'!$E$22,"-") -> - | K100: =IF(K97<>"-", '4-Strategy-Inputs'!$E$22,"-") -> - | L100: =IF(L97<>"-", '4-Strategy-Inputs'!$E$22,"-") -> - | M100: =IF(M97<>"-", '4-Strategy-Inputs'!$E$22,"-") -> - | N100: =IF(N97<>"-", '4-Strategy-Inputs'!$E$22,"-") -> - | O100: =IF(O97<>"-", '4-Strategy-Inputs'!$E$22,"-") -> - | P100: =IF(P97<>"-", '4-Strategy-Inputs'!$E$22,"-") -> - | Q100: =IF(Q97<>"-", '4-Strategy-Inputs'!$E$22,"-") -> - | R100: =IF(R97<>"-", '4-Strategy-Inputs'!$E$22,"-") -> -
B101: Average Unit Cost $ | C101: - | D101: =IF(D97<>"-", '5-Data-Inputs'!E73,"-") -> - | E101: =IF(E97<>"-", '5-Data-Inputs'!F73,"-") -> - | F101: =IF(F97<>"-", '5-Data-Inputs'!G73,"-") -> - | G101: =IF(G97<>"-", '5-Data-Inputs'!H73,"-") -> - | H101: =IF(H97<>"-", '5-Data-Inputs'!I73,"-") -> - | I101: =IF(I97<>"-", '5-Data-Inputs'!J73,"-") -> - | J101: =IF(J97<>"-", '5-Data-Inputs'!K73,"-") -> - | K101: =IF(K97<>"-", '5-Data-Inputs'!L73,"-") -> - | L101: =IF(L97<>"-", '5-Data-Inputs'!M73,"-") -> - | M101: =IF(M97<>"-", '5-Data-Inputs'!N73,"-") -> - | N101: =IF(N97<>"-", '5-Data-Inputs'!O73,"-") -> - | O101: =IF(O97<>"-", '5-Data-Inputs'!P73,"-") -> - | P101: =IF(P97<>"-", '5-Data-Inputs'!Q73,"-") -> - | Q101: =IF(Q97<>"-", '5-Data-Inputs'!R73,"-") -> - | R101: =IF(R97<>"-", '5-Data-Inputs'!S73,"-") -> -
B102: Deterioration Rate | C102: - | D102: =IF(D97<>"-", '5-Data-Inputs'!E93,"-") -> - | E102: =IF(E97<>"-", '5-Data-Inputs'!F93,"-") -> - | F102: =IF(F97<>"-", '5-Data-Inputs'!G93,"-") -> - | G102: =IF(G97<>"-", '5-Data-Inputs'!H93,"-") -> - | H102: =IF(H97<>"-", '5-Data-Inputs'!I93,"-") -> - | I102: =IF(I97<>"-", '5-Data-Inputs'!J93,"-") -> - | J102: =IF(J97<>"-", '5-Data-Inputs'!K93,"-") -> - | K102: =IF(K97<>"-", '5-Data-Inputs'!L93,"-") -> - | L102: =IF(L97<>"-", '5-Data-Inputs'!M93,"-") -> - | M102: =IF(M97<>"-", '5-Data-Inputs'!N93,"-") -> - | N102: =IF(N97<>"-", '5-Data-Inputs'!O93,"-") -> - | O102: =IF(O97<>"-", '5-Data-Inputs'!P93,"-") -> - | P102: =IF(P97<>"-", '5-Data-Inputs'!Q93,"-") -> - | Q102: =IF(Q97<>"-", '5-Data-Inputs'!R93,"-") -> - | R102: =IF(R97<>"-", '5-Data-Inputs'!S93,"-") -> -
B103: Unconstrained Need | C103: =SUM(D103:R103) -> 0 | D103: =IF(D97<>"-", (D99-D98)*D101*D97,"-") -> - | E103: =IF(E97<>"-", (E99-E98)*E101*E97,"-") -> - | F103: - | G103: - | H103: - | I103: - | J103: - | K103: - | L103: - | M103: - | N103: - | O103: - | P103: - | Q103: - | R103: -
B104: Ave. Annual Deterioration | C104: =SUM(D104:R104) -> 0 | D104: =IF(D97<>"-", D102*D97*D101,"-") -> - | E104: =IF(E97<>"-", E102*E97*E101,"-") -> - | F104: - | G104: - | H104: - | I104: - | J104: - | K104: - | L104: - | M104: - | N104: - | O104: - | P104: - | Q104: - | R104: -
B105: Total needed for Target Rating | C105: =SUM(D105:R105) -> 0 | D105: =IF(D97<>"-", (D100-D98)*D101*D97,"-") -> - | E105: =IF(E97<>"-", (E100-E98)*E101*E97,"-") -> - | F105: - | G105: - | H105: - | I105: - | J105: - | K105: - | L105: - | M105: - | N105: - | O105: - | P105: - | Q105: - | R105: -
B106: Desired Time for Target Rating (Years) | C106: - | D106: =IF(D97<>"-", '4-Strategy-Inputs'!$F$22,"-") -> - | E106: =IF(E97<>"-", '4-Strategy-Inputs'!$F$22,"-") -> - | F106: =IF(F97<>"-", '4-Strategy-Inputs'!$F$22,"-") -> - | G106: =IF(G97<>"-", '4-Strategy-Inputs'!$F$22,"-") -> - | H106: =IF(H97<>"-", '4-Strategy-Inputs'!$F$22,"-") -> - | I106: =IF(I97<>"-", '4-Strategy-Inputs'!$F$22,"-") -> - | J106: =IF(J97<>"-", '4-Strategy-Inputs'!$F$22,"-") -> - | K106: =IF(K97<>"-", '4-Strategy-Inputs'!$F$22,"-") -> - | L106: =IF(L97<>"-", '4-Strategy-Inputs'!$F$22,"-") -> - | M106: =IF(M97<>"-", '4-Strategy-Inputs'!$F$22,"-") -> - | N106: =IF(N97<>"-", '4-Strategy-Inputs'!$F$22,"-") -> - | O106: =IF(O97<>"-", '4-Strategy-Inputs'!$F$22,"-") -> - | P106: =IF(P97<>"-", '4-Strategy-Inputs'!$F$22,"-") -> - | Q106: =IF(Q97<>"-", '4-Strategy-Inputs'!$F$22,"-") -> - | R106: =IF(R97<>"-", '4-Strategy-Inputs'!$F$22,"-") -> -
B107: Annual Allocation needed to meet target Ratings and timelines | C107: =SUM(D107:R107) -> 0 | D107: =IF(D97<>"-", IF(D106>0, D104+(D105/D106),0),"-") -> - | E107: =IF(E97<>"-", IF(E106>0, E104+(E105/E106),0),"-") -> - | F107: - | G107: - | H107: - | I107: - | J107: - | K107: - | L107: - | M107: - | N107: - | O107: - | P107: - | Q107: - | R107: -
B108: Funds needed to improve average current rating by 1% | C108: =SUM(D108:R108) -> 0 | D108: =IF(D97<>"-", D101*D97/100,"-") -> - | E108: =IF(E97<>"-", E101*E97/100,"-") -> - | F108: - | G108: - | H108: - | I108: - | J108: - | K108: - | L108: - | M108: - | N108: - | O108: - | P108: - | Q108: - | R108: -
B110: Asset-Activity Group #8 | C110: Total | D110: Districts
B111: ='3-Basic Inputs'!B13 -> - | D111: ='3-Basic Inputs'!$I$6 -> District 1 | E111: ='3-Basic Inputs'!$I$7 -> District 2 | F111: ='3-Basic Inputs'!$I$8 -> District 3 | G111: ='3-Basic Inputs'!$I$9 -> District 4 | H111: ='3-Basic Inputs'!$I$10 -> District 5 | I111: ='3-Basic Inputs'!$I$11 -> District 6 | J111: ='3-Basic Inputs'!$I$12 -> District 7 | K111: ='3-Basic Inputs'!$I$13 -> District 8 | L111: ='3-Basic Inputs'!$I$14 -> District 9 | M111: ='3-Basic Inputs'!$I$15 -> District 10 | N111: ='3-Basic Inputs'!$I$16 -> District 11 | O111: ='3-Basic Inputs'!$I$17 -> District 12 | P111: ='3-Basic Inputs'!$I$18 -> District 13 | Q111: ='3-Basic Inputs'!$I$19 -> District 14 | R111: ='3-Basic Inputs'!$I$20 -> District 15
B112: ='3-Basic Inputs'!C13 -> - | C112: =SUM(D112:R112) -> 0 | D112: =IF('5-Data-Inputs'!E14>0,'5-Data-Inputs'!E14,"-") -> - | E112: =IF('5-Data-Inputs'!F14>0,'5-Data-Inputs'!F14,"-") -> - | F112: =IF('5-Data-Inputs'!G14>0,'5-Data-Inputs'!G14,"-") -> - | G112: =IF('5-Data-Inputs'!H14>0,'5-Data-Inputs'!H14,"-") -> - | H112: =IF('5-Data-Inputs'!I14>0,'5-Data-Inputs'!I14,"-") -> - | I112: =IF('5-Data-Inputs'!J14>0,'5-Data-Inputs'!J14,"-") -> - | J112: =IF('5-Data-Inputs'!K14>0,'5-Data-Inputs'!K14,"-") -> - | K112: =IF('5-Data-Inputs'!L14>0,'5-Data-Inputs'!L14,"-") -> - | L112: =IF('5-Data-Inputs'!M14>0,'5-Data-Inputs'!M14,"-") -> - | M112: =IF('5-Data-Inputs'!N14>0,'5-Data-Inputs'!N14,"-") -> - | N112: =IF('5-Data-Inputs'!O14>0,'5-Data-Inputs'!O14,"-") -> - | O112: =IF('5-Data-Inputs'!P14>0,'5-Data-Inputs'!P14,"-") -> - | P112: =IF('5-Data-Inputs'!Q14>0,'5-Data-Inputs'!Q14,"-") -> - | Q112: =IF('5-Data-Inputs'!R14>0,'5-Data-Inputs'!R14,"-") -> - | R112: =IF('5-Data-Inputs'!S14>0,'5-Data-Inputs'!S14,"-") -> -
B113: Current Rating | C113: - | D113: =IF(D112<>"-", '5-Data-Inputs'!E35,"-") -> - | E113: =IF(E112<>"-", '5-Data-Inputs'!F35,"-") -> - | F113: =IF(F112<>"-", '5-Data-Inputs'!G35,"-") -> - | G113: =IF(G112<>"-", '5-Data-Inputs'!H35,"-") -> - | H113: =IF(H112<>"-", '5-Data-Inputs'!I35,"-") -> - | I113: =IF(I112<>"-", '5-Data-Inputs'!J35,"-") -> - | J113: =IF(J112<>"-", '5-Data-Inputs'!K35,"-") -> - | K113: =IF(K112<>"-", '5-Data-Inputs'!L35,"-") -> - | L113: =IF(L112<>"-", '5-Data-Inputs'!M35,"-") -> - | M113: =IF(M112<>"-", '5-Data-Inputs'!N35,"-") -> - | N113: =IF(N112<>"-", '5-Data-Inputs'!O35,"-") -> - | O113: =IF(O112<>"-", '5-Data-Inputs'!P35,"-") -> - | P113: =IF(P112<>"-", '5-Data-Inputs'!Q35,"-") -> - | Q113: =IF(Q112<>"-", '5-Data-Inputs'!R35,"-") -> - | R113: =IF(R112<>"-", '5-Data-Inputs'!S35,"-") -> -
B114: Ideal Rating | C114: - | D114: =IF(D112<>"-",'4-Strategy-Inputs'!$D$23,"-") -> - | E114: =IF(E112<>"-",'4-Strategy-Inputs'!$D$23,"-") -> - | F114: =IF(F112<>"-",'4-Strategy-Inputs'!$D$23,"-") -> - | G114: =IF(G112<>"-",'4-Strategy-Inputs'!$D$23,"-") -> - | H114: =IF(H112<>"-",'4-Strategy-Inputs'!$D$23,"-") -> - | I114: =IF(I112<>"-",'4-Strategy-Inputs'!$D$23,"-") -> - | J114: =IF(J112<>"-",'4-Strategy-Inputs'!$D$23,"-") -> - | K114: =IF(K112<>"-",'4-Strategy-Inputs'!$D$23,"-") -> - | L114: =IF(L112<>"-",'4-Strategy-Inputs'!$D$23,"-") -> - | M114: =IF(M112<>"-",'4-Strategy-Inputs'!$D$23,"-") -> - | N114: =IF(N112<>"-",'4-Strategy-Inputs'!$D$23,"-") -> - | O114: =IF(O112<>"-",'4-Strategy-Inputs'!$D$23,"-") -> - | P114: =IF(P112<>"-",'4-Strategy-Inputs'!$D$23,"-") -> - | Q114: =IF(Q112<>"-",'4-Strategy-Inputs'!$D$23,"-") -> - | R114: =IF(R112<>"-",'4-Strategy-Inputs'!$D$23,"-") -> -
B115: Target Rating | C115: - | D115: =IF(D112<>"-",'4-Strategy-Inputs'!$E$23,"-") -> - | E115: =IF(E112<>"-",'4-Strategy-Inputs'!$E$23,"-") -> - | F115: =IF(F112<>"-",'4-Strategy-Inputs'!$E$23,"-") -> - | G115: =IF(G112<>"-",'4-Strategy-Inputs'!$E$23,"-") -> - | H115: =IF(H112<>"-",'4-Strategy-Inputs'!$E$23,"-") -> - | I115: =IF(I112<>"-",'4-Strategy-Inputs'!$E$23,"-") -> - | J115: =IF(J112<>"-",'4-Strategy-Inputs'!$E$23,"-") -> - | K115: =IF(K112<>"-",'4-Strategy-Inputs'!$E$23,"-") -> - | L115: =IF(L112<>"-",'4-Strategy-Inputs'!$E$23,"-") -> - | M115: =IF(M112<>"-",'4-Strategy-Inputs'!$E$23,"-") -> - | N115: =IF(N112<>"-",'4-Strategy-Inputs'!$E$23,"-") -> - | O115: =IF(O112<>"-",'4-Strategy-Inputs'!$E$23,"-") -> - | P115: =IF(P112<>"-",'4-Strategy-Inputs'!$E$23,"-") -> - | Q115: =IF(Q112<>"-",'4-Strategy-Inputs'!$E$23,"-") -> - | R115: =IF(R112<>"-",'4-Strategy-Inputs'!$E$23,"-") -> -
B116: Average Unit Cost $ | C116: - | D116: =IF(D112<>"-",'5-Data-Inputs'!E74,"-") -> - | E116: =IF(E112<>"-",'5-Data-Inputs'!F74,"-") -> - | F116: =IF(F112<>"-",'5-Data-Inputs'!G74,"-") -> - | G116: =IF(G112<>"-",'5-Data-Inputs'!H74,"-") -> - | H116: =IF(H112<>"-",'5-Data-Inputs'!I74,"-") -> - | I116: =IF(I112<>"-",'5-Data-Inputs'!J74,"-") -> - | J116: =IF(J112<>"-",'5-Data-Inputs'!K74,"-") -> - | K116: =IF(K112<>"-",'5-Data-Inputs'!L74,"-") -> - | L116: =IF(L112<>"-",'5-Data-Inputs'!M74,"-") -> - | M116: =IF(M112<>"-",'5-Data-Inputs'!N74,"-") -> - | N116: =IF(N112<>"-",'5-Data-Inputs'!O74,"-") -> - | O116: =IF(O112<>"-",'5-Data-Inputs'!P74,"-") -> - | P116: =IF(P112<>"-",'5-Data-Inputs'!Q74,"-") -> - | Q116: =IF(Q112<>"-",'5-Data-Inputs'!R74,"-") -> - | R116: =IF(R112<>"-",'5-Data-Inputs'!S74,"-") -> -
B117: Deterioration Rate | C117: - | D117: =IF(D112<>"-",'5-Data-Inputs'!E94,"-") -> - | E117: =IF(E112<>"-",'5-Data-Inputs'!F94,"-") -> - | F117: =IF(F112<>"-",'5-Data-Inputs'!G94,"-") -> - | G117: =IF(G112<>"-",'5-Data-Inputs'!H94,"-") -> - | H117: =IF(H112<>"-",'5-Data-Inputs'!I94,"-") -> - | I117: =IF(I112<>"-",'5-Data-Inputs'!J94,"-") -> - | J117: =IF(J112<>"-",'5-Data-Inputs'!K94,"-") -> - | K117: =IF(K112<>"-",'5-Data-Inputs'!L94,"-") -> - | L117: =IF(L112<>"-",'5-Data-Inputs'!M94,"-") -> - | M117: =IF(M112<>"-",'5-Data-Inputs'!N94,"-") -> - | N117: =IF(N112<>"-",'5-Data-Inputs'!O94,"-") -> - | O117: =IF(O112<>"-",'5-Data-Inputs'!P94,"-") -> - | P117: =IF(P112<>"-",'5-Data-Inputs'!Q94,"-") -> - | Q117: =IF(Q112<>"-",'5-Data-Inputs'!R94,"-") -> - | R117: =IF(R112<>"-",'5-Data-Inputs'!S94,"-") -> -
B118: Unconstrained Need | C118: =SUM(D118:R118) -> 0 | D118: =IF(D112<>"-",(D114-D113)*D116*D112,"-") -> - | E118: =IF(E112<>"-",(E114-E113)*E116*E112,"-") -> - | F118: - | G118: - | H118: - | I118: - | J118: - | K118: - | L118: - | M118: - | N118: - | O118: - | P118: - | Q118: - | R118: -
B119: Ave. Annual Deterioration | C119: =SUM(D119:R119) -> 0 | D119: =IF(D112<>"-",D117*D112*D116,"-") -> - | E119: =IF(E112<>"-",E117*E112*E116,"-") -> - | F119: - | G119: - | H119: - | I119: - | J119: - | K119: - | L119: - | M119: - | N119: - | O119: - | P119: - | Q119: - | R119: -
B120: Total needed for Target Rating | C120: =SUM(D120:R120) -> 0 | D120: =IF(D112<>"-",(D115-D113)*D116*D112,"-") -> - | E120: =IF(E112<>"-",(E115-E113)*E116*E112,"-") -> - | F120: - | G120: - | H120: - | I120: - | J120: - | K120: - | L120: - | M120: - | N120: - | O120: - | P120: - | Q120: - | R120: -
B121: Desired Time for Target Rating (Years) | C121: - | D121: =IF(D112<>"-",'4-Strategy-Inputs'!$F$23,"-") -> - | E121: =IF(E112<>"-",'4-Strategy-Inputs'!$F$23,"-") -> - | F121: =IF(F112<>"-",'4-Strategy-Inputs'!$F$23,"-") -> - | G121: =IF(G112<>"-",'4-Strategy-Inputs'!$F$23,"-") -> - | H121: =IF(H112<>"-",'4-Strategy-Inputs'!$F$23,"-") -> - | I121: =IF(I112<>"-",'4-Strategy-Inputs'!$F$23,"-") -> - | J121: =IF(J112<>"-",'4-Strategy-Inputs'!$F$23,"-") -> - | K121: =IF(K112<>"-",'4-Strategy-Inputs'!$F$23,"-") -> - | L121: =IF(L112<>"-",'4-Strategy-Inputs'!$F$23,"-") -> - | M121: =IF(M112<>"-",'4-Strategy-Inputs'!$F$23,"-") -> - | N121: =IF(N112<>"-",'4-Strategy-Inputs'!$F$23,"-") -> - | O121: =IF(O112<>"-",'4-Strategy-Inputs'!$F$23,"-") -> - | P121: =IF(P112<>"-",'4-Strategy-Inputs'!$F$23,"-") -> - | Q121: =IF(Q112<>"-",'4-Strategy-Inputs'!$F$23,"-") -> - | R121: =IF(R112<>"-",'4-Strategy-Inputs'!$F$23,"-") -> -
B122: Annual Allocation needed to meet target Ratings and timelines | C122: =SUM(D122:R122) -> 0 | D122: =IF(D112<>"-",IF(D121>0, D119+(D120/D121),0),"-") -> - | E122: =IF(E112<>"-",IF(E121>0, E119+(E120/E121),0),"-") -> - | F122: - | G122: - | H122: - | I122: - | J122: - | K122: - | L122: - | M122: - | N122: - | O122: - | P122: - | Q122: - | R122: -
B123: Funds needed to improve average current rating by 1% | C123: =SUM(D123:R123) -> 0 | D123: =IF(D112<>"-",D116*D112/100,"-") -> - | E123: =IF(E112<>"-",E116*E112/100,"-") -> - | F123: - | G123: - | H123: - | I123: - | J123: - | K123: - | L123: - | M123: - | N123: - | O123: - | P123: - | Q123: - | R123: -
B125: Asset-Activity Group #9 | C125: Total | D125: Districts
B126: ='3-Basic Inputs'!B14 -> - | D126: ='3-Basic Inputs'!$I$6 -> District 1 | E126: ='3-Basic Inputs'!$I$7 -> District 2 | F126: ='3-Basic Inputs'!$I$8 -> District 3 | G126: ='3-Basic Inputs'!$I$9 -> District 4 | H126: ='3-Basic Inputs'!$I$10 -> District 5 | I126: ='3-Basic Inputs'!$I$11 -> District 6 | J126: ='3-Basic Inputs'!$I$12 -> District 7 | K126: ='3-Basic Inputs'!$I$13 -> District 8 | L126: ='3-Basic Inputs'!$I$14 -> District 9 | M126: ='3-Basic Inputs'!$I$15 -> District 10 | N126: ='3-Basic Inputs'!$I$16 -> District 11 | O126: ='3-Basic Inputs'!$I$17 -> District 12 | P126: ='3-Basic Inputs'!$I$18 -> District 13 | Q126: ='3-Basic Inputs'!$I$19 -> District 14 | R126: ='3-Basic Inputs'!$I$20 -> District 15
B127: ='3-Basic Inputs'!C14 -> - | C127: =SUM(D127:R127) -> 0 | D127: =IF('5-Data-Inputs'!E15,'5-Data-Inputs'!E15,"-") -> - | E127: =IF('5-Data-Inputs'!F15,'5-Data-Inputs'!F15,"-") -> - | F127: =IF('5-Data-Inputs'!G15,'5-Data-Inputs'!G15,"-") -> - | G127: =IF('5-Data-Inputs'!H15,'5-Data-Inputs'!H15,"-") -> - | H127: =IF('5-Data-Inputs'!I15,'5-Data-Inputs'!I15,"-") -> - | I127: =IF('5-Data-Inputs'!J15,'5-Data-Inputs'!J15,"-") -> - | J127: =IF('5-Data-Inputs'!K15,'5-Data-Inputs'!K15,"-") -> - | K127: =IF('5-Data-Inputs'!L15,'5-Data-Inputs'!L15,"-") -> - | L127: =IF('5-Data-Inputs'!M15,'5-Data-Inputs'!M15,"-") -> - | M127: =IF('5-Data-Inputs'!N15,'5-Data-Inputs'!N15,"-") -> - | N127: =IF('5-Data-Inputs'!O15,'5-Data-Inputs'!O15,"-") -> - | O127: =IF('5-Data-Inputs'!P15,'5-Data-Inputs'!P15,"-") -> - | P127: =IF('5-Data-Inputs'!Q15,'5-Data-Inputs'!Q15,"-") -> - | Q127: =IF('5-Data-Inputs'!R15,'5-Data-Inputs'!R15,"-") -> - | R127: =IF('5-Data-Inputs'!S15,'5-Data-Inputs'!S15,"-") -> -
B128: Current Rating | C128: - | D128: =IF(D127<>"-",'5-Data-Inputs'!E36,"-") -> - | E128: =IF(E127<>"-",'5-Data-Inputs'!F36,"-") -> - | F128: =IF(F127<>"-",'5-Data-Inputs'!G36,"-") -> - | G128: =IF(G127<>"-",'5-Data-Inputs'!H36,"-") -> - | H128: =IF(H127<>"-",'5-Data-Inputs'!I36,"-") -> - | I128: =IF(I127<>"-",'5-Data-Inputs'!J36,"-") -> - | J128: =IF(J127<>"-",'5-Data-Inputs'!K36,"-") -> - | K128: =IF(K127<>"-",'5-Data-Inputs'!L36,"-") -> - | L128: =IF(L127<>"-",'5-Data-Inputs'!M36,"-") -> - | M128: =IF(M127<>"-",'5-Data-Inputs'!N36,"-") -> - | N128: =IF(N127<>"-",'5-Data-Inputs'!O36,"-") -> - | O128: =IF(O127<>"-",'5-Data-Inputs'!P36,"-") -> - | P128: =IF(P127<>"-",'5-Data-Inputs'!Q36,"-") -> - | Q128: =IF(Q127<>"-",'5-Data-Inputs'!R36,"-") -> - | R128: =IF(R127<>"-",'5-Data-Inputs'!S36,"-") -> -
B129: Ideal Rating | C129: - | D129: =IF(D127<>"-",'4-Strategy-Inputs'!$D$24,"-") -> - | E129: =IF(E127<>"-",'4-Strategy-Inputs'!$D$24,"-") -> - | F129: =IF(F127<>"-",'4-Strategy-Inputs'!$D$24,"-") -> - | G129: =IF(G127<>"-",'4-Strategy-Inputs'!$D$24,"-") -> - | H129: =IF(H127<>"-",'4-Strategy-Inputs'!$D$24,"-") -> - | I129: =IF(I127<>"-",'4-Strategy-Inputs'!$D$24,"-") -> - | J129: =IF(J127<>"-",'4-Strategy-Inputs'!$D$24,"-") -> - | K129: =IF(K127<>"-",'4-Strategy-Inputs'!$D$24,"-") -> - | L129: =IF(L127<>"-",'4-Strategy-Inputs'!$D$24,"-") -> - | M129: =IF(M127<>"-",'4-Strategy-Inputs'!$D$24,"-") -> - | N129: =IF(N127<>"-",'4-Strategy-Inputs'!$D$24,"-") -> - | O129: =IF(O127<>"-",'4-Strategy-Inputs'!$D$24,"-") -> - | P129: =IF(P127<>"-",'4-Strategy-Inputs'!$D$24,"-") -> - | Q129: =IF(Q127<>"-",'4-Strategy-Inputs'!$D$24,"-") -> - | R129: =IF(R127<>"-",'4-Strategy-Inputs'!$D$24,"-") -> -
B130: Target Rating | C130: - | D130: =IF(D127<>"-",'4-Strategy-Inputs'!$E$24,"-") -> - | E130: =IF(E127<>"-",'4-Strategy-Inputs'!$E$24,"-") -> - | F130: =IF(F127<>"-",'4-Strategy-Inputs'!$E$24,"-") -> - | G130: =IF(G127<>"-",'4-Strategy-Inputs'!$E$24,"-") -> - | H130: =IF(H127<>"-",'4-Strategy-Inputs'!$E$24,"-") -> - | I130: =IF(I127<>"-",'4-Strategy-Inputs'!$E$24,"-") -> - | J130: =IF(J127<>"-",'4-Strategy-Inputs'!$E$24,"-") -> - | K130: =IF(K127<>"-",'4-Strategy-Inputs'!$E$24,"-") -> - | L130: =IF(L127<>"-",'4-Strategy-Inputs'!$E$24,"-") -> - | M130: =IF(M127<>"-",'4-Strategy-Inputs'!$E$24,"-") -> - | N130: =IF(N127<>"-",'4-Strategy-Inputs'!$E$24,"-") -> - | O130: =IF(O127<>"-",'4-Strategy-Inputs'!$E$24,"-") -> - | P130: =IF(P127<>"-",'4-Strategy-Inputs'!$E$24,"-") -> - | Q130: =IF(Q127<>"-",'4-Strategy-Inputs'!$E$24,"-") -> - | R130: =IF(R127<>"-",'4-Strategy-Inputs'!$E$24,"-") -> -
B131: Average Unit Cost $ | C131: - | D131: =IF(D127<>"-",'5-Data-Inputs'!E75,"-") -> - | E131: =IF(E127<>"-",'5-Data-Inputs'!F75,"-") -> - | F131: =IF(F127<>"-",'5-Data-Inputs'!G75,"-") -> - | G131: =IF(G127<>"-",'5-Data-Inputs'!H75,"-") -> - | H131: =IF(H127<>"-",'5-Data-Inputs'!I75,"-") -> - | I131: =IF(I127<>"-",'5-Data-Inputs'!J75,"-") -> - | J131: =IF(J127<>"-",'5-Data-Inputs'!K75,"-") -> - | K131: =IF(K127<>"-",'5-Data-Inputs'!L75,"-") -> - | L131: =IF(L127<>"-",'5-Data-Inputs'!M75,"-") -> - | M131: =IF(M127<>"-",'5-Data-Inputs'!N75,"-") -> - | N131: =IF(N127<>"-",'5-Data-Inputs'!O75,"-") -> - | O131: =IF(O127<>"-",'5-Data-Inputs'!P75,"-") -> - | P131: =IF(P127<>"-",'5-Data-Inputs'!Q75,"-") -> - | Q131: =IF(Q127<>"-",'5-Data-Inputs'!R75,"-") -> - | R131: =IF(R127<>"-",'5-Data-Inputs'!S75,"-") -> -
B132: Deterioration Rate | C132: - | D132: =IF(D127<>"-",'5-Data-Inputs'!E95,"-") -> - | E132: =IF(E127<>"-",'5-Data-Inputs'!F95,"-") -> - | F132: =IF(F127<>"-",'5-Data-Inputs'!G95,"-") -> - | G132: =IF(G127<>"-",'5-Data-Inputs'!H95,"-") -> - | H132: =IF(H127<>"-",'5-Data-Inputs'!I95,"-") -> - | I132: =IF(I127<>"-",'5-Data-Inputs'!J95,"-") -> - | J132: =IF(J127<>"-",'5-Data-Inputs'!K95,"-") -> - | K132: =IF(K127<>"-",'5-Data-Inputs'!L95,"-") -> - | L132: =IF(L127<>"-",'5-Data-Inputs'!M95,"-") -> - | M132: =IF(M127<>"-",'5-Data-Inputs'!N95,"-") -> - | N132: =IF(N127<>"-",'5-Data-Inputs'!O95,"-") -> - | O132: =IF(O127<>"-",'5-Data-Inputs'!P95,"-") -> - | P132: =IF(P127<>"-",'5-Data-Inputs'!Q95,"-") -> - | Q132: =IF(Q127<>"-",'5-Data-Inputs'!R95,"-") -> - | R132: =IF(R127<>"-",'5-Data-Inputs'!S95,"-") -> -
B133: Unconstrained Need | C133: =SUM(D133:R133) -> 0 | D133: =IF(D127<>"-",(D129-D128)*D131*D127,"-") -> - | E133: =IF(E127<>"-",(E129-E128)*E131*E127,"-") -> - | F133: - | G133: - | H133: - | I133: - | J133: - | K133: - | L133: - | M133: - | N133: - | O133: - | P133: - | Q133: - | R133: -
B134: Ave. Annual Deterioration | C134: =SUM(D134:R134) -> 0 | D134: =IF(D127<>"-",D132*D127*D131,"-") -> - | E134: =IF(E127<>"-",E132*E127*E131,"-") -> - | F134: - | G134: - | H134: - | I134: - | J134: - | K134: - | L134: - | M134: - | N134: - | O134: - | P134: - | Q134: - | R134: -
B135: Total needed for Target Rating | C135: =SUM(D135:R135) -> 0 | D135: =IF(D127<>"-",(D130-D128)*D131*D127,"-") -> - | E135: =IF(E127<>"-",(E130-E128)*E131*E127,"-") -> - | F135: - | G135: - | H135: - | I135: - | J135: - | K135: - | L135: - | M135: - | N135: - | O135: - | P135: - | Q135: - | R135: -
B136: Desired Time for Target Rating (Years) | C136: - | D136: =IF(D127<>"-",'4-Strategy-Inputs'!$F$24,"-") -> - | E136: =IF(E127<>"-",'4-Strategy-Inputs'!$F$24,"-") -> - | F136: =IF(F127<>"-",'4-Strategy-Inputs'!$F$24,"-") -> - | G136: =IF(G127<>"-",'4-Strategy-Inputs'!$F$24,"-") -> - | H136: =IF(H127<>"-",'4-Strategy-Inputs'!$F$24,"-") -> - | I136: =IF(I127<>"-",'4-Strategy-Inputs'!$F$24,"-") -> - | J136: =IF(J127<>"-",'4-Strategy-Inputs'!$F$24,"-") -> - | K136: =IF(K127<>"-",'4-Strategy-Inputs'!$F$24,"-") -> - | L136: =IF(L127<>"-",'4-Strategy-Inputs'!$F$24,"-") -> - | M136: =IF(M127<>"-",'4-Strategy-Inputs'!$F$24,"-") -> - | N136: =IF(N127<>"-",'4-Strategy-Inputs'!$F$24,"-") -> - | O136: =IF(O127<>"-",'4-Strategy-Inputs'!$F$24,"-") -> - | P136: =IF(P127<>"-",'4-Strategy-Inputs'!$F$24,"-") -> - | Q136: =IF(Q127<>"-",'4-Strategy-Inputs'!$F$24,"-") -> - | R136: =IF(R127<>"-",'4-Strategy-Inputs'!$F$24,"-") -> -
B137: Annual Allocation needed to meet target Ratings and timelines | C137: =SUM(D137:R137) -> 0 | D137: =IF(D127<>"-",IF(D136>0, D134+(D135/D136),0),"-") -> - | E137: =IF(E127<>"-",IF(E136>0, E134+(E135/E136),0),"-") -> - | F137: - | G137: - | H137: - | I137: - | J137: - | K137: - | L137: - | M137: - | N137: - | O137: - | P137: - | Q137: - | R137: -
B138: Funds needed to improve average current rating by 1% | C138: =SUM(D138:R138) -> 0 | D138: =IF(D127<>"-",D131*D127/100,"-") -> - | E138: =IF(E127<>"-",E131*E127/100,"-") -> - | F138: - | G138: - | H138: - | I138: - | J138: - | K138: - | L138: - | M138: - | N138: - | O138: - | P138: - | Q138: - | R138: -
B140: Asset-Activity Group #10 | C140: Total | D140: Districts
B141: ='3-Basic Inputs'!B15 -> - | D141: ='3-Basic Inputs'!$I$6 -> District 1 | E141: ='3-Basic Inputs'!$I$7 -> District 2 | F141: ='3-Basic Inputs'!$I$8 -> District 3 | G141: ='3-Basic Inputs'!$I$9 -> District 4 | H141: ='3-Basic Inputs'!$I$10 -> District 5 | I141: ='3-Basic Inputs'!$I$11 -> District 6 | J141: ='3-Basic Inputs'!$I$12 -> District 7 | K141: ='3-Basic Inputs'!$I$13 -> District 8 | L141: ='3-Basic Inputs'!$I$14 -> District 9 | M141: ='3-Basic Inputs'!$I$15 -> District 10 | N141: ='3-Basic Inputs'!$I$16 -> District 11 | O141: ='3-Basic Inputs'!$I$17 -> District 12 | P141: ='3-Basic Inputs'!$I$18 -> District 13 | Q141: ='3-Basic Inputs'!$I$19 -> District 14 | R141: ='3-Basic Inputs'!$I$20 -> District 15
B142: ='3-Basic Inputs'!C15 -> - | C142: =SUM(D142:R142) -> 0 | D142: =IF('5-Data-Inputs'!E16>0, '5-Data-Inputs'!E16,"-") -> - | E142: =IF('5-Data-Inputs'!F16>0, '5-Data-Inputs'!F16,"-") -> - | F142: =IF('5-Data-Inputs'!G16>0, '5-Data-Inputs'!G16,"-") -> - | G142: =IF('5-Data-Inputs'!H16>0, '5-Data-Inputs'!H16,"-") -> - | H142: =IF('5-Data-Inputs'!I16>0, '5-Data-Inputs'!I16,"-") -> - | I142: =IF('5-Data-Inputs'!J16>0, '5-Data-Inputs'!J16,"-") -> - | J142: =IF('5-Data-Inputs'!K16>0, '5-Data-Inputs'!K16,"-") -> - | K142: =IF('5-Data-Inputs'!L16>0, '5-Data-Inputs'!L16,"-") -> - | L142: =IF('5-Data-Inputs'!M16>0, '5-Data-Inputs'!M16,"-") -> - | M142: =IF('5-Data-Inputs'!N16>0, '5-Data-Inputs'!N16,"-") -> - | N142: =IF('5-Data-Inputs'!O16>0, '5-Data-Inputs'!O16,"-") -> - | O142: =IF('5-Data-Inputs'!P16>0, '5-Data-Inputs'!P16,"-") -> - | P142: =IF('5-Data-Inputs'!Q16>0, '5-Data-Inputs'!Q16,"-") -> - | Q142: =IF('5-Data-Inputs'!R16>0, '5-Data-Inputs'!R16,"-") -> - | R142: =IF('5-Data-Inputs'!S16>0, '5-Data-Inputs'!S16,"-") -> -
B143: Current Rating | C143: - | D143: =IF(D142<>"-",'5-Data-Inputs'!E37,"-") -> - | E143: =IF(E142<>"-",'5-Data-Inputs'!F37,"-") -> - | F143: =IF(F142<>"-",'5-Data-Inputs'!G37,"-") -> - | G143: =IF(G142<>"-",'5-Data-Inputs'!H37,"-") -> - | H143: =IF(H142<>"-",'5-Data-Inputs'!I37,"-") -> - | I143: =IF(I142<>"-",'5-Data-Inputs'!J37,"-") -> - | J143: =IF(J142<>"-",'5-Data-Inputs'!K37,"-") -> - | K143: =IF(K142<>"-",'5-Data-Inputs'!L37,"-") -> - | L143: =IF(L142<>"-",'5-Data-Inputs'!M37,"-") -> - | M143: =IF(M142<>"-",'5-Data-Inputs'!N37,"-") -> - | N143: =IF(N142<>"-",'5-Data-Inputs'!O37,"-") -> - | O143: =IF(O142<>"-",'5-Data-Inputs'!P37,"-") -> - | P143: =IF(P142<>"-",'5-Data-Inputs'!Q37,"-") -> - | Q143: =IF(Q142<>"-",'5-Data-Inputs'!R37,"-") -> - | R143: =IF(R142<>"-",'5-Data-Inputs'!S37,"-") -> -
B144: Ideal Rating | C144: - | D144: =IF(D142<>"-",'4-Strategy-Inputs'!$D$25,"-") -> - | E144: =IF(E142<>"-",'4-Strategy-Inputs'!$D$25,"-") -> - | F144: =IF(F142<>"-",'4-Strategy-Inputs'!$D$25,"-") -> - | G144: =IF(G142<>"-",'4-Strategy-Inputs'!$D$25,"-") -> - | H144: =IF(H142<>"-",'4-Strategy-Inputs'!$D$25,"-") -> - | I144: =IF(I142<>"-",'4-Strategy-Inputs'!$D$25,"-") -> - | J144: =IF(J142<>"-",'4-Strategy-Inputs'!$D$25,"-") -> - | K144: =IF(K142<>"-",'4-Strategy-Inputs'!$D$25,"-") -> - | L144: =IF(L142<>"-",'4-Strategy-Inputs'!$D$25,"-") -> - | M144: =IF(M142<>"-",'4-Strategy-Inputs'!$D$25,"-") -> - | N144: =IF(N142<>"-",'4-Strategy-Inputs'!$D$25,"-") -> - | O144: =IF(O142<>"-",'4-Strategy-Inputs'!$D$25,"-") -> - | P144: =IF(P142<>"-",'4-Strategy-Inputs'!$D$25,"-") -> - | Q144: =IF(Q142<>"-",'4-Strategy-Inputs'!$D$25,"-") -> - | R144: =IF(R142<>"-",'4-Strategy-Inputs'!$D$25,"-") -> -
B145: Target Rating | C145: - | D145: =IF(D142<>"-",'4-Strategy-Inputs'!$E$25,"-") -> - | E145: =IF(E142<>"-",'4-Strategy-Inputs'!$E$25,"-") -> - | F145: =IF(F142<>"-",'4-Strategy-Inputs'!$E$25,"-") -> - | G145: =IF(G142<>"-",'4-Strategy-Inputs'!$E$25,"-") -> - | H145: =IF(H142<>"-",'4-Strategy-Inputs'!$E$25,"-") -> - | I145: =IF(I142<>"-",'4-Strategy-Inputs'!$E$25,"-") -> - | J145: =IF(J142<>"-",'4-Strategy-Inputs'!$E$25,"-") -> - | K145: =IF(K142<>"-",'4-Strategy-Inputs'!$E$25,"-") -> - | L145: =IF(L142<>"-",'4-Strategy-Inputs'!$E$25,"-") -> - | M145: =IF(M142<>"-",'4-Strategy-Inputs'!$E$25,"-") -> - | N145: =IF(N142<>"-",'4-Strategy-Inputs'!$E$25,"-") -> - | O145: =IF(O142<>"-",'4-Strategy-Inputs'!$E$25,"-") -> - | P145: =IF(P142<>"-",'4-Strategy-Inputs'!$E$25,"-") -> - | Q145: =IF(Q142<>"-",'4-Strategy-Inputs'!$E$25,"-") -> - | R145: =IF(R142<>"-",'4-Strategy-Inputs'!$E$25,"-") -> -
B146: Average Unit Cost $ | C146: - | D146: =IF(D142<>"-",'5-Data-Inputs'!E76,"-") -> - | E146: =IF(E142<>"-",'5-Data-Inputs'!F76,"-") -> - | F146: =IF(F142<>"-",'5-Data-Inputs'!G76,"-") -> - | G146: =IF(G142<>"-",'5-Data-Inputs'!H76,"-") -> - | H146: =IF(H142<>"-",'5-Data-Inputs'!I76,"-") -> - | I146: =IF(I142<>"-",'5-Data-Inputs'!J76,"-") -> - | J146: =IF(J142<>"-",'5-Data-Inputs'!K76,"-") -> - | K146: =IF(K142<>"-",'5-Data-Inputs'!L76,"-") -> - | L146: =IF(L142<>"-",'5-Data-Inputs'!M76,"-") -> - | M146: =IF(M142<>"-",'5-Data-Inputs'!N76,"-") -> - | N146: =IF(N142<>"-",'5-Data-Inputs'!O76,"-") -> - | O146: =IF(O142<>"-",'5-Data-Inputs'!P76,"-") -> - | P146: =IF(P142<>"-",'5-Data-Inputs'!Q76,"-") -> - | Q146: =IF(Q142<>"-",'5-Data-Inputs'!R76,"-") -> - | R146: =IF(R142<>"-",'5-Data-Inputs'!S76,"-") -> -
B147: Deterioration Rate | C147: - | D147: =IF(D142<>"-",'5-Data-Inputs'!E96,"-") -> - | E147: =IF(E142<>"-",'5-Data-Inputs'!F96,"-") -> - | F147: =IF(F142<>"-",'5-Data-Inputs'!G96,"-") -> - | G147: =IF(G142<>"-",'5-Data-Inputs'!H96,"-") -> - | H147: =IF(H142<>"-",'5-Data-Inputs'!I96,"-") -> - | I147: =IF(I142<>"-",'5-Data-Inputs'!J96,"-") -> - | J147: =IF(J142<>"-",'5-Data-Inputs'!K96,"-") -> - | K147: =IF(K142<>"-",'5-Data-Inputs'!L96,"-") -> - | L147: =IF(L142<>"-",'5-Data-Inputs'!M96,"-") -> - | M147: =IF(M142<>"-",'5-Data-Inputs'!N96,"-") -> - | N147: =IF(N142<>"-",'5-Data-Inputs'!O96,"-") -> - | O147: =IF(O142<>"-",'5-Data-Inputs'!P96,"-") -> - | P147: =IF(P142<>"-",'5-Data-Inputs'!Q96,"-") -> - | Q147: =IF(Q142<>"-",'5-Data-Inputs'!R96,"-") -> - | R147: =IF(R142<>"-",'5-Data-Inputs'!S96,"-") -> -
B148: Unconstrained Need | C148: =SUM(D148:R148) -> 0 | D148: =IF(D142<>"-",(D144-D143)*D146*D142,"-") -> - | E148: =IF(E142<>"-",(E144-E143)*E146*E142,"-") -> - | F148: - | G148: - | H148: - | I148: - | J148: - | K148: - | L148: - | M148: - | N148: - | O148: - | P148: - | Q148: - | R148: -
B149: Ave. Annual Deterioration | C149: =SUM(D149:R149) -> 0 | D149: =IF(D142<>"-",D147*D142*D146,"-") -> - | E149: =IF(E142<>"-",E147*E142*E146,"-") -> - | F149: - | G149: - | H149: - | I149: - | J149: - | K149: - | L149: - | M149: - | N149: - | O149: - | P149: - | Q149: - | R149: -
B150: Total needed for Target Rating | C150: =SUM(D150:R150) -> 0 | D150: =IF(D142<>"-",(D145-D143)*D146*D142,"-") -> - | E150: =IF(E142<>"-",(E145-E143)*E146*E142,"-") -> - | F150: - | G150: - | H150: - | I150: - | J150: - | K150: - | L150: - | M150: - | N150: - | O150: - | P150: - | Q150: - | R150: -
B151: Desired Time for Target Rating (Years) | C151: - | D151: =IF(D142<>"-",'4-Strategy-Inputs'!$F$25,"-") -> - | E151: =IF(E142<>"-",'4-Strategy-Inputs'!$F$25,"-") -> - | F151: =IF(F142<>"-",'4-Strategy-Inputs'!$F$25,"-") -> - | G151: =IF(G142<>"-",'4-Strategy-Inputs'!$F$25,"-") -> - | H151: =IF(H142<>"-",'4-Strategy-Inputs'!$F$25,"-") -> - | I151: =IF(I142<>"-",'4-Strategy-Inputs'!$F$25,"-") -> - | J151: =IF(J142<>"-",'4-Strategy-Inputs'!$F$25,"-") -> - | K151: =IF(K142<>"-",'4-Strategy-Inputs'!$F$25,"-") -> - | L151: =IF(L142<>"-",'4-Strategy-Inputs'!$F$25,"-") -> - | M151: =IF(M142<>"-",'4-Strategy-Inputs'!$F$25,"-") -> - | N151: =IF(N142<>"-",'4-Strategy-Inputs'!$F$25,"-") -> - | O151: =IF(O142<>"-",'4-Strategy-Inputs'!$F$25,"-") -> - | P151: =IF(P142<>"-",'4-Strategy-Inputs'!$F$25,"-") -> - | Q151: =IF(Q142<>"-",'4-Strategy-Inputs'!$F$25,"-") -> - | R151: =IF(R142<>"-",'4-Strategy-Inputs'!$F$25,"-") -> -
B152: Annual Allocation needed to meet target Ratings and timelines | C152: =SUM(D152:R152) -> 0 | D152: =IF(D142<>"-",IF(D151>0, D149+(D150/D151),0),"-") -> - | E152: =IF(E142<>"-",IF(E151>0, E149+(E150/E151),0),"-") -> - | F152: - | G152: - | H152: - | I152: - | J152: - | K152: - | L152: - | M152: - | N152: - | O152: - | P152: - | Q152: - | R152: -
B153: Funds needed to improve average current rating by 1% | C153: =SUM(D153:R153) -> 0 | D153: =IF(D142<>"-",D146*D142/100,"-") -> - | E153: =IF(E142<>"-",E146*E142/100,"-") -> - | F153: - | G153: - | H153: - | I153: - | J153: - | K153: - | L153: - | M153: - | N153: - | O153: - | P153: - | Q153: - | R153: -
B155: Asset-Activity Group #11 | C155: Total | D155: Districts
B156: ='3-Basic Inputs'!B16 -> - | D156: ='3-Basic Inputs'!$I$6 -> District 1 | E156: ='3-Basic Inputs'!$I$7 -> District 2 | F156: ='3-Basic Inputs'!$I$8 -> District 3 | G156: ='3-Basic Inputs'!$I$9 -> District 4 | H156: ='3-Basic Inputs'!$I$10 -> District 5 | I156: ='3-Basic Inputs'!$I$11 -> District 6 | J156: ='3-Basic Inputs'!$I$12 -> District 7 | K156: ='3-Basic Inputs'!$I$13 -> District 8 | L156: ='3-Basic Inputs'!$I$14 -> District 9 | M156: ='3-Basic Inputs'!$I$15 -> District 10 | N156: ='3-Basic Inputs'!$I$16 -> District 11 | O156: ='3-Basic Inputs'!$I$17 -> District 12 | P156: ='3-Basic Inputs'!$I$18 -> District 13 | Q156: ='3-Basic Inputs'!$I$19 -> District 14 | R156: ='3-Basic Inputs'!$I$20 -> District 15
B157: ='3-Basic Inputs'!C16 -> - | C157: =SUM(D157:R157) -> 0 | D157: =IF('5-Data-Inputs'!E17>0, '5-Data-Inputs'!E17, "-") -> - | E157: =IF('5-Data-Inputs'!F17>0, '5-Data-Inputs'!F17, "-") -> - | F157: =IF('5-Data-Inputs'!G17>0, '5-Data-Inputs'!G17, "-") -> - | G157: =IF('5-Data-Inputs'!H17>0, '5-Data-Inputs'!H17, "-") -> - | H157: =IF('5-Data-Inputs'!I17>0, '5-Data-Inputs'!I17, "-") -> - | I157: =IF('5-Data-Inputs'!J17>0, '5-Data-Inputs'!J17, "-") -> - | J157: =IF('5-Data-Inputs'!K17>0, '5-Data-Inputs'!K17, "-") -> - | K157: =IF('5-Data-Inputs'!L17>0, '5-Data-Inputs'!L17, "-") -> - | L157: =IF('5-Data-Inputs'!M17>0, '5-Data-Inputs'!M17, "-") -> - | M157: =IF('5-Data-Inputs'!N17>0, '5-Data-Inputs'!N17, "-") -> - | N157: =IF('5-Data-Inputs'!O17>0, '5-Data-Inputs'!O17, "-") -> - | O157: =IF('5-Data-Inputs'!P17>0, '5-Data-Inputs'!P17, "-") -> - | P157: =IF('5-Data-Inputs'!Q17>0, '5-Data-Inputs'!Q17, "-") -> - | Q157: =IF('5-Data-Inputs'!R17>0, '5-Data-Inputs'!R17, "-") -> - | R157: =IF('5-Data-Inputs'!S17>0, '5-Data-Inputs'!S17, "-") -> -
B158: Current Rating | C158: - | D158: =IF(D157<>"-", '5-Data-Inputs'!E38,"-") -> - | E158: =IF(E157<>"-", '5-Data-Inputs'!F38,"-") -> - | F158: =IF(F157<>"-", '5-Data-Inputs'!G38,"-") -> - | G158: =IF(G157<>"-", '5-Data-Inputs'!H38,"-") -> - | H158: =IF(H157<>"-", '5-Data-Inputs'!I38,"-") -> - | I158: =IF(I157<>"-", '5-Data-Inputs'!J38,"-") -> - | J158: =IF(J157<>"-", '5-Data-Inputs'!K38,"-") -> - | K158: =IF(K157<>"-", '5-Data-Inputs'!L38,"-") -> - | L158: =IF(L157<>"-", '5-Data-Inputs'!M38,"-") -> - | M158: =IF(M157<>"-", '5-Data-Inputs'!N38,"-") -> - | N158: =IF(N157<>"-", '5-Data-Inputs'!O38,"-") -> - | O158: =IF(O157<>"-", '5-Data-Inputs'!P38,"-") -> - | P158: =IF(P157<>"-", '5-Data-Inputs'!Q38,"-") -> - | Q158: =IF(Q157<>"-", '5-Data-Inputs'!R38,"-") -> - | R158: =IF(R157<>"-", '5-Data-Inputs'!S38,"-") -> -
B159: Ideal Rating | C159: - | D159: =IF(D157<>"-",'4-Strategy-Inputs'!$D$26,"-") -> - | E159: =IF(E157<>"-",'4-Strategy-Inputs'!$D$26,"-") -> - | F159: =IF(F157<>"-",'4-Strategy-Inputs'!$D$26,"-") -> - | G159: =IF(G157<>"-",'4-Strategy-Inputs'!$D$26,"-") -> - | H159: =IF(H157<>"-",'4-Strategy-Inputs'!$D$26,"-") -> - | I159: =IF(I157<>"-",'4-Strategy-Inputs'!$D$26,"-") -> - | J159: =IF(J157<>"-",'4-Strategy-Inputs'!$D$26,"-") -> - | K159: =IF(K157<>"-",'4-Strategy-Inputs'!$D$26,"-") -> - | L159: =IF(L157<>"-",'4-Strategy-Inputs'!$D$26,"-") -> - | M159: =IF(M157<>"-",'4-Strategy-Inputs'!$D$26,"-") -> - | N159: =IF(N157<>"-",'4-Strategy-Inputs'!$D$26,"-") -> - | O159: =IF(O157<>"-",'4-Strategy-Inputs'!$D$26,"-") -> - | P159: =IF(P157<>"-",'4-Strategy-Inputs'!$D$26,"-") -> - | Q159: =IF(Q157<>"-",'4-Strategy-Inputs'!$D$26,"-") -> - | R159: =IF(R157<>"-",'4-Strategy-Inputs'!$D$26,"-") -> -
B160: Target Rating | C160: - | D160: =IF(D157<>"-",'4-Strategy-Inputs'!$E$26,"-") -> - | E160: =IF(E157<>"-",'4-Strategy-Inputs'!$E$26,"-") -> - | F160: =IF(F157<>"-",'4-Strategy-Inputs'!$E$26,"-") -> - | G160: =IF(G157<>"-",'4-Strategy-Inputs'!$E$26,"-") -> - | H160: =IF(H157<>"-",'4-Strategy-Inputs'!$E$26,"-") -> - | I160: =IF(I157<>"-",'4-Strategy-Inputs'!$E$26,"-") -> - | J160: =IF(J157<>"-",'4-Strategy-Inputs'!$E$26,"-") -> - | K160: =IF(K157<>"-",'4-Strategy-Inputs'!$E$26,"-") -> - | L160: =IF(L157<>"-",'4-Strategy-Inputs'!$E$26,"-") -> - | M160: =IF(M157<>"-",'4-Strategy-Inputs'!$E$26,"-") -> - | N160: =IF(N157<>"-",'4-Strategy-Inputs'!$E$26,"-") -> - | O160: =IF(O157<>"-",'4-Strategy-Inputs'!$E$26,"-") -> - | P160: =IF(P157<>"-",'4-Strategy-Inputs'!$E$26,"-") -> - | Q160: =IF(Q157<>"-",'4-Strategy-Inputs'!$E$26,"-") -> - | R160: =IF(R157<>"-",'4-Strategy-Inputs'!$E$26,"-") -> -
B161: Average Unit Cost $ | C161: - | D161: =IF(D157<>"-",'5-Data-Inputs'!E77,"-") -> - | E161: =IF(E157<>"-",'5-Data-Inputs'!F77,"-") -> - | F161: =IF(F157<>"-",'5-Data-Inputs'!G77,"-") -> - | G161: =IF(G157<>"-",'5-Data-Inputs'!H77,"-") -> - | H161: =IF(H157<>"-",'5-Data-Inputs'!I77,"-") -> - | I161: =IF(I157<>"-",'5-Data-Inputs'!J77,"-") -> - | J161: =IF(J157<>"-",'5-Data-Inputs'!K77,"-") -> - | K161: =IF(K157<>"-",'5-Data-Inputs'!L77,"-") -> - | L161: =IF(L157<>"-",'5-Data-Inputs'!M77,"-") -> - | M161: =IF(M157<>"-",'5-Data-Inputs'!N77,"-") -> - | N161: =IF(N157<>"-",'5-Data-Inputs'!O77,"-") -> - | O161: =IF(O157<>"-",'5-Data-Inputs'!P77,"-") -> - | P161: =IF(P157<>"-",'5-Data-Inputs'!Q77,"-") -> - | Q161: =IF(Q157<>"-",'5-Data-Inputs'!R77,"-") -> - | R161: =IF(R157<>"-",'5-Data-Inputs'!S77,"-") -> -
B162: Deterioration Rate | C162: - | D162: =IF(D157<>"-",'5-Data-Inputs'!E97,"-") -> - | E162: =IF(E157<>"-",'5-Data-Inputs'!F97,"-") -> - | F162: =IF(F157<>"-",'5-Data-Inputs'!G97,"-") -> - | G162: =IF(G157<>"-",'5-Data-Inputs'!H97,"-") -> - | H162: =IF(H157<>"-",'5-Data-Inputs'!I97,"-") -> - | I162: =IF(I157<>"-",'5-Data-Inputs'!J97,"-") -> - | J162: =IF(J157<>"-",'5-Data-Inputs'!K97,"-") -> - | K162: =IF(K157<>"-",'5-Data-Inputs'!L97,"-") -> - | L162: =IF(L157<>"-",'5-Data-Inputs'!M97,"-") -> - | M162: =IF(M157<>"-",'5-Data-Inputs'!N97,"-") -> - | N162: =IF(N157<>"-",'5-Data-Inputs'!O97,"-") -> - | O162: =IF(O157<>"-",'5-Data-Inputs'!P97,"-") -> - | P162: =IF(P157<>"-",'5-Data-Inputs'!Q97,"-") -> - | Q162: =IF(Q157<>"-",'5-Data-Inputs'!R97,"-") -> - | R162: =IF(R157<>"-",'5-Data-Inputs'!S97,"-") -> -
B163: Unconstrained Need | C163: =SUM(D163:R163) -> 0 | D163: =IF(D157<>"-",(D159-D158)*D161*D157,"-") -> - | E163: =IF(E157<>"-",(E159-E158)*E161*E157,"-") -> - | F163: - | G163: - | H163: - | I163: - | J163: - | K163: - | L163: - | M163: - | N163: - | O163: - | P163: - | Q163: - | R163: -
B164: Ave. Annual Deterioration | C164: =SUM(D164:R164) -> 0 | D164: =IF(D157<>"-",D162*D157*D161,"-") -> - | E164: =IF(E157<>"-",E162*E157*E161,"-") -> - | F164: - | G164: - | H164: - | I164: - | J164: - | K164: - | L164: - | M164: - | N164: - | O164: - | P164: - | Q164: - | R164: -
B165: Total needed for Target Rating | C165: =SUM(D165:R165) -> 0 | D165: =IF(D157<>"-",(D160-D158)*D161*D157,"-") -> - | E165: =IF(E157<>"-",(E160-E158)*E161*E157,"-") -> - | F165: - | G165: - | H165: - | I165: - | J165: - | K165: - | L165: - | M165: - | N165: - | O165: - | P165: - | Q165: - | R165: -
B166: Desired Time for Target Rating (Years) | C166: - | D166: =IF(D157<>"-",'4-Strategy-Inputs'!$F$26,"-") -> - | E166: =IF(E157<>"-",'4-Strategy-Inputs'!$F$26,"-") -> - | F166: =IF(F157<>"-",'4-Strategy-Inputs'!$F$26,"-") -> - | G166: =IF(G157<>"-",'4-Strategy-Inputs'!$F$26,"-") -> - | H166: =IF(H157<>"-",'4-Strategy-Inputs'!$F$26,"-") -> - | I166: =IF(I157<>"-",'4-Strategy-Inputs'!$F$26,"-") -> - | J166: =IF(J157<>"-",'4-Strategy-Inputs'!$F$26,"-") -> - | K166: =IF(K157<>"-",'4-Strategy-Inputs'!$F$26,"-") -> - | L166: =IF(L157<>"-",'4-Strategy-Inputs'!$F$26,"-") -> - | M166: =IF(M157<>"-",'4-Strategy-Inputs'!$F$26,"-") -> - | N166: =IF(N157<>"-",'4-Strategy-Inputs'!$F$26,"-") -> - | O166: =IF(O157<>"-",'4-Strategy-Inputs'!$F$26,"-") -> - | P166: =IF(P157<>"-",'4-Strategy-Inputs'!$F$26,"-") -> - | Q166: =IF(Q157<>"-",'4-Strategy-Inputs'!$F$26,"-") -> - | R166: =IF(R157<>"-",'4-Strategy-Inputs'!$F$26,"-") -> -
B167: Annual Allocation needed to meet target Ratings and timelines | C167: =SUM(D167:R167) -> 0 | D167: =IF(D157<>"-",IF(D166>0, D164+(D165/D166),0),"-") -> - | E167: =IF(E157<>"-",IF(E166>0, E164+(E165/E166),0),"-") -> - | F167: - | G167: - | H167: - | I167: - | J167: - | K167: - | L167: - | M167: - | N167: - | O167: - | P167: - | Q167: - | R167: -
B168: Funds needed to improve average current rating by 1% | C168: =SUM(D168:R168) -> 0 | D168: =IF(D157<>"-",D161*D157/100,"-") -> - | E168: =IF(E157<>"-",E161*E157/100,"-") -> - | F168: - | G168: - | H168: - | I168: - | J168: - | K168: - | L168: - | M168: - | N168: - | O168: - | P168: - | Q168: - | R168: -
B170: Asset-Activity Group #12 | C170: Total | D170: Districts
B171: ='3-Basic Inputs'!B17 -> - | D171: ='3-Basic Inputs'!$I$6 -> District 1 | E171: ='3-Basic Inputs'!$I$7 -> District 2 | F171: ='3-Basic Inputs'!$I$8 -> District 3 | G171: ='3-Basic Inputs'!$I$9 -> District 4 | H171: ='3-Basic Inputs'!$I$10 -> District 5 | I171: ='3-Basic Inputs'!$I$11 -> District 6 | J171: ='3-Basic Inputs'!$I$12 -> District 7 | K171: ='3-Basic Inputs'!$I$13 -> District 8 | L171: ='3-Basic Inputs'!$I$14 -> District 9 | M171: ='3-Basic Inputs'!$I$15 -> District 10 | N171: ='3-Basic Inputs'!$I$16 -> District 11 | O171: ='3-Basic Inputs'!$I$17 -> District 12 | P171: ='3-Basic Inputs'!$I$18 -> District 13 | Q171: ='3-Basic Inputs'!$I$19 -> District 14 | R171: ='3-Basic Inputs'!$I$20 -> District 15
B172: ='3-Basic Inputs'!C17 -> - | C172: =SUM(D172:R172) -> 0 | D172: =IF('5-Data-Inputs'!E18>0, '5-Data-Inputs'!E18,"-") -> - | E172: =IF('5-Data-Inputs'!F18>0, '5-Data-Inputs'!F18,"-") -> - | F172: =IF('5-Data-Inputs'!G18>0, '5-Data-Inputs'!G18,"-") -> - | G172: =IF('5-Data-Inputs'!H18>0, '5-Data-Inputs'!H18,"-") -> - | H172: =IF('5-Data-Inputs'!I18>0, '5-Data-Inputs'!I18,"-") -> - | I172: =IF('5-Data-Inputs'!J18>0, '5-Data-Inputs'!J18,"-") -> - | J172: =IF('5-Data-Inputs'!K18>0, '5-Data-Inputs'!K18,"-") -> - | K172: =IF('5-Data-Inputs'!L18>0, '5-Data-Inputs'!L18,"-") -> - | L172: =IF('5-Data-Inputs'!M18>0, '5-Data-Inputs'!M18,"-") -> - | M172: =IF('5-Data-Inputs'!N18>0, '5-Data-Inputs'!N18,"-") -> - | N172: =IF('5-Data-Inputs'!O18>0, '5-Data-Inputs'!O18,"-") -> - | O172: =IF('5-Data-Inputs'!P18>0, '5-Data-Inputs'!P18,"-") -> - | P172: =IF('5-Data-Inputs'!Q18>0, '5-Data-Inputs'!Q18,"-") -> - | Q172: =IF('5-Data-Inputs'!R18>0, '5-Data-Inputs'!R18,"-") -> - | R172: =IF('5-Data-Inputs'!S18>0, '5-Data-Inputs'!S18,"-") -> -
B173: Current Rating | C173: - | D173: =IF(D172<>"-", '5-Data-Inputs'!E39,"-") -> - | E173: =IF(E172<>"-", '5-Data-Inputs'!F39,"-") -> - | F173: =IF(F172<>"-", '5-Data-Inputs'!G39,"-") -> - | G173: =IF(G172<>"-", '5-Data-Inputs'!H39,"-") -> - | H173: =IF(H172<>"-", '5-Data-Inputs'!I39,"-") -> - | I173: =IF(I172<>"-", '5-Data-Inputs'!J39,"-") -> - | J173: =IF(J172<>"-", '5-Data-Inputs'!K39,"-") -> - | K173: =IF(K172<>"-", '5-Data-Inputs'!L39,"-") -> - | L173: =IF(L172<>"-", '5-Data-Inputs'!M39,"-") -> - | M173: =IF(M172<>"-", '5-Data-Inputs'!N39,"-") -> - | N173: =IF(N172<>"-", '5-Data-Inputs'!O39,"-") -> - | O173: =IF(O172<>"-", '5-Data-Inputs'!P39,"-") -> - | P173: =IF(P172<>"-", '5-Data-Inputs'!Q39,"-") -> - | Q173: =IF(Q172<>"-", '5-Data-Inputs'!R39,"-") -> - | R173: =IF(R172<>"-", '5-Data-Inputs'!S39,"-") -> -
B174: Ideal Rating | C174: - | D174: =IF(D172<>"-",'4-Strategy-Inputs'!$D$27,"-") -> - | E174: =IF(E172<>"-",'4-Strategy-Inputs'!$D$27,"-") -> - | F174: =IF(F172<>"-",'4-Strategy-Inputs'!$D$27,"-") -> - | G174: =IF(G172<>"-",'4-Strategy-Inputs'!$D$27,"-") -> - | H174: =IF(H172<>"-",'4-Strategy-Inputs'!$D$27,"-") -> - | I174: =IF(I172<>"-",'4-Strategy-Inputs'!$D$27,"-") -> - | J174: =IF(J172<>"-",'4-Strategy-Inputs'!$D$27,"-") -> - | K174: =IF(K172<>"-",'4-Strategy-Inputs'!$D$27,"-") -> - | L174: =IF(L172<>"-",'4-Strategy-Inputs'!$D$27,"-") -> - | M174: =IF(M172<>"-",'4-Strategy-Inputs'!$D$27,"-") -> - | N174: =IF(N172<>"-",'4-Strategy-Inputs'!$D$27,"-") -> - | O174: =IF(O172<>"-",'4-Strategy-Inputs'!$D$27,"-") -> - | P174: =IF(P172<>"-",'4-Strategy-Inputs'!$D$27,"-") -> - | Q174: =IF(Q172<>"-",'4-Strategy-Inputs'!$D$27,"-") -> - | R174: =IF(R172<>"-",'4-Strategy-Inputs'!$D$27,"-") -> -
B175: Target Rating | C175: - | D175: =IF(D172<>"-",'4-Strategy-Inputs'!$E$27,"-") -> - | E175: =IF(E172<>"-",'4-Strategy-Inputs'!$E$27,"-") -> - | F175: =IF(F172<>"-",'4-Strategy-Inputs'!$E$27,"-") -> - | G175: =IF(G172<>"-",'4-Strategy-Inputs'!$E$27,"-") -> - | H175: =IF(H172<>"-",'4-Strategy-Inputs'!$E$27,"-") -> - | I175: =IF(I172<>"-",'4-Strategy-Inputs'!$E$27,"-") -> - | J175: =IF(J172<>"-",'4-Strategy-Inputs'!$E$27,"-") -> - | K175: =IF(K172<>"-",'4-Strategy-Inputs'!$E$27,"-") -> - | L175: =IF(L172<>"-",'4-Strategy-Inputs'!$E$27,"-") -> - | M175: =IF(M172<>"-",'4-Strategy-Inputs'!$E$27,"-") -> - | N175: =IF(N172<>"-",'4-Strategy-Inputs'!$E$27,"-") -> - | O175: =IF(O172<>"-",'4-Strategy-Inputs'!$E$27,"-") -> - | P175: =IF(P172<>"-",'4-Strategy-Inputs'!$E$27,"-") -> - | Q175: =IF(Q172<>"-",'4-Strategy-Inputs'!$E$27,"-") -> - | R175: =IF(R172<>"-",'4-Strategy-Inputs'!$E$27,"-") -> -
B176: Average Unit Cost $ | C176: - | D176: =IF(D172<>"-",'5-Data-Inputs'!E78,"-") -> - | E176: =IF(E172<>"-",'5-Data-Inputs'!F78,"-") -> - | F176: =IF(F172<>"-",'5-Data-Inputs'!G78,"-") -> - | G176: =IF(G172<>"-",'5-Data-Inputs'!H78,"-") -> - | H176: =IF(H172<>"-",'5-Data-Inputs'!I78,"-") -> - | I176: =IF(I172<>"-",'5-Data-Inputs'!J78,"-") -> - | J176: =IF(J172<>"-",'5-Data-Inputs'!K78,"-") -> - | K176: =IF(K172<>"-",'5-Data-Inputs'!L78,"-") -> - | L176: =IF(L172<>"-",'5-Data-Inputs'!M78,"-") -> - | M176: =IF(M172<>"-",'5-Data-Inputs'!N78,"-") -> - | N176: =IF(N172<>"-",'5-Data-Inputs'!O78,"-") -> - | O176: =IF(O172<>"-",'5-Data-Inputs'!P78,"-") -> - | P176: =IF(P172<>"-",'5-Data-Inputs'!Q78,"-") -> - | Q176: =IF(Q172<>"-",'5-Data-Inputs'!R78,"-") -> - | R176: =IF(R172<>"-",'5-Data-Inputs'!S78,"-") -> -
B177: Deterioration Rate | C177: - | D177: =IF(D172<>"-",'5-Data-Inputs'!E98,"-") -> - | E177: =IF(E172<>"-",'5-Data-Inputs'!F98,"-") -> - | F177: =IF(F172<>"-",'5-Data-Inputs'!G98,"-") -> - | G177: =IF(G172<>"-",'5-Data-Inputs'!H98,"-") -> - | H177: =IF(H172<>"-",'5-Data-Inputs'!I98,"-") -> - | I177: =IF(I172<>"-",'5-Data-Inputs'!J98,"-") -> - | J177: =IF(J172<>"-",'5-Data-Inputs'!K98,"-") -> - | K177: =IF(K172<>"-",'5-Data-Inputs'!L98,"-") -> - | L177: =IF(L172<>"-",'5-Data-Inputs'!M98,"-") -> - | M177: =IF(M172<>"-",'5-Data-Inputs'!N98,"-") -> - | N177: =IF(N172<>"-",'5-Data-Inputs'!O98,"-") -> - | O177: =IF(O172<>"-",'5-Data-Inputs'!P98,"-") -> - | P177: =IF(P172<>"-",'5-Data-Inputs'!Q98,"-") -> - | Q177: =IF(Q172<>"-",'5-Data-Inputs'!R98,"-") -> - | R177: =IF(R172<>"-",'5-Data-Inputs'!S98,"-") -> -
B178: Unconstrained Need | C178: =SUM(D178:R178) -> 0 | D178: =IF(D172<>"-",(D174-D173)*D176*D172,"-") -> - | E178: =IF(E172<>"-",(E174-E173)*E176*E172,"-") -> - | F178: - | G178: - | H178: - | I178: - | J178: - | K178: - | L178: - | M178: - | N178: - | O178: - | P178: - | Q178: - | R178: -
B179: Ave. Annual Deterioration | C179: =SUM(D179:R179) -> 0 | D179: =IF(D172<>"-",D177*D172*D176,"-") -> - | E179: =IF(E172<>"-",E177*E172*E176,"-") -> - | F179: - | G179: - | H179: - | I179: - | J179: - | K179: - | L179: - | M179: - | N179: - | O179: - | P179: - | Q179: - | R179: -
B180: Total needed for Target Rating | C180: =SUM(D180:R180) -> 0 | D180: =IF(D172<>"-",(D175-D173)*D176*D172,"-") -> - | E180: =IF(E172<>"-",(E175-E173)*E176*E172,"-") -> - | F180: - | G180: - | H180: - | I180: - | J180: - | K180: - | L180: - | M180: - | N180: - | O180: - | P180: - | Q180: - | R180: -
B181: Desired Time for Target Rating (Years) | C181: - | D181: =IF(D172<>"-",'4-Strategy-Inputs'!$F$27,"-") -> - | E181: =IF(E172<>"-",'4-Strategy-Inputs'!$F$27,"-") -> - | F181: =IF(F172<>"-",'4-Strategy-Inputs'!$F$27,"-") -> - | G181: =IF(G172<>"-",'4-Strategy-Inputs'!$F$27,"-") -> - | H181: =IF(H172<>"-",'4-Strategy-Inputs'!$F$27,"-") -> - | I181: =IF(I172<>"-",'4-Strategy-Inputs'!$F$27,"-") -> - | J181: =IF(J172<>"-",'4-Strategy-Inputs'!$F$27,"-") -> - | K181: =IF(K172<>"-",'4-Strategy-Inputs'!$F$27,"-") -> - | L181: =IF(L172<>"-",'4-Strategy-Inputs'!$F$27,"-") -> - | M181: =IF(M172<>"-",'4-Strategy-Inputs'!$F$27,"-") -> - | N181: =IF(N172<>"-",'4-Strategy-Inputs'!$F$27,"-") -> - | O181: =IF(O172<>"-",'4-Strategy-Inputs'!$F$27,"-") -> - | P181: =IF(P172<>"-",'4-Strategy-Inputs'!$F$27,"-") -> - | Q181: =IF(Q172<>"-",'4-Strategy-Inputs'!$F$27,"-") -> - | R181: =IF(R172<>"-",'4-Strategy-Inputs'!$F$27,"-") -> -
B182: Annual Allocation needed to meet target Ratings and timelines | C182: =SUM(D182:R182) -> 0 | D182: =IF(D172<>"-",IF(D181>0, D179+(D180/D181),0),"-") -> - | E182: =IF(E172<>"-",IF(E181>0, E179+(E180/E181),0),"-") -> - | F182: - | G182: - | H182: - | I182: - | J182: - | K182: - | L182: - | M182: - | N182: - | O182: - | P182: - | Q182: - | R182: -
B183: Funds needed to improve average current rating by 1% | C183: =SUM(D183:R183) -> 0 | D183: =IF(D172<>"-",D176*D172/100,"-") -> - | E183: =IF(E172<>"-",E176*E172/100,"-") -> - | F183: - | G183: - | H183: - | I183: - | J183: - | K183: - | L183: - | M183: - | N183: - | O183: - | P183: - | Q183: - | R183: -
B185: Asset-Activity Group #13 | C185: Total | D185: Districts
B186: ='3-Basic Inputs'!B18 -> - | D186: ='3-Basic Inputs'!$I$6 -> District 1 | E186: ='3-Basic Inputs'!$I$7 -> District 2 | F186: ='3-Basic Inputs'!$I$8 -> District 3 | G186: ='3-Basic Inputs'!$I$9 -> District 4 | H186: ='3-Basic Inputs'!$I$10 -> District 5 | I186: ='3-Basic Inputs'!$I$11 -> District 6 | J186: ='3-Basic Inputs'!$I$12 -> District 7 | K186: ='3-Basic Inputs'!$I$13 -> District 8 | L186: ='3-Basic Inputs'!$I$14 -> District 9 | M186: ='3-Basic Inputs'!$I$15 -> District 10 | N186: ='3-Basic Inputs'!$I$16 -> District 11 | O186: ='3-Basic Inputs'!$I$17 -> District 12 | P186: ='3-Basic Inputs'!$I$18 -> District 13 | Q186: ='3-Basic Inputs'!$I$19 -> District 14 | R186: ='3-Basic Inputs'!$I$20 -> District 15
B187: ='3-Basic Inputs'!C18 -> - | C187: =SUM(D187:R187) -> 0 | D187: =IF('5-Data-Inputs'!E19>0,'5-Data-Inputs'!E19,"-") -> - | E187: =IF('5-Data-Inputs'!F19>0,'5-Data-Inputs'!F19,"-") -> - | F187: =IF('5-Data-Inputs'!G19>0,'5-Data-Inputs'!G19,"-") -> - | G187: =IF('5-Data-Inputs'!H19>0,'5-Data-Inputs'!H19,"-") -> - | H187: =IF('5-Data-Inputs'!I19>0,'5-Data-Inputs'!I19,"-") -> - | I187: =IF('5-Data-Inputs'!J19>0,'5-Data-Inputs'!J19,"-") -> - | J187: =IF('5-Data-Inputs'!K19>0,'5-Data-Inputs'!K19,"-") -> - | K187: =IF('5-Data-Inputs'!L19>0,'5-Data-Inputs'!L19,"-") -> - | L187: =IF('5-Data-Inputs'!M19>0,'5-Data-Inputs'!M19,"-") -> - | M187: =IF('5-Data-Inputs'!N19>0,'5-Data-Inputs'!N19,"-") -> - | N187: =IF('5-Data-Inputs'!O19>0,'5-Data-Inputs'!O19,"-") -> - | O187: =IF('5-Data-Inputs'!P19>0,'5-Data-Inputs'!P19,"-") -> - | P187: =IF('5-Data-Inputs'!Q19>0,'5-Data-Inputs'!Q19,"-") -> - | Q187: =IF('5-Data-Inputs'!R19>0,'5-Data-Inputs'!R19,"-") -> - | R187: =IF('5-Data-Inputs'!S19>0,'5-Data-Inputs'!S19,"-") -> -
B188: Current Rating | C188: - | D188: =IF('5-Data-Inputs'!E19>0,'5-Data-Inputs'!E40,"-") -> - | E188: =IF('5-Data-Inputs'!F19>0,'5-Data-Inputs'!F40,"-") -> - | F188: =IF('5-Data-Inputs'!G19>0,'5-Data-Inputs'!G40,"-") -> - | G188: =IF('5-Data-Inputs'!H19>0,'5-Data-Inputs'!H40,"-") -> - | H188: =IF('5-Data-Inputs'!I19>0,'5-Data-Inputs'!I40,"-") -> - | I188: =IF('5-Data-Inputs'!J19>0,'5-Data-Inputs'!J40,"-") -> - | J188: =IF('5-Data-Inputs'!K19>0,'5-Data-Inputs'!K40,"-") -> - | K188: =IF('5-Data-Inputs'!L19>0,'5-Data-Inputs'!L40,"-") -> - | L188: =IF('5-Data-Inputs'!M19>0,'5-Data-Inputs'!M40,"-") -> - | M188: =IF('5-Data-Inputs'!N19>0,'5-Data-Inputs'!N40,"-") -> - | N188: =IF('5-Data-Inputs'!O19>0,'5-Data-Inputs'!O40,"-") -> - | O188: =IF('5-Data-Inputs'!P19>0,'5-Data-Inputs'!P40,"-") -> - | P188: =IF('5-Data-Inputs'!Q19>0,'5-Data-Inputs'!Q40,"-") -> - | Q188: =IF('5-Data-Inputs'!R19>0,'5-Data-Inputs'!R40,"-") -> - | R188: =IF('5-Data-Inputs'!S19>0,'5-Data-Inputs'!S40,"-") -> -
B189: Ideal Rating | C189: - | D189: =IF('5-Data-Inputs'!E19>0,'4-Strategy-Inputs'!$D$28,"-") -> - | E189: =IF('5-Data-Inputs'!F19>0,'4-Strategy-Inputs'!$D$28,"-") -> - | F189: =IF('5-Data-Inputs'!G19>0,'4-Strategy-Inputs'!$D$28,"-") -> - | G189: =IF('5-Data-Inputs'!H19>0,'4-Strategy-Inputs'!$D$28,"-") -> - | H189: =IF('5-Data-Inputs'!I19>0,'4-Strategy-Inputs'!$D$28,"-") -> - | I189: =IF('5-Data-Inputs'!J19>0,'4-Strategy-Inputs'!$D$28,"-") -> - | J189: =IF('5-Data-Inputs'!K19>0,'4-Strategy-Inputs'!$D$28,"-") -> - | K189: =IF('5-Data-Inputs'!L19>0,'4-Strategy-Inputs'!$D$28,"-") -> - | L189: =IF('5-Data-Inputs'!M19>0,'4-Strategy-Inputs'!$D$28,"-") -> - | M189: =IF('5-Data-Inputs'!N19>0,'4-Strategy-Inputs'!$D$28,"-") -> - | N189: =IF('5-Data-Inputs'!O19>0,'4-Strategy-Inputs'!$D$28,"-") -> - | O189: =IF('5-Data-Inputs'!P19>0,'4-Strategy-Inputs'!$D$28,"-") -> - | P189: =IF('5-Data-Inputs'!Q19>0,'4-Strategy-Inputs'!$D$28,"-") -> - | Q189: =IF('5-Data-Inputs'!R19>0,'4-Strategy-Inputs'!$D$28,"-") -> - | R189: =IF('5-Data-Inputs'!S19>0,'4-Strategy-Inputs'!$D$28,"-") -> -
B190: Target Rating | C190: - | D190: =IF('5-Data-Inputs'!E19>0,'4-Strategy-Inputs'!$E$28,"-") -> - | E190: =IF('5-Data-Inputs'!F19>0,'4-Strategy-Inputs'!$E$28,"-") -> - | F190: =IF('5-Data-Inputs'!G19>0,'4-Strategy-Inputs'!$E$28,"-") -> - | G190: =IF('5-Data-Inputs'!H19>0,'4-Strategy-Inputs'!$E$28,"-") -> - | H190: =IF('5-Data-Inputs'!I19>0,'4-Strategy-Inputs'!$E$28,"-") -> - | I190: =IF('5-Data-Inputs'!J19>0,'4-Strategy-Inputs'!$E$28,"-") -> - | J190: =IF('5-Data-Inputs'!K19>0,'4-Strategy-Inputs'!$E$28,"-") -> - | K190: =IF('5-Data-Inputs'!L19>0,'4-Strategy-Inputs'!$E$28,"-") -> - | L190: =IF('5-Data-Inputs'!M19>0,'4-Strategy-Inputs'!$E$28,"-") -> - | M190: =IF('5-Data-Inputs'!N19>0,'4-Strategy-Inputs'!$E$28,"-") -> - | N190: =IF('5-Data-Inputs'!O19>0,'4-Strategy-Inputs'!$E$28,"-") -> - | O190: =IF('5-Data-Inputs'!P19>0,'4-Strategy-Inputs'!$E$28,"-") -> - | P190: =IF('5-Data-Inputs'!Q19>0,'4-Strategy-Inputs'!$E$28,"-") -> - | Q190: =IF('5-Data-Inputs'!R19>0,'4-Strategy-Inputs'!$E$28,"-") -> - | R190: =IF('5-Data-Inputs'!S19>0,'4-Strategy-Inputs'!$E$28,"-") -> -
B191: Average Unit Cost $ | C191: - | D191: =IF('5-Data-Inputs'!E19>0,'5-Data-Inputs'!E79,"-") -> - | E191: =IF('5-Data-Inputs'!F19>0,'5-Data-Inputs'!F79,"-") -> - | F191: =IF('5-Data-Inputs'!G19>0,'5-Data-Inputs'!G79,"-") -> - | G191: =IF('5-Data-Inputs'!H19>0,'5-Data-Inputs'!H79,"-") -> - | H191: =IF('5-Data-Inputs'!I19>0,'5-Data-Inputs'!I79,"-") -> - | I191: =IF('5-Data-Inputs'!J19>0,'5-Data-Inputs'!J79,"-") -> - | J191: =IF('5-Data-Inputs'!K19>0,'5-Data-Inputs'!K79,"-") -> - | K191: =IF('5-Data-Inputs'!L19>0,'5-Data-Inputs'!L79,"-") -> - | L191: =IF('5-Data-Inputs'!M19>0,'5-Data-Inputs'!M79,"-") -> - | M191: =IF('5-Data-Inputs'!N19>0,'5-Data-Inputs'!N79,"-") -> - | N191: =IF('5-Data-Inputs'!O19>0,'5-Data-Inputs'!O79,"-") -> - | O191: =IF('5-Data-Inputs'!P19>0,'5-Data-Inputs'!P79,"-") -> - | P191: =IF('5-Data-Inputs'!Q19>0,'5-Data-Inputs'!Q79,"-") -> - | Q191: =IF('5-Data-Inputs'!R19>0,'5-Data-Inputs'!R79,"-") -> - | R191: =IF('5-Data-Inputs'!S19>0,'5-Data-Inputs'!S79,"-") -> -
B192: Deterioration Rate | C192: - | D192: =IF('5-Data-Inputs'!E19>0,'5-Data-Inputs'!E99,"-") -> - | E192: =IF('5-Data-Inputs'!F19>0,'5-Data-Inputs'!F99,"-") -> - | F192: =IF('5-Data-Inputs'!G19>0,'5-Data-Inputs'!G99,"-") -> - | G192: =IF('5-Data-Inputs'!H19>0,'5-Data-Inputs'!H99,"-") -> - | H192: =IF('5-Data-Inputs'!I19>0,'5-Data-Inputs'!I99,"-") -> - | I192: =IF('5-Data-Inputs'!J19>0,'5-Data-Inputs'!J99,"-") -> - | J192: =IF('5-Data-Inputs'!K19>0,'5-Data-Inputs'!K99,"-") -> - | K192: =IF('5-Data-Inputs'!L19>0,'5-Data-Inputs'!L99,"-") -> - | L192: =IF('5-Data-Inputs'!M19>0,'5-Data-Inputs'!M99,"-") -> - | M192: =IF('5-Data-Inputs'!N19>0,'5-Data-Inputs'!N99,"-") -> - | N192: =IF('5-Data-Inputs'!O19>0,'5-Data-Inputs'!O99,"-") -> - | O192: =IF('5-Data-Inputs'!P19>0,'5-Data-Inputs'!P99,"-") -> - | P192: =IF('5-Data-Inputs'!Q19>0,'5-Data-Inputs'!Q99,"-") -> - | Q192: =IF('5-Data-Inputs'!R19>0,'5-Data-Inputs'!R99,"-") -> - | R192: =IF('5-Data-Inputs'!S19>0,'5-Data-Inputs'!S99,"-") -> -
B193: Unconstrained Need | C193: =SUM(D193:R193) -> 0 | D193: =IF('5-Data-Inputs'!E19>0,(D189-D188)*D191*D187,"-") -> - | E193: =IF('5-Data-Inputs'!F19>0,(E189-E188)*E191*E187,"-") -> - | F193: =IF('5-Data-Inputs'!G19>0,(F189-F188)*F191*F187,"-") -> - | G193: =IF('5-Data-Inputs'!H19>0,(G189-G188)*G191*G187,"-") -> - | H193: =IF('5-Data-Inputs'!I19>0,(H189-H188)*H191*H187,"-") -> - | I193: =IF('5-Data-Inputs'!J19>0,(I189-I188)*I191*I187,"-") -> - | J193: =IF('5-Data-Inputs'!K19>0,(J189-J188)*J191*J187,"-") -> - | K193: =IF('5-Data-Inputs'!L19>0,(K189-K188)*K191*K187,"-") -> - | L193: =IF('5-Data-Inputs'!M19>0,(L189-L188)*L191*L187,"-") -> - | M193: =IF('5-Data-Inputs'!N19>0,(M189-M188)*M191*M187,"-") -> - | N193: =IF('5-Data-Inputs'!O19>0,(N189-N188)*N191*N187,"-") -> - | O193: =IF('5-Data-Inputs'!P19>0,(O189-O188)*O191*O187,"-") -> - | P193: =IF('5-Data-Inputs'!Q19>0,(P189-P188)*P191*P187,"-") -> - | Q193: =IF('5-Data-Inputs'!R19>0,(Q189-Q188)*Q191*Q187,"-") -> - | R193: =IF('5-Data-Inputs'!S19>0,(R189-R188)*R191*R187,"-") -> -
B194: Ave. Annual Deterioration | C194: =SUM(D194:R194) -> 0 | D194: =IF('5-Data-Inputs'!E19>0,D192*D187*D191,"-") -> - | E194: =IF('5-Data-Inputs'!F19>0,E192*E187*E191,"-") -> - | F194: =IF('5-Data-Inputs'!G19>0,F192*F187*F191,"-") -> - | G194: =IF('5-Data-Inputs'!H19>0,G192*G187*G191,"-") -> - | H194: =IF('5-Data-Inputs'!I19>0,H192*H187*H191,"-") -> - | I194: =IF('5-Data-Inputs'!J19>0,I192*I187*I191,"-") -> - | J194: =IF('5-Data-Inputs'!K19>0,J192*J187*J191,"-") -> - | K194: =IF('5-Data-Inputs'!L19>0,K192*K187*K191,"-") -> - | L194: =IF('5-Data-Inputs'!M19>0,L192*L187*L191,"-") -> - | M194: =IF('5-Data-Inputs'!N19>0,M192*M187*M191,"-") -> - | N194: =IF('5-Data-Inputs'!O19>0,N192*N187*N191,"-") -> - | O194: =IF('5-Data-Inputs'!P19>0,O192*O187*O191,"-") -> - | P194: =IF('5-Data-Inputs'!Q19>0,P192*P187*P191,"-") -> - | Q194: =IF('5-Data-Inputs'!R19>0,Q192*Q187*Q191,"-") -> - | R194: =IF('5-Data-Inputs'!S19>0,R192*R187*R191,"-") -> -
B195: Total needed for Target Rating | C195: =SUM(D195:R195) -> 0 | D195: =IF('5-Data-Inputs'!E19>0,(D190-D188)*D191*D187,"-") -> - | E195: =IF('5-Data-Inputs'!F19>0,(E190-E188)*E191*E187,"-") -> - | F195: =IF('5-Data-Inputs'!G19>0,(F190-F188)*F191*F187,"-") -> - | G195: =IF('5-Data-Inputs'!H19>0,(G190-G188)*G191*G187,"-") -> - | H195: =IF('5-Data-Inputs'!I19>0,(H190-H188)*H191*H187,"-") -> - | I195: =IF('5-Data-Inputs'!J19>0,(I190-I188)*I191*I187,"-") -> - | J195: =IF('5-Data-Inputs'!K19>0,(J190-J188)*J191*J187,"-") -> - | K195: =IF('5-Data-Inputs'!L19>0,(K190-K188)*K191*K187,"-") -> - | L195: =IF('5-Data-Inputs'!M19>0,(L190-L188)*L191*L187,"-") -> - | M195: =IF('5-Data-Inputs'!N19>0,(M190-M188)*M191*M187,"-") -> - | N195: =IF('5-Data-Inputs'!O19>0,(N190-N188)*N191*N187,"-") -> - | O195: =IF('5-Data-Inputs'!P19>0,(O190-O188)*O191*O187,"-") -> - | P195: =IF('5-Data-Inputs'!Q19>0,(P190-P188)*P191*P187,"-") -> - | Q195: =IF('5-Data-Inputs'!R19>0,(Q190-Q188)*Q191*Q187,"-") -> - | R195: =IF('5-Data-Inputs'!S19>0,(R190-R188)*R191*R187,"-") -> -
B196: Desired Time for Target Rating (Years) | C196: - | D196: =IF('5-Data-Inputs'!E19>0,'4-Strategy-Inputs'!$F$28,"-") -> - | E196: =IF('5-Data-Inputs'!F19>0,'4-Strategy-Inputs'!$F$28,"-") -> - | F196: =IF('5-Data-Inputs'!G19>0,'4-Strategy-Inputs'!$F$28,"-") -> - | G196: =IF('5-Data-Inputs'!H19>0,'4-Strategy-Inputs'!$F$28,"-") -> - | H196: =IF('5-Data-Inputs'!I19>0,'4-Strategy-Inputs'!$F$28,"-") -> - | I196: =IF('5-Data-Inputs'!J19>0,'4-Strategy-Inputs'!$F$28,"-") -> - | J196: =IF('5-Data-Inputs'!K19>0,'4-Strategy-Inputs'!$F$28,"-") -> - | K196: =IF('5-Data-Inputs'!L19>0,'4-Strategy-Inputs'!$F$28,"-") -> - | L196: =IF('5-Data-Inputs'!M19>0,'4-Strategy-Inputs'!$F$28,"-") -> - | M196: =IF('5-Data-Inputs'!N19>0,'4-Strategy-Inputs'!$F$28,"-") -> - | N196: =IF('5-Data-Inputs'!O19>0,'4-Strategy-Inputs'!$F$28,"-") -> - | O196: =IF('5-Data-Inputs'!P19>0,'4-Strategy-Inputs'!$F$28,"-") -> - | P196: =IF('5-Data-Inputs'!Q19>0,'4-Strategy-Inputs'!$F$28,"-") -> - | Q196: =IF('5-Data-Inputs'!R19>0,'4-Strategy-Inputs'!$F$28,"-") -> - | R196: =IF('5-Data-Inputs'!S19>0,'4-Strategy-Inputs'!$F$28,"-") -> -
B197: Annual Allocation needed to meet target Ratings and timelines | C197: =SUM(D197:R197) -> 0 | D197: =IF('5-Data-Inputs'!E19>0,IF(D196>0, D194+(D195/D196),0),"-") -> - | E197: =IF('5-Data-Inputs'!F19>0,IF(E196>0, E194+(E195/E196),0),"-") -> - | F197: =IF('5-Data-Inputs'!G19>0,IF(F196>0, F194+(F195/F196),0),"-") -> - | G197: =IF('5-Data-Inputs'!H19>0,IF(G196>0, G194+(G195/G196),0),"-") -> - | H197: =IF('5-Data-Inputs'!I19>0,IF(H196>0, H194+(H195/H196),0),"-") -> - | I197: =IF('5-Data-Inputs'!J19>0,IF(I196>0, I194+(I195/I196),0),"-") -> - | J197: =IF('5-Data-Inputs'!K19>0,IF(J196>0, J194+(J195/J196),0),"-") -> - | K197: =IF('5-Data-Inputs'!L19>0,IF(K196>0, K194+(K195/K196),0),"-") -> - | L197: =IF('5-Data-Inputs'!M19>0,IF(L196>0, L194+(L195/L196),0),"-") -> - | M197: =IF('5-Data-Inputs'!N19>0,IF(M196>0, M194+(M195/M196),0),"-") -> - | N197: =IF('5-Data-Inputs'!O19>0,IF(N196>0, N194+(N195/N196),0),"-") -> - | O197: =IF('5-Data-Inputs'!P19>0,IF(O196>0, O194+(O195/O196),0),"-") -> - | P197: =IF('5-Data-Inputs'!Q19>0,IF(P196>0, P194+(P195/P196),0),"-") -> - | Q197: =IF('5-Data-Inputs'!R19>0,IF(Q196>0, Q194+(Q195/Q196),0),"-") -> - | R197: =IF('5-Data-Inputs'!S19>0,IF(R196>0, R194+(R195/R196),0),"-") -> -
B198: Funds needed to improve average current rating by 1% | C198: =SUM(D198:R198) -> 0 | D198: =IF('5-Data-Inputs'!E19>0,D191*D187/100,"-") -> - | E198: =IF('5-Data-Inputs'!F19>0,E191*E187/100,"-") -> - | F198: =IF('5-Data-Inputs'!G19>0,F191*F187/100,"-") -> - | G198: =IF('5-Data-Inputs'!H19>0,G191*G187/100,"-") -> - | H198: =IF('5-Data-Inputs'!I19>0,H191*H187/100,"-") -> - | I198: =IF('5-Data-Inputs'!J19>0,I191*I187/100,"-") -> - | J198: =IF('5-Data-Inputs'!K19>0,J191*J187/100,"-") -> - | K198: =IF('5-Data-Inputs'!L19>0,K191*K187/100,"-") -> - | L198: =IF('5-Data-Inputs'!M19>0,L191*L187/100,"-") -> - | M198: =IF('5-Data-Inputs'!N19>0,M191*M187/100,"-") -> - | N198: =IF('5-Data-Inputs'!O19>0,N191*N187/100,"-") -> - | O198: =IF('5-Data-Inputs'!P19>0,O191*O187/100,"-") -> - | P198: =IF('5-Data-Inputs'!Q19>0,P191*P187/100,"-") -> - | Q198: =IF('5-Data-Inputs'!R19>0,Q191*Q187/100,"-") -> - | R198: =IF('5-Data-Inputs'!S19>0,R191*R187/100,"-") -> -
B200: Asset-Activity Group #14 | C200: Total | D200: Districts
B201: ='3-Basic Inputs'!B19 -> - | D201: ='3-Basic Inputs'!$I$6 -> District 1 | E201: ='3-Basic Inputs'!$I$7 -> District 2 | F201: ='3-Basic Inputs'!$I$8 -> District 3 | G201: ='3-Basic Inputs'!$I$9 -> District 4 | H201: ='3-Basic Inputs'!$I$10 -> District 5 | I201: ='3-Basic Inputs'!$I$11 -> District 6 | J201: ='3-Basic Inputs'!$I$12 -> District 7 | K201: ='3-Basic Inputs'!$I$13 -> District 8 | L201: ='3-Basic Inputs'!$I$14 -> District 9 | M201: ='3-Basic Inputs'!$I$15 -> District 10 | N201: ='3-Basic Inputs'!$I$16 -> District 11 | O201: ='3-Basic Inputs'!$I$17 -> District 12 | P201: ='3-Basic Inputs'!$I$18 -> District 13 | Q201: ='3-Basic Inputs'!$I$19 -> District 14 | R201: ='3-Basic Inputs'!$I$20 -> District 15
B202: ='3-Basic Inputs'!C19 -> - | C202: =SUM(D202:R202) -> 0 | D202: =IF('5-Data-Inputs'!E20>0, '5-Data-Inputs'!E20,"-") -> - | E202: =IF('5-Data-Inputs'!F20>0, '5-Data-Inputs'!F20,"-") -> - | F202: =IF('5-Data-Inputs'!G20>0, '5-Data-Inputs'!G20,"-") -> - | G202: =IF('5-Data-Inputs'!H20>0, '5-Data-Inputs'!H20,"-") -> - | H202: =IF('5-Data-Inputs'!I20>0, '5-Data-Inputs'!I20,"-") -> - | I202: =IF('5-Data-Inputs'!J20>0, '5-Data-Inputs'!J20,"-") -> - | J202: =IF('5-Data-Inputs'!K20>0, '5-Data-Inputs'!K20,"-") -> - | K202: =IF('5-Data-Inputs'!L20>0, '5-Data-Inputs'!L20,"-") -> - | L202: =IF('5-Data-Inputs'!M20>0, '5-Data-Inputs'!M20,"-") -> - | M202: =IF('5-Data-Inputs'!N20>0, '5-Data-Inputs'!N20,"-") -> - | N202: =IF('5-Data-Inputs'!O20>0, '5-Data-Inputs'!O20,"-") -> - | O202: =IF('5-Data-Inputs'!P20>0, '5-Data-Inputs'!P20,"-") -> - | P202: =IF('5-Data-Inputs'!Q20>0, '5-Data-Inputs'!Q20,"-") -> - | Q202: =IF('5-Data-Inputs'!R20>0, '5-Data-Inputs'!R20,"-") -> - | R202: =IF('5-Data-Inputs'!S20>0, '5-Data-Inputs'!S20,"-") -> -
B203: Current Rating | C203: - | D203: =IF(D202<>"-", '5-Data-Inputs'!E41,"-") -> - | E203: =IF(E202<>"-", '5-Data-Inputs'!F41,"-") -> - | F203: =IF(F202<>"-", '5-Data-Inputs'!G41,"-") -> - | G203: =IF(G202<>"-", '5-Data-Inputs'!H41,"-") -> - | H203: =IF(H202<>"-", '5-Data-Inputs'!I41,"-") -> - | I203: =IF(I202<>"-", '5-Data-Inputs'!J41,"-") -> - | J203: =IF(J202<>"-", '5-Data-Inputs'!K41,"-") -> - | K203: =IF(K202<>"-", '5-Data-Inputs'!L41,"-") -> - | L203: =IF(L202<>"-", '5-Data-Inputs'!M41,"-") -> - | M203: =IF(M202<>"-", '5-Data-Inputs'!N41,"-") -> - | N203: =IF(N202<>"-", '5-Data-Inputs'!O41,"-") -> - | O203: =IF(O202<>"-", '5-Data-Inputs'!P41,"-") -> - | P203: =IF(P202<>"-", '5-Data-Inputs'!Q41,"-") -> - | Q203: =IF(Q202<>"-", '5-Data-Inputs'!R41,"-") -> - | R203: =IF(R202<>"-", '5-Data-Inputs'!S41,"-") -> -
B204: Ideal Rating | C204: - | D204: =IF(D202<>"-",'4-Strategy-Inputs'!$D$29,"-") -> - | E204: =IF(E202<>"-",'4-Strategy-Inputs'!$D$29,"-") -> - | F204: =IF(F202<>"-",'4-Strategy-Inputs'!$D$29,"-") -> - | G204: =IF(G202<>"-",'4-Strategy-Inputs'!$D$29,"-") -> - | H204: =IF(H202<>"-",'4-Strategy-Inputs'!$D$29,"-") -> - | I204: =IF(I202<>"-",'4-Strategy-Inputs'!$D$29,"-") -> - | J204: =IF(J202<>"-",'4-Strategy-Inputs'!$D$29,"-") -> - | K204: =IF(K202<>"-",'4-Strategy-Inputs'!$D$29,"-") -> - | L204: =IF(L202<>"-",'4-Strategy-Inputs'!$D$29,"-") -> - | M204: =IF(M202<>"-",'4-Strategy-Inputs'!$D$29,"-") -> - | N204: =IF(N202<>"-",'4-Strategy-Inputs'!$D$29,"-") -> - | O204: =IF(O202<>"-",'4-Strategy-Inputs'!$D$29,"-") -> - | P204: =IF(P202<>"-",'4-Strategy-Inputs'!$D$29,"-") -> - | Q204: =IF(Q202<>"-",'4-Strategy-Inputs'!$D$29,"-") -> - | R204: =IF(R202<>"-",'4-Strategy-Inputs'!$D$29,"-") -> -
B205: Target Rating | C205: - | D205: =IF(D202<>"-",'4-Strategy-Inputs'!$E$29,"-") -> - | E205: =IF(E202<>"-",'4-Strategy-Inputs'!$E$29,"-") -> - | F205: =IF(F202<>"-",'4-Strategy-Inputs'!$E$29,"-") -> - | G205: =IF(G202<>"-",'4-Strategy-Inputs'!$E$29,"-") -> - | H205: =IF(H202<>"-",'4-Strategy-Inputs'!$E$29,"-") -> - | I205: =IF(I202<>"-",'4-Strategy-Inputs'!$E$29,"-") -> - | J205: =IF(J202<>"-",'4-Strategy-Inputs'!$E$29,"-") -> - | K205: =IF(K202<>"-",'4-Strategy-Inputs'!$E$29,"-") -> - | L205: =IF(L202<>"-",'4-Strategy-Inputs'!$E$29,"-") -> - | M205: =IF(M202<>"-",'4-Strategy-Inputs'!$E$29,"-") -> - | N205: =IF(N202<>"-",'4-Strategy-Inputs'!$E$29,"-") -> - | O205: =IF(O202<>"-",'4-Strategy-Inputs'!$E$29,"-") -> - | P205: =IF(P202<>"-",'4-Strategy-Inputs'!$E$29,"-") -> - | Q205: =IF(Q202<>"-",'4-Strategy-Inputs'!$E$29,"-") -> - | R205: =IF(R202<>"-",'4-Strategy-Inputs'!$E$29,"-") -> -
B206: Average Unit Cost $ | C206: - | D206: =IF(D202<>"-",'5-Data-Inputs'!E80,"-") -> - | E206: =IF(E202<>"-",'5-Data-Inputs'!F80,"-") -> - | F206: =IF(F202<>"-",'5-Data-Inputs'!G80,"-") -> - | G206: =IF(G202<>"-",'5-Data-Inputs'!H80,"-") -> - | H206: =IF(H202<>"-",'5-Data-Inputs'!I80,"-") -> - | I206: =IF(I202<>"-",'5-Data-Inputs'!J80,"-") -> - | J206: =IF(J202<>"-",'5-Data-Inputs'!K80,"-") -> - | K206: =IF(K202<>"-",'5-Data-Inputs'!L80,"-") -> - | L206: =IF(L202<>"-",'5-Data-Inputs'!M80,"-") -> - | M206: =IF(M202<>"-",'5-Data-Inputs'!N80,"-") -> - | N206: =IF(N202<>"-",'5-Data-Inputs'!O80,"-") -> - | O206: =IF(O202<>"-",'5-Data-Inputs'!P80,"-") -> - | P206: =IF(P202<>"-",'5-Data-Inputs'!Q80,"-") -> - | Q206: =IF(Q202<>"-",'5-Data-Inputs'!R80,"-") -> - | R206: =IF(R202<>"-",'5-Data-Inputs'!S80,"-") -> -
B207: Deterioration Rate | C207: - | D207: =IF(D202<>"-",'5-Data-Inputs'!E100,"-") -> - | E207: =IF(E202<>"-",'5-Data-Inputs'!F100,"-") -> - | F207: =IF(F202<>"-",'5-Data-Inputs'!G100,"-") -> - | G207: =IF(G202<>"-",'5-Data-Inputs'!H100,"-") -> - | H207: =IF(H202<>"-",'5-Data-Inputs'!I100,"-") -> - | I207: =IF(I202<>"-",'5-Data-Inputs'!J100,"-") -> - | J207: =IF(J202<>"-",'5-Data-Inputs'!K100,"-") -> - | K207: =IF(K202<>"-",'5-Data-Inputs'!L100,"-") -> - | L207: =IF(L202<>"-",'5-Data-Inputs'!M100,"-") -> - | M207: =IF(M202<>"-",'5-Data-Inputs'!N100,"-") -> - | N207: =IF(N202<>"-",'5-Data-Inputs'!O100,"-") -> - | O207: =IF(O202<>"-",'5-Data-Inputs'!P100,"-") -> - | P207: =IF(P202<>"-",'5-Data-Inputs'!Q100,"-") -> - | Q207: =IF(Q202<>"-",'5-Data-Inputs'!R100,"-") -> - | R207: =IF(R202<>"-",'5-Data-Inputs'!S100,"-") -> -
B208: Unconstrained Need | C208: =SUM(D208:R208) -> 0 | D208: =IF(D202<>"-",(D204-D203)*D206*D202,"-") -> - | E208: =IF(E202<>"-",(E204-E203)*E206*E202,"-") -> - | F208: - | G208: - | H208: - | I208: - | J208: - | K208: - | L208: - | M208: - | N208: - | O208: - | P208: - | Q208: - | R208: -
B209: Ave. Annual Deterioration | C209: =SUM(D209:R209) -> 0 | D209: =IF(D202<>"-",D207*D202*D206,"-") -> - | E209: =IF(E202<>"-",E207*E202*E206,"-") -> - | F209: - | G209: - | H209: - | I209: - | J209: - | K209: - | L209: - | M209: - | N209: - | O209: - | P209: - | Q209: - | R209: -
B210: Total needed for Target Rating | C210: =SUM(D210:R210) -> 0 | D210: =IF(D202<>"-",(D205-D203)*D206*D202,"-") -> - | E210: =IF(E202<>"-",(E205-E203)*E206*E202,"-") -> - | F210: - | G210: - | H210: - | I210: - | J210: - | K210: - | L210: - | M210: - | N210: - | O210: - | P210: - | Q210: - | R210: -
B211: Desired Time for Target Rating (Years) | C211: - | D211: =IF(D202<>"-",'4-Strategy-Inputs'!$F$29,"-") -> - | E211: =IF(E202<>"-",'4-Strategy-Inputs'!$F$29,"-") -> - | F211: =IF(F202<>"-",'4-Strategy-Inputs'!$F$29,"-") -> - | G211: =IF(G202<>"-",'4-Strategy-Inputs'!$F$29,"-") -> - | H211: =IF(H202<>"-",'4-Strategy-Inputs'!$F$29,"-") -> - | I211: =IF(I202<>"-",'4-Strategy-Inputs'!$F$29,"-") -> - | J211: =IF(J202<>"-",'4-Strategy-Inputs'!$F$29,"-") -> - | K211: =IF(K202<>"-",'4-Strategy-Inputs'!$F$29,"-") -> - | L211: =IF(L202<>"-",'4-Strategy-Inputs'!$F$29,"-") -> - | M211: =IF(M202<>"-",'4-Strategy-Inputs'!$F$29,"-") -> - | N211: =IF(N202<>"-",'4-Strategy-Inputs'!$F$29,"-") -> - | O211: =IF(O202<>"-",'4-Strategy-Inputs'!$F$29,"-") -> - | P211: =IF(P202<>"-",'4-Strategy-Inputs'!$F$29,"-") -> - | Q211: =IF(Q202<>"-",'4-Strategy-Inputs'!$F$29,"-") -> - | R211: =IF(R202<>"-",'4-Strategy-Inputs'!$F$29,"-") -> -
B212: Annual Allocation needed to meet target Ratings and timelines | C212: =SUM(D212:R212) -> 0 | D212: =IF(D202<>"-",IF(D211>0, D209+(D210/D211),0),"-") -> - | E212: =IF(E202<>"-",IF(E211>0, E209+(E210/E211),0),"-") -> - | F212: - | G212: - | H212: - | I212: - | J212: - | K212: - | L212: - | M212: - | N212: - | O212: - | P212: - | Q212: - | R212: -
B213: Funds needed to improve average current rating by 1% | C213: =SUM(D213:R213) -> 0 | D213: =IF(D202<>"-",D206*D202/100,"-") -> - | E213: =IF(E202<>"-",E206*E202/100,"-") -> - | F213: - | G213: - | H213: - | I213: - | J213: - | K213: - | L213: - | M213: - | N213: - | O213: - | P213: - | Q213: - | R213: -
B215: Asset-Activity Group #15 | C215: Total | D215: Districts
B216: ='3-Basic Inputs'!B20 -> - | D216: ='3-Basic Inputs'!$I$6 -> District 1 | E216: ='3-Basic Inputs'!$I$7 -> District 2 | F216: ='3-Basic Inputs'!$I$8 -> District 3 | G216: ='3-Basic Inputs'!$I$9 -> District 4 | H216: ='3-Basic Inputs'!$I$10 -> District 5 | I216: ='3-Basic Inputs'!$I$11 -> District 6 | J216: ='3-Basic Inputs'!$I$12 -> District 7 | K216: ='3-Basic Inputs'!$I$13 -> District 8 | L216: ='3-Basic Inputs'!$I$14 -> District 9 | M216: ='3-Basic Inputs'!$I$15 -> District 10 | N216: ='3-Basic Inputs'!$I$16 -> District 11 | O216: ='3-Basic Inputs'!$I$17 -> District 12 | P216: ='3-Basic Inputs'!$I$18 -> District 13 | Q216: ='3-Basic Inputs'!$I$19 -> District 14 | R216: ='3-Basic Inputs'!$I$20 -> District 15
B217: ='3-Basic Inputs'!C20 -> - | C217: =SUM(D217:R217) -> 0 | D217: =IF('5-Data-Inputs'!E21>0, '5-Data-Inputs'!E21,"-") -> - | E217: =IF('5-Data-Inputs'!F21>0, '5-Data-Inputs'!F21,"-") -> - | F217: =IF('5-Data-Inputs'!G21>0, '5-Data-Inputs'!G21,"-") -> - | G217: =IF('5-Data-Inputs'!H21>0, '5-Data-Inputs'!H21,"-") -> - | H217: =IF('5-Data-Inputs'!I21>0, '5-Data-Inputs'!I21,"-") -> - | I217: =IF('5-Data-Inputs'!J21>0, '5-Data-Inputs'!J21,"-") -> - | J217: =IF('5-Data-Inputs'!K21>0, '5-Data-Inputs'!K21,"-") -> - | K217: =IF('5-Data-Inputs'!L21>0, '5-Data-Inputs'!L21,"-") -> - | L217: =IF('5-Data-Inputs'!M21>0, '5-Data-Inputs'!M21,"-") -> - | M217: =IF('5-Data-Inputs'!N21>0, '5-Data-Inputs'!N21,"-") -> - | N217: =IF('5-Data-Inputs'!O21>0, '5-Data-Inputs'!O21,"-") -> - | O217: =IF('5-Data-Inputs'!P21>0, '5-Data-Inputs'!P21,"-") -> - | P217: =IF('5-Data-Inputs'!Q21>0, '5-Data-Inputs'!Q21,"-") -> - | Q217: =IF('5-Data-Inputs'!R21>0, '5-Data-Inputs'!R21,"-") -> - | R217: =IF('5-Data-Inputs'!S21>0, '5-Data-Inputs'!S21,"-") -> -
... 29 more rows

Sheet 7-RunModel
A1: Resource Allocation Solution Framework
D5: Table 7-1: Summary results - Allocation of Preservation Funds
B6: Asset-Activity Group (AAG) | C6: Total | D6: ='8-Calculations'!C74 -> District 1 | E6: ='8-Calculations'!D74 -> District 2 | F6: ='8-Calculations'!E74 -> District 3 | G6: ='8-Calculations'!F74 -> District 4 | H6: ='8-Calculations'!G74 -> District 5 | I6: ='8-Calculations'!H74 -> District 6 | J6: ='8-Calculations'!I74 -> District 7 | K6: ='8-Calculations'!J74 -> District 8 | L6: ='8-Calculations'!K74 -> District 9 | M6: ='8-Calculations'!L74 -> District 10 | N6: ='8-Calculations'!M74 -> District 11 | O6: ='8-Calculations'!N74 -> District 12 | P6: ='8-Calculations'!O74 -> District 13 | Q6: ='8-Calculations'!P74 -> District 14 | R6: ='8-Calculations'!Q74 -> District 15
B7: ='8-Calculations'!B10 -> Bridges | C7: ='8-Calculations'!R75 -> 66574055.62 | D7: ='8-Calculations'!C75 -> 28093574.99 | E7: ='8-Calculations'!D75 -> 19762376.89 | F7: ='8-Calculations'!E75 -> 18718103.73 | G7: ='8-Calculations'!F75 -> - | H7: ='8-Calculations'!G75 -> - | I7: ='8-Calculations'!H75 -> - | J7: ='8-Calculations'!I75 -> - | K7: ='8-Calculations'!J75 -> - | L7: ='8-Calculations'!K75 -> - | M7: ='8-Calculations'!L75 -> - | N7: ='8-Calculations'!M75 -> - | O7: ='8-Calculations'!N75 -> - | P7: ='8-Calculations'!O75 -> - | Q7: ='8-Calculations'!P75 -> - | R7: ='8-Calculations'!Q75 -> -
B8: ='8-Calculations'!B11 -> Pavements | C8: ='8-Calculations'!R76 -> 138437860 | D8: ='8-Calculations'!C76 -> 53690034.99 | E8: ='8-Calculations'!D76 -> 39177723.38 | F8: ='8-Calculations'!E76 -> 45570101.64 | G8: ='8-Calculations'!F76 -> - | H8: ='8-Calculations'!G76 -> - | I8: ='8-Calculations'!H76 -> - | J8: ='8-Calculations'!I76 -> - | K8: ='8-Calculations'!J76 -> - | L8: ='8-Calculations'!K76 -> - | M8: ='8-Calculations'!L76 -> - | N8: ='8-Calculations'!M76 -> - | O8: ='8-Calculations'!N76 -> - | P8: ='8-Calculations'!O76 -> - | Q8: ='8-Calculations'!P76 -> - | R8: ='8-Calculations'!Q76 -> -
B9: ='8-Calculations'!B12 -> Signs | C9: ='8-Calculations'!R77 -> 3460946.5 | D9: ='8-Calculations'!C77 -> 1269527.703 | E9: ='8-Calculations'!D77 -> 1076970.043 | F9: ='8-Calculations'!E77 -> 1114448.754 | G9: ='8-Calculations'!F77 -> - | H9: ='8-Calculations'!G77 -> - | I9: ='8-Calculations'!H77 -> - | J9: ='8-Calculations'!I77 -> - | K9: ='8-Calculations'!J77 -> - | L9: ='8-Calculations'!K77 -> - | M9: ='8-Calculations'!L77 -> - | N9: ='8-Calculations'!M77 -> - | O9: ='8-Calculations'!N77 -> - | P9: ='8-Calculations'!O77 -> - | Q9: ='8-Calculations'!P77 -> - | R9: ='8-Calculations'!Q77 -> -
B10: ='8-Calculations'!B13 -> Highway Lighting | C10: ='8-Calculations'!R78 -> 2943288.749 | D10: ='8-Calculations'!C78 -> 1876517.683 | E10: ='8-Calculations'!D78 -> 620116.1482 | F10: ='8-Calculations'!E78 -> 446654.9173 | G10: ='8-Calculations'!F78 -> - | H10: ='8-Calculations'!G78 -> - | I10: ='8-Calculations'!H78 -> - | J10: ='8-Calculations'!I78 -> - | K10: ='8-Calculations'!J78 -> - | L10: ='8-Calculations'!K78 -> - | M10: ='8-Calculations'!L78 -> - | N10: ='8-Calculations'!M78 -> - | O10: ='8-Calculations'!N78 -> - | P10: ='8-Calculations'!O78 -> - | Q10: ='8-Calculations'!P78 -> - | R10: ='8-Calculations'!Q78 -> -
B11: ='8-Calculations'!B14 -> Guardrail | C11: ='8-Calculations'!R79 -> 3460946.5 | D11: ='8-Calculations'!C79 -> 1617398.801 | E11: ='8-Calculations'!D79 -> 798302.4175 | F11: ='8-Calculations'!E79 -> 1045245.282 | G11: ='8-Calculations'!F79 -> - | H11: ='8-Calculations'!G79 -> - | I11: ='8-Calculations'!H79 -> - | J11: ='8-Calculations'!I79 -> - | K11: ='8-Calculations'!J79 -> - | L11: ='8-Calculations'!K79 -> - | M11: ='8-Calculations'!L79 -> - | N11: ='8-Calculations'!M79 -> - | O11: ='8-Calculations'!N79 -> - | P11: ='8-Calculations'!O79 -> - | Q11: ='8-Calculations'!P79 -> - | R11: ='8-Calculations'!Q79 -> -
B12: ='8-Calculations'!B15 -> Weigh Stations | C12: ='8-Calculations'!R80 -> 122902.6222 | D12: ='8-Calculations'!C80 -> 50878.18772 | E12: ='8-Calculations'!D80 -> 37787.654 | F12: ='8-Calculations'!E80 -> 34236.78049 | G12: ='8-Calculations'!F80 -> - | H12: ='8-Calculations'!G80 -> - | I12: ='8-Calculations'!H80 -> - | J12: ='8-Calculations'!I80 -> - | K12: ='8-Calculations'!J80 -> - | L12: ='8-Calculations'!K80 -> - | M12: ='8-Calculations'!L80 -> - | N12: ='8-Calculations'!M80 -> - | O12: ='8-Calculations'!N80 -> - | P12: ='8-Calculations'!O80 -> - | Q12: ='8-Calculations'!P80 -> - | R12: ='8-Calculations'!Q80 -> -
B13: ='8-Calculations'!B16 -> - | C13: ='8-Calculations'!R81 -> - | D13: ='8-Calculations'!C81 -> - | E13: ='8-Calculations'!D81 -> - | F13: ='8-Calculations'!E81 -> - | G13: ='8-Calculations'!F81 -> - | H13: ='8-Calculations'!G81 -> - | I13: ='8-Calculations'!H81 -> - | J13: ='8-Calculations'!I81 -> - | K13: ='8-Calculations'!J81 -> - | L13: ='8-Calculations'!K81 -> - | M13: ='8-Calculations'!L81 -> - | N13: ='8-Calculations'!M81 -> - | O13: ='8-Calculations'!N81 -> - | P13: ='8-Calculations'!O81 -> - | Q13: ='8-Calculations'!P81 -> - | R13: ='8-Calculations'!Q81 -> -
B14: ='8-Calculations'!B17 -> - | C14: ='8-Calculations'!R82 -> - | D14: ='8-Calculations'!C82 -> - | E14: ='8-Calculations'!D82 -> - | F14: ='8-Calculations'!E82 -> - | G14: ='8-Calculations'!F82 -> - | H14: ='8-Calculations'!G82 -> - | I14: ='8-Calculations'!H82 -> - | J14: ='8-Calculations'!I82 -> - | K14: ='8-Calculations'!J82 -> - | L14: ='8-Calculations'!K82 -> - | M14: ='8-Calculations'!L82 -> - | N14: ='8-Calculations'!M82 -> - | O14: ='8-Calculations'!N82 -> - | P14: ='8-Calculations'!O82 -> - | Q14: ='8-Calculations'!P82 -> - | R14: ='8-Calculations'!Q82 -> -
B15: ='8-Calculations'!B18 -> - | C15: ='8-Calculations'!R83 -> - | D15: ='8-Calculations'!C83 -> - | E15: ='8-Calculations'!D83 -> - | F15: ='8-Calculations'!E83 -> - | G15: ='8-Calculations'!F83 -> - | H15: ='8-Calculations'!G83 -> - | I15: ='8-Calculations'!H83 -> - | J15: ='8-Calculations'!I83 -> - | K15: ='8-Calculations'!J83 -> - | L15: ='8-Calculations'!K83 -> - | M15: ='8-Calculations'!L83 -> - | N15: ='8-Calculations'!M83 -> - | O15: ='8-Calculations'!N83 -> - | P15: ='8-Calculations'!O83 -> - | Q15: ='8-Calculations'!P83 -> - | R15: ='8-Calculations'!Q83 -> -
B16: ='8-Calculations'!B19 -> - | C16: ='8-Calculations'!R84 -> - | D16: ='8-Calculations'!C84 -> - | E16: ='8-Calculations'!D84 -> - | F16: ='8-Calculations'!E84 -> - | G16: ='8-Calculations'!F84 -> - | H16: ='8-Calculations'!G84 -> - | I16: ='8-Calculations'!H84 -> - | J16: ='8-Calculations'!I84 -> - | K16: ='8-Calculations'!J84 -> - | L16: ='8-Calculations'!K84 -> - | M16: ='8-Calculations'!L84 -> - | N16: ='8-Calculations'!M84 -> - | O16: ='8-Calculations'!N84 -> - | P16: ='8-Calculations'!O84 -> - | Q16: ='8-Calculations'!P84 -> - | R16: ='8-Calculations'!Q84 -> -
B17: ='8-Calculations'!B20 -> - | C17: ='8-Calculations'!R85 -> - | D17: ='8-Calculations'!C85 -> - | E17: ='8-Calculations'!D85 -> - | F17: ='8-Calculations'!E85 -> - | G17: ='8-Calculations'!F85 -> - | H17: ='8-Calculations'!G85 -> - | I17: ='8-Calculations'!H85 -> - | J17: ='8-Calculations'!I85 -> - | K17: ='8-Calculations'!J85 -> - | L17: ='8-Calculations'!K85 -> - | M17: ='8-Calculations'!L85 -> - | N17: ='8-Calculations'!M85 -> - | O17: ='8-Calculations'!N85 -> - | P17: ='8-Calculations'!O85 -> - | Q17: ='8-Calculations'!P85 -> - | R17: ='8-Calculations'!Q85 -> -
B18: ='8-Calculations'!B21 -> - | C18: ='8-Calculations'!R86 -> - | D18: ='8-Calculations'!C86 -> - | E18: ='8-Calculations'!D86 -> - | F18: ='8-Calculations'!E86 -> - | G18: ='8-Calculations'!F86 -> - | H18: ='8-Calculations'!G86 -> - | I18: ='8-Calculations'!H86 -> - | J18: ='8-Calculations'!I86 -> - | K18: ='8-Calculations'!J86 -> - | L18: ='8-Calculations'!K86 -> - | M18: ='8-Calculations'!L86 -> - | N18: ='8-Calculations'!M86 -> - | O18: ='8-Calculations'!N86 -> - | P18: ='8-Calculations'!O86 -> - | Q18: ='8-Calculations'!P86 -> - | R18: ='8-Calculations'!Q86 -> -
B19: ='8-Calculations'!B22 -> - | C19: ='8-Calculations'!R87 -> - | D19: ='8-Calculations'!C87 -> - | E19: ='8-Calculations'!D87 -> - | F19: ='8-Calculations'!E87 -> - | G19: ='8-Calculations'!F87 -> - | H19: ='8-Calculations'!G87 -> - | I19: ='8-Calculations'!H87 -> - | J19: ='8-Calculations'!I87 -> - | K19: ='8-Calculations'!J87 -> - | L19: ='8-Calculations'!K87 -> - | M19: ='8-Calculations'!L87 -> - | N19: ='8-Calculations'!M87 -> - | O19: ='8-Calculations'!N87 -> - | P19: ='8-Calculations'!O87 -> - | Q19: ='8-Calculations'!P87 -> - | R19: ='8-Calculations'!Q87 -> -
B20: ='8-Calculations'!B23 -> - | C20: ='8-Calculations'!R88 -> - | D20: ='8-Calculations'!C88 -> - | E20: ='8-Calculations'!D88 -> - | F20: ='8-Calculations'!E88 -> - | G20: ='8-Calculations'!F88 -> - | H20: ='8-Calculations'!G88 -> - | I20: ='8-Calculations'!H88 -> - | J20: ='8-Calculations'!I88 -> - | K20: ='8-Calculations'!J88 -> - | L20: ='8-Calculations'!K88 -> - | M20: ='8-Calculations'!L88 -> - | N20: ='8-Calculations'!M88 -> - | O20: ='8-Calculations'!N88 -> - | P20: ='8-Calculations'!O88 -> - | Q20: ='8-Calculations'!P88 -> - | R20: ='8-Calculations'!Q88 -> -
B21: ='8-Calculations'!B24 -> - | C21: ='8-Calculations'!R89 -> - | D21: ='8-Calculations'!C89 -> - | E21: ='8-Calculations'!D89 -> - | F21: ='8-Calculations'!E89 -> - | G21: ='8-Calculations'!F89 -> - | H21: ='8-Calculations'!G89 -> - | I21: ='8-Calculations'!H89 -> - | J21: ='8-Calculations'!I89 -> - | K21: ='8-Calculations'!J89 -> - | L21: ='8-Calculations'!K89 -> - | M21: ='8-Calculations'!L89 -> - | N21: ='8-Calculations'!M89 -> - | O21: ='8-Calculations'!N89 -> - | P21: ='8-Calculations'!O89 -> - | Q21: ='8-Calculations'!P89 -> - | R21: ='8-Calculations'!Q89 -> -
B22: ='4-Strategy-Inputs'!$E$10 -> Yes | C22: ='8-Calculations'!R90 -> 215000000 | D22: ='8-Calculations'!C90 -> 86597932.36 | E22: ='8-Calculations'!D90 -> 61473276.53 | F22: ='8-Calculations'!E90 -> 66928791.11 | G22: ='8-Calculations'!F90 -> - | H22: ='8-Calculations'!G90 -> - | I22: ='8-Calculations'!H90 -> - | J22: ='8-Calculations'!I90 -> - | K22: ='8-Calculations'!J90 -> - | L22: ='8-Calculations'!K90 -> - | M22: ='8-Calculations'!L90 -> - | N22: ='8-Calculations'!M90 -> - | O22: ='8-Calculations'!N90 -> - | P22: ='8-Calculations'!O90 -> - | Q22: ='8-Calculations'!P90 -> - | R22: ='8-Calculations'!Q90 -> -
B24: Asset-Activity Group (AAG)
B25: Asset-Activity Group (AAG) | C25: Difference between Desired and Estimated Time to reach Target Rating | F25: Difference between Current and Historical Allocation
C26: Desired Time | D26: Estimated Time | E26: Difference (Desired - Target) | F26: Average Historical Allocation | G26: Difference (Current - Historical) | H26: Total Allocation less Deterioration Need | I26: Target Rating | J26: Current Rating | K26: Expected Rating Result
B27: =B7 -> Bridges | C27: ='8-Calculations'!S75 -> 2 | D27: =IF('8-Calculations'!M52<0,"NA",'8-Calculations'!M52) -> 12.63608309 | E27: =IF(ISNUMBER(D27),D27-C27,"-") -> 10.63608309 | F27: ='8-Calculations'!V75 -> 67998000 | G27: ='8-Calculations'!W75 -> -1423944.383 | H27: ='8-Calculations'!X75 -> 8824055.617 | I27: =IF('4-Strategy-Inputs'!E16>0,'4-Strategy-Inputs'!E16,"-") -> 0.8 | J27: ='8-Calculations'!G52 -> 0.7720771429 | K27: ='8-Calculations'!H52 -> 0.7743691054
B28: =B8 -> Pavements | C28: ='8-Calculations'!S76 -> 2 | D28: =IF('8-Calculations'!M53<0,"NA",'8-Calculations'!M53) -> 12.63615791 | E28: =IF(ISNUMBER(D28),D28-C28,"-") -> 10.63615791 | F28: ='8-Calculations'!V76 -> 138419000 | G28: ='8-Calculations'!W76 -> 18860.01167 | H28: ='8-Calculations'!X76 -> 13937860.01 | I28: =IF('4-Strategy-Inputs'!E17>0,'4-Strategy-Inputs'!E17,"-") -> 0.8 | J28: ='8-Calculations'!G53 -> 0.7585373494 | K28: ='8-Calculations'!H53 -> 0.7641348835
B29: Signs | C29: ='8-Calculations'!S77 -> 8 | D29: =IF('8-Calculations'!M54<0,"NA",'8-Calculations'!M54) -> NA | E29: - | F29: ='8-Calculations'!V77 -> 4395333.333 | G29: ='8-Calculations'!W77 -> -934386.833 | H29: ='8-Calculations'!X77 -> -4159053.5 | I29: =IF('4-Strategy-Inputs'!E18>0,'4-Strategy-Inputs'!E18,"-") -> 1 | J29: ='8-Calculations'!G54 -> 0.9257585302 | K29: ='8-Calculations'!H54 -> 0.8711777756
B30: Highway Lighting | C30: ='8-Calculations'!S78 -> 4 | D30: =IF('8-Calculations'!M55<0,"NA",'8-Calculations'!M55) -> 14.63621499 | E30: 10.63621499 | F30: ='8-Calculations'!V78 -> 1595000 | G30: ='8-Calculations'!W78 -> 1348288.749 | H30: ='8-Calculations'!X78 -> 212788.7488 | I30: =IF('4-Strategy-Inputs'!E19>0,'4-Strategy-Inputs'!E19,"-") -> 0.85 | J30: ='8-Calculations'!G55 -> 0.8275032045 | K30: ='8-Calculations'!H55 -> 0.8306204175
B31: Guardrail | C31: ='8-Calculations'!S79 -> 4 | D31: =IF('8-Calculations'!M56<0,"NA",'8-Calculations'!M56) -> 0.6302552117 | E31: -3.369744788 | F31: ='8-Calculations'!V79 -> 1269000 | G31: ='8-Calculations'!W79 -> 2191946.5 | H31: ='8-Calculations'!X79 -> 2363546.5 | I31: =IF('4-Strategy-Inputs'!E20>0,'4-Strategy-Inputs'!E20,"-") -> 0.8 | J31: ='8-Calculations'!G56 -> 0.757109076 | K31: ='8-Calculations'!H56 -> 0.8217221569
B32: Weigh Stations | C32: ='8-Calculations'!S80 -> 4 | D32: =IF('8-Calculations'!M57<0,"NA",'8-Calculations'!M57) -> 14.63627481 | E32: 10.63627481 | F32: ='8-Calculations'!V80 -> 195000 | G32: ='8-Calculations'!W80 -> -72097.37779 | H32: ='8-Calculations'!X80 -> 9902.622206 | I32: =IF('4-Strategy-Inputs'!E21>0,'4-Strategy-Inputs'!E21,"-") -> 0.8 | J32: ='8-Calculations'!G57 -> 0.7773893805 | K32: ='8-Calculations'!H57 -> 0.779142057
B33: - | C33: ='8-Calculations'!S81 -> - | D33: =IF('8-Calculations'!M58<0,"NA",'8-Calculations'!M58) -> - | E33: - | F33: ='8-Calculations'!V81 -> - | G33: ='8-Calculations'!W81 -> - | H33: ='8-Calculations'!X81 -> - | I33: =IF('4-Strategy-Inputs'!E22>0,'4-Strategy-Inputs'!E22,"-") -> - | J33: ='8-Calculations'!G58 -> - | K33: ='8-Calculations'!H58 -> -
B34: - | C34: ='8-Calculations'!S82 -> - | D34: =IF('8-Calculations'!M59<0,"NA",'8-Calculations'!M59) -> - | E34: - | F34: ='8-Calculations'!V82 -> - | G34: ='8-Calculations'!W82 -> - | H34: ='8-Calculations'!X82 -> - | I34: =IF('4-Strategy-Inputs'!E23>0,'4-Strategy-Inputs'!E23,"-") -> - | J34: ='8-Calculations'!G59 -> - | K34: ='8-Calculations'!H59 -> -
B35: - | C35: ='8-Calculations'!S83 -> - | D35: =IF('8-Calculations'!M60<0,"NA",'8-Calculations'!M60) -> - | E35: - | F35: ='8-Calculations'!V83 -> - | G35: ='8-Calculations'!W83 -> - | H35: ='8-Calculations'!X83 -> - | I35: =IF('4-Strategy-Inputs'!E24>0,'4-Strategy-Inputs'!E24,"-") -> - | J35: ='8-Calculations'!G60 -> - | K35: ='8-Calculations'!H60 -> -
B36: - | C36: ='8-Calculations'!S84 -> - | D36: =IF('8-Calculations'!M61<0,"NA",'8-Calculations'!M61) -> - | E36: - | F36: ='8-Calculations'!V84 -> - | G36: ='8-Calculations'!W84 -> - | H36: ='8-Calculations'!X84 -> - | I36: =IF('4-Strategy-Inputs'!E25>0,'4-Strategy-Inputs'!E25,"-") -> - | J36: ='8-Calculations'!G61 -> - | K36: ='8-Calculations'!H61 -> -
B37: - | C37: ='8-Calculations'!S85 -> - | D37: =IF('8-Calculations'!M62<0,"NA",'8-Calculations'!M62) -> - | E37: - | F37: ='8-Calculations'!V85 -> - | G37: ='8-Calculations'!W85 -> - | H37: ='8-Calculations'!X85 -> - | I37: =IF('4-Strategy-Inputs'!E26>0,'4-Strategy-Inputs'!E26,"-") -> - | J37: ='8-Calculations'!G62 -> - | K37: ='8-Calculations'!H62 -> -
B38: - | C38: ='8-Calculations'!S86 -> - | D38: =IF('8-Calculations'!M63<0,"NA",'8-Calculations'!M63) -> - | E38: - | F38: ='8-Calculations'!V86 -> - | G38: ='8-Calculations'!W86 -> - | H38: ='8-Calculations'!X86 -> - | I38: =IF('4-Strategy-Inputs'!E27>0,'4-Strategy-Inputs'!E27,"-") -> - | J38: ='8-Calculations'!G63 -> - | K38: ='8-Calculations'!H63 -> -
B39: - | C39: ='8-Calculations'!S87 -> - | D39: =IF('8-Calculations'!M64<0,"NA",'8-Calculations'!M64) -> - | E39: - | F39: ='8-Calculations'!V87 -> - | G39: ='8-Calculations'!W87 -> - | H39: ='8-Calculations'!X87 -> - | I39: =IF('4-Strategy-Inputs'!E28>0,'4-Strategy-Inputs'!E28,"-") -> - | J39: ='8-Calculations'!G64 -> - | K39: ='8-Calculations'!H64 -> -
B40: - | C40: ='8-Calculations'!S88 -> - | D40: =IF('8-Calculations'!M65<0,"NA",'8-Calculations'!M65) -> - | E40: - | F40: ='8-Calculations'!V88 -> - | G40: ='8-Calculations'!W88 -> - | H40: ='8-Calculations'!X88 -> - | I40: =IF('4-Strategy-Inputs'!E29>0,'4-Strategy-Inputs'!E29,"-") -> - | J40: ='8-Calculations'!G65 -> - | K40: ='8-Calculations'!H65 -> -
B41: - | C41: ='8-Calculations'!S89 -> - | D41: =IF('8-Calculations'!M66<0,"NA",'8-Calculations'!M66) -> - | E41: - | F41: ='8-Calculations'!V89 -> - | G41: ='8-Calculations'!W89 -> - | H41: ='8-Calculations'!X89 -> - | I41: =IF('4-Strategy-Inputs'!E30>0,'4-Strategy-Inputs'!E30,"-") -> - | J41: ='8-Calculations'!G66 -> - | K41: ='8-Calculations'!H66 -> -
F42: ='8-Calculations'!V90 -> 213871333.3 | G42: ='8-Calculations'!W90 -> 1128666.667 | H42: ='8-Calculations'!X90 -> 21189100
P45: Asset-Activity Group (AAG) | Q45: Previous Year Unconstrained Need | R45: Unconstrained Need
P46: =B27 -> Bridges | Q46: =R46*0.98 -> 859952940 | R46: =IF('8-Calculations'!Y75>0,'8-Calculations'!Y75,"-") -> 877503000
P47: Pavements | Q47: =R47*0.98 -> 589217160 | R47: =IF('8-Calculations'!Y76>0,'8-Calculations'!Y76,"-") -> 601242000
P48: Signs | Q48: 5544056 | R48: =IF('8-Calculations'!Y77>0,'8-Calculations'!Y77,"-") -> 5657200
P49: Highway Lighting | Q49: 11539561.25 | R49: =IF('8-Calculations'!Y78>0,'8-Calculations'!Y78,"-") -> 11775062.5
P50: Guardrail | Q50: 8707251 | R50: =IF('8-Calculations'!Y79>0,'8-Calculations'!Y79,"-") -> 8884950
P51: Weigh Stations | Q51: 1232595 | R51: =IF('8-Calculations'!Y80>0,'8-Calculations'!Y80,"-") -> 1257750
P52: - | Q52: =IF('8-Calculations'!X81>0,'8-Calculations'!X81,"-") -> - | R52: =IF('8-Calculations'!Y81>0,'8-Calculations'!Y81,"-") -> -
P53: - | Q53: =IF('8-Calculations'!X82>0,'8-Calculations'!X82,"-") -> - | R53: =IF('8-Calculations'!Y82>0,'8-Calculations'!Y82,"-") -> -
P54: - | Q54: =IF('8-Calculations'!X83>0,'8-Calculations'!X83,"-") -> - | R54: =IF('8-Calculations'!Y83>0,'8-Calculations'!Y83,"-") -> -
P55: - | Q55: =IF('8-Calculations'!X84>0,'8-Calculations'!X84,"-") -> - | R55: =IF('8-Calculations'!Y84>0,'8-Calculations'!Y84,"-") -> -
P56: - | Q56: =IF('8-Calculations'!X85>0,'8-Calculations'!X85,"-") -> - | R56: =IF('8-Calculations'!Y85>0,'8-Calculations'!Y85,"-") -> -
P57: - | Q57: =IF('8-Calculations'!X86>0,'8-Calculations'!X86,"-") -> - | R57: =IF('8-Calculations'!Y86>0,'8-Calculations'!Y86,"-") -> -
P58: - | Q58: =IF('8-Calculations'!X87>0,'8-Calculations'!X87,"-") -> - | R58: =IF('8-Calculations'!Y87>0,'8-Calculations'!Y87,"-") -> -
P59: - | Q59: =IF('8-Calculations'!X88>0,'8-Calculations'!X88,"-") -> - | R59: =IF('8-Calculations'!Y88>0,'8-Calculations'!Y88,"-") -> -
P60: - | Q60: =IF('8-Calculations'!X89>0,'8-Calculations'!X89,"-") -> - | R60: =IF('8-Calculations'!Y89>0,'8-Calculations'!Y89,"-") -> -
Q61: 1476193563 | R61: =SUM(R46:R60) -> 1506319962

Sheet 8-Calculations
A1: Resource Allocation Solution Framework
A2: This tab shows computations and intermediate calculations
B4: Total Available Funds = | D4: ='4-Strategy-Inputs'!E7 -> 215000000 | F4: If Percentage Based Allocation is Used | K4: If Data is not available for sertain assets | W4: Dist | X4: ='4-Strategy-Inputs'!$E$10 -> Yes
B5: Use % Allocation for NBP | D5: ='4-Strategy-Inputs'!$E$10 -> Yes | F5: Total Available for Bridge and Pavements | I5: =D4-I6 -> 208078107 | K5: Total Available for Assets with Data | N5: =D4-N6 -> 209052450 | W5: % Flag
F6: Total Available for Non-Bridge and Pavement Assets | I6: =W45*AB45 -> 6921893.001 | K6: Total Available for Assets with No Data | N6: =SUM(U30:U44) -> 5947550
B8: Table 8-1: Allocation Needs based on Asset Inventory, Current Rating, Target Rating and Timelines
B9: Asset-Activity Group (AAG) | C9: Total | D9: ='5-Data-Inputs'!E6 -> District 1 | E9: ='5-Data-Inputs'!F6 -> District 2 | F9: ='5-Data-Inputs'!G6 -> District 3 | G9: ='5-Data-Inputs'!H6 -> District 4 | H9: ='5-Data-Inputs'!I6 -> District 5 | I9: ='5-Data-Inputs'!J6 -> District 6 | J9: ='5-Data-Inputs'!K6 -> District 7 | K9: ='5-Data-Inputs'!L6 -> District 8 | L9: ='5-Data-Inputs'!M6 -> District 9 | M9: ='5-Data-Inputs'!N6 -> District 10 | N9: ='5-Data-Inputs'!O6 -> District 11 | O9: ='5-Data-Inputs'!P6 -> District 12 | P9: ='5-Data-Inputs'!Q6 -> District 13 | Q9: ='5-Data-Inputs'!R6 -> District 14 | R9: ='5-Data-Inputs'!S6 -> District 15
B10: ='5-Data-Inputs'!B7 -> Bridges | C10: =SUM(D10:R10) -> 111501500 | D10: =IF('6-Needs-Estimation'!D17>0,'6-Needs-Estimation'!D17,"-") -> 47052500 | E10: =IF('6-Needs-Estimation'!E17>0,'6-Needs-Estimation'!E17,"-") -> 33099000 | F10: =IF('6-Needs-Estimation'!F17>0,'6-Needs-Estimation'!F17,"-") -> 31350000 | G10: =IF('6-Needs-Estimation'!G17>0,'6-Needs-Estimation'!G17,"-") -> - | H10: =IF('6-Needs-Estimation'!H17>0,'6-Needs-Estimation'!H17,"-") -> - | I10: =IF('6-Needs-Estimation'!I17>0,'6-Needs-Estimation'!I17,"-") -> - | J10: =IF('6-Needs-Estimation'!J17>0,'6-Needs-Estimation'!J17,"-") -> - | K10: =IF('6-Needs-Estimation'!K17>0,'6-Needs-Estimation'!K17,"-") -> - | L10: =IF('6-Needs-Estimation'!L17>0,'6-Needs-Estimation'!L17,"-") -> - | M10: =IF('6-Needs-Estimation'!M17>0,'6-Needs-Estimation'!M17,"-") -> - | N10: =IF('6-Needs-Estimation'!N17>0,'6-Needs-Estimation'!N17,"-") -> - | O10: =IF('6-Needs-Estimation'!O17>0,'6-Needs-Estimation'!O17,"-") -> - | P10: =IF('6-Needs-Estimation'!P17>0,'6-Needs-Estimation'!P17,"-") -> - | Q10: =IF('6-Needs-Estimation'!Q17>0,'6-Needs-Estimation'!Q17,"-") -> - | R10: =IF('6-Needs-Estimation'!R17>0,'6-Needs-Estimation'!R17,"-") -> -
B11: ='5-Data-Inputs'!B8 -> Pavements | C11: =SUM(D11:R11) -> 176121000 | D11: =IF('6-Needs-Estimation'!D32>0,'6-Needs-Estimation'!D32,"-") -> 68304600 | E11: =IF('6-Needs-Estimation'!E32>0,'6-Needs-Estimation'!E32,"-") -> 49842000 | F11: =IF('6-Needs-Estimation'!F32>0,'6-Needs-Estimation'!F32,"-") -> 57974400 | G11: =IF('6-Needs-Estimation'!G32>0,'6-Needs-Estimation'!G32,"-") -> - | H11: =IF('6-Needs-Estimation'!H32>0,'6-Needs-Estimation'!H32,"-") -> - | I11: =IF('6-Needs-Estimation'!I32>0,'6-Needs-Estimation'!I32,"-") -> - | J11: =IF('6-Needs-Estimation'!J32>0,'6-Needs-Estimation'!J32,"-") -> - | K11: =IF('6-Needs-Estimation'!K32>0,'6-Needs-Estimation'!K32,"-") -> - | L11: =IF('6-Needs-Estimation'!L32>0,'6-Needs-Estimation'!L32,"-") -> - | M11: =IF('6-Needs-Estimation'!M32>0,'6-Needs-Estimation'!M32,"-") -> - | N11: =IF('6-Needs-Estimation'!N32>0,'6-Needs-Estimation'!N32,"-") -> - | O11: =IF('6-Needs-Estimation'!O32>0,'6-Needs-Estimation'!O32,"-") -> - | P11: =IF('6-Needs-Estimation'!P32>0,'6-Needs-Estimation'!P32,"-") -> - | Q11: =IF('6-Needs-Estimation'!Q32>0,'6-Needs-Estimation'!Q32,"-") -> - | R11: =IF('6-Needs-Estimation'!R32>0,'6-Needs-Estimation'!R32,"-") -> -
B12: ='5-Data-Inputs'!B9 -> Signs | C12: 8327150 | D12: =IF('6-Needs-Estimation'!D47>0,'6-Needs-Estimation'!D47,"-") -> 3054525 | E12: =IF('6-Needs-Estimation'!E47>0,'6-Needs-Estimation'!E47,"-") -> 2591225 | F12: =IF('6-Needs-Estimation'!F47>0,'6-Needs-Estimation'!F47,"-") -> 2681400 | G12: =IF('6-Needs-Estimation'!G47>0,'6-Needs-Estimation'!G47,"-") -> - | H12: =IF('6-Needs-Estimation'!H47>0,'6-Needs-Estimation'!H47,"-") -> - | I12: =IF('6-Needs-Estimation'!I47>0,'6-Needs-Estimation'!I47,"-") -> - | J12: =IF('6-Needs-Estimation'!J47>0,'6-Needs-Estimation'!J47,"-") -> - | K12: =IF('6-Needs-Estimation'!K47>0,'6-Needs-Estimation'!K47,"-") -> - | L12: =IF('6-Needs-Estimation'!L47>0,'6-Needs-Estimation'!L47,"-") -> - | M12: =IF('6-Needs-Estimation'!M47>0,'6-Needs-Estimation'!M47,"-") -> - | N12: =IF('6-Needs-Estimation'!N47>0,'6-Needs-Estimation'!N47,"-") -> - | O12: =IF('6-Needs-Estimation'!O47>0,'6-Needs-Estimation'!O47,"-") -> - | P12: =IF('6-Needs-Estimation'!P47>0,'6-Needs-Estimation'!P47,"-") -> - | Q12: =IF('6-Needs-Estimation'!Q47>0,'6-Needs-Estimation'!Q47,"-") -> - | R12: =IF('6-Needs-Estimation'!R47>0,'6-Needs-Estimation'!R47,"-") -> -
B13: ='5-Data-Inputs'!B10 -> Highway Lighting | C13: 3114421.875 | D13: =IF('6-Needs-Estimation'!D62>0,'6-Needs-Estimation'!D62,"-") -> 1985625 | E13: =IF('6-Needs-Estimation'!E62>0,'6-Needs-Estimation'!E62,"-") -> 656171.875 | F13: =IF('6-Needs-Estimation'!F62>0,'6-Needs-Estimation'!F62,"-") -> 472625 | G13: =IF('6-Needs-Estimation'!G62>0,'6-Needs-Estimation'!G62,"-") -> - | H13: =IF('6-Needs-Estimation'!H62>0,'6-Needs-Estimation'!H62,"-") -> - | I13: =IF('6-Needs-Estimation'!I62>0,'6-Needs-Estimation'!I62,"-") -> - | J13: =IF('6-Needs-Estimation'!J62>0,'6-Needs-Estimation'!J62,"-") -> - | K13: =IF('6-Needs-Estimation'!K62>0,'6-Needs-Estimation'!K62,"-") -> - | L13: =IF('6-Needs-Estimation'!L62>0,'6-Needs-Estimation'!L62,"-") -> - | M13: =IF('6-Needs-Estimation'!M62>0,'6-Needs-Estimation'!M62,"-") -> - | N13: =IF('6-Needs-Estimation'!N62>0,'6-Needs-Estimation'!N62,"-") -> - | O13: =IF('6-Needs-Estimation'!O62>0,'6-Needs-Estimation'!O62,"-") -> - | P13: =IF('6-Needs-Estimation'!P62>0,'6-Needs-Estimation'!P62,"-") -> - | Q13: =IF('6-Needs-Estimation'!Q62>0,'6-Needs-Estimation'!Q62,"-") -> - | R13: =IF('6-Needs-Estimation'!R62>0,'6-Needs-Estimation'!R62,"-") -> -
B14: ='5-Data-Inputs'!B11 -> Guardrail | C14: 1489637.5 | D14: =IF('6-Needs-Estimation'!D77>0,'6-Needs-Estimation'!D77,"-") -> 696150 | E14: =IF('6-Needs-Estimation'!E77>0,'6-Needs-Estimation'!E77,"-") -> 343600 | F14: =IF('6-Needs-Estimation'!F77>0,'6-Needs-Estimation'!F77,"-") -> 449887.5 | G14: =IF('6-Needs-Estimation'!G77>0,'6-Needs-Estimation'!G77,"-") -> - | H14: =IF('6-Needs-Estimation'!H77>0,'6-Needs-Estimation'!H77,"-") -> - | I14: =IF('6-Needs-Estimation'!I77>0,'6-Needs-Estimation'!I77,"-") -> - | J14: =IF('6-Needs-Estimation'!J77>0,'6-Needs-Estimation'!J77,"-") -> - | K14: =IF('6-Needs-Estimation'!K77>0,'6-Needs-Estimation'!K77,"-") -> - | L14: =IF('6-Needs-Estimation'!L77>0,'6-Needs-Estimation'!L77,"-") -> - | M14: =IF('6-Needs-Estimation'!M77>0,'6-Needs-Estimation'!M77,"-") -> - | N14: =IF('6-Needs-Estimation'!N77>0,'6-Needs-Estimation'!N77,"-") -> - | O14: =IF('6-Needs-Estimation'!O77>0,'6-Needs-Estimation'!O77,"-") -> - | P14: =IF('6-Needs-Estimation'!P77>0,'6-Needs-Estimation'!P77,"-") -> - | Q14: =IF('6-Needs-Estimation'!Q77>0,'6-Needs-Estimation'!Q77,"-") -> - | R14: =IF('6-Needs-Estimation'!R77>0,'6-Needs-Estimation'!R77,"-") -> -
B15: ='5-Data-Inputs'!B12 -> Weigh Stations | C15: 144937.5 | D15: =IF('6-Needs-Estimation'!D92>0,'6-Needs-Estimation'!D92,"-") -> 60000 | E15: =IF('6-Needs-Estimation'!E92>0,'6-Needs-Estimation'!E92,"-") -> 44562.5 | F15: =IF('6-Needs-Estimation'!F92>0,'6-Needs-Estimation'!F92,"-") -> 40375 | G15: =IF('6-Needs-Estimation'!G92>0,'6-Needs-Estimation'!G92,"-") -> - | H15: =IF('6-Needs-Estimation'!H92>0,'6-Needs-Estimation'!H92,"-") -> - | I15: =IF('6-Needs-Estimation'!I92>0,'6-Needs-Estimation'!I92,"-") -> - | J15: =IF('6-Needs-Estimation'!J92>0,'6-Needs-Estimation'!J92,"-") -> - | K15: =IF('6-Needs-Estimation'!K92>0,'6-Needs-Estimation'!K92,"-") -> - | L15: =IF('6-Needs-Estimation'!L92>0,'6-Needs-Estimation'!L92,"-") -> - | M15: =IF('6-Needs-Estimation'!M92>0,'6-Needs-Estimation'!M92,"-") -> - | N15: =IF('6-Needs-Estimation'!N92>0,'6-Needs-Estimation'!N92,"-") -> - | O15: =IF('6-Needs-Estimation'!O92>0,'6-Needs-Estimation'!O92,"-") -> - | P15: =IF('6-Needs-Estimation'!P92>0,'6-Needs-Estimation'!P92,"-") -> - | Q15: =IF('6-Needs-Estimation'!Q92>0,'6-Needs-Estimation'!Q92,"-") -> - | R15: =IF('6-Needs-Estimation'!R92>0,'6-Needs-Estimation'!R92,"-") -> -
B16: ='5-Data-Inputs'!B13 -> - | C16: 0 | D16: =IF('6-Needs-Estimation'!D107>0,'6-Needs-Estimation'!D107,"-") -> - | E16: =IF('6-Needs-Estimation'!E107>0,'6-Needs-Estimation'!E107,"-") -> - | F16: =IF('6-Needs-Estimation'!F107>0,'6-Needs-Estimation'!F107,"-") -> - | G16: =IF('6-Needs-Estimation'!G107>0,'6-Needs-Estimation'!G107,"-") -> - | H16: =IF('6-Needs-Estimation'!H107>0,'6-Needs-Estimation'!H107,"-") -> - | I16: =IF('6-Needs-Estimation'!I107>0,'6-Needs-Estimation'!I107,"-") -> - | J16: =IF('6-Needs-Estimation'!J107>0,'6-Needs-Estimation'!J107,"-") -> - | K16: =IF('6-Needs-Estimation'!K107>0,'6-Needs-Estimation'!K107,"-") -> - | L16: =IF('6-Needs-Estimation'!L107>0,'6-Needs-Estimation'!L107,"-") -> - | M16: =IF('6-Needs-Estimation'!M107>0,'6-Needs-Estimation'!M107,"-") -> - | N16: =IF('6-Needs-Estimation'!N107>0,'6-Needs-Estimation'!N107,"-") -> - | O16: =IF('6-Needs-Estimation'!O107>0,'6-Needs-Estimation'!O107,"-") -> - | P16: =IF('6-Needs-Estimation'!P107>0,'6-Needs-Estimation'!P107,"-") -> - | Q16: =IF('6-Needs-Estimation'!Q107>0,'6-Needs-Estimation'!Q107,"-") -> - | R16: =IF('6-Needs-Estimation'!R107>0,'6-Needs-Estimation'!R107,"-") -> -
B17: ='5-Data-Inputs'!B14 -> - | C17: 0 | D17: =IF('6-Needs-Estimation'!D122>0,'6-Needs-Estimation'!D122,"-") -> - | E17: =IF('6-Needs-Estimation'!E122>0,'6-Needs-Estimation'!E122,"-") -> - | F17: =IF('6-Needs-Estimation'!F122>0,'6-Needs-Estimation'!F122,"-") -> - | G17: =IF('6-Needs-Estimation'!G122>0,'6-Needs-Estimation'!G122,"-") -> - | H17: =IF('6-Needs-Estimation'!H122>0,'6-Needs-Estimation'!H122,"-") -> - | I17: =IF('6-Needs-Estimation'!I122>0,'6-Needs-Estimation'!I122,"-") -> - | J17: =IF('6-Needs-Estimation'!J122>0,'6-Needs-Estimation'!J122,"-") -> - | K17: =IF('6-Needs-Estimation'!K122>0,'6-Needs-Estimation'!K122,"-") -> - | L17: =IF('6-Needs-Estimation'!L122>0,'6-Needs-Estimation'!L122,"-") -> - | M17: =IF('6-Needs-Estimation'!M122>0,'6-Needs-Estimation'!M122,"-") -> - | N17: =IF('6-Needs-Estimation'!N122>0,'6-Needs-Estimation'!N122,"-") -> - | O17: =IF('6-Needs-Estimation'!O122>0,'6-Needs-Estimation'!O122,"-") -> - | P17: =IF('6-Needs-Estimation'!P122>0,'6-Needs-Estimation'!P122,"-") -> - | Q17: =IF('6-Needs-Estimation'!Q122>0,'6-Needs-Estimation'!Q122,"-") -> - | R17: =IF('6-Needs-Estimation'!R122>0,'6-Needs-Estimation'!R122,"-") -> -
B18: ='5-Data-Inputs'!B15 -> - | C18: 0 | D18: =IF('6-Needs-Estimation'!D137>0,'6-Needs-Estimation'!D137,"-") -> - | E18: =IF('6-Needs-Estimation'!E137>0,'6-Needs-Estimation'!E137,"-") -> - | F18: =IF('6-Needs-Estimation'!F137>0,'6-Needs-Estimation'!F137,"-") -> - | G18: =IF('6-Needs-Estimation'!G137>0,'6-Needs-Estimation'!G137,"-") -> - | H18: =IF('6-Needs-Estimation'!H137>0,'6-Needs-Estimation'!H137,"-") -> - | I18: =IF('6-Needs-Estimation'!I137>0,'6-Needs-Estimation'!I137,"-") -> - | J18: =IF('6-Needs-Estimation'!J137>0,'6-Needs-Estimation'!J137,"-") -> - | K18: =IF('6-Needs-Estimation'!K137>0,'6-Needs-Estimation'!K137,"-") -> - | L18: =IF('6-Needs-Estimation'!L137>0,'6-Needs-Estimation'!L137,"-") -> - | M18: =IF('6-Needs-Estimation'!M137>0,'6-Needs-Estimation'!M137,"-") -> - | N18: =IF('6-Needs-Estimation'!N137>0,'6-Needs-Estimation'!N137,"-") -> - | O18: =IF('6-Needs-Estimation'!O137>0,'6-Needs-Estimation'!O137,"-") -> - | P18: =IF('6-Needs-Estimation'!P137>0,'6-Needs-Estimation'!P137,"-") -> - | Q18: =IF('6-Needs-Estimation'!Q137>0,'6-Needs-Estimation'!Q137,"-") -> - | R18: =IF('6-Needs-Estimation'!R137>0,'6-Needs-Estimation'!R137,"-") -> -
B19: ='5-Data-Inputs'!B16 -> - | C19: 0 | D19: =IF('6-Needs-Estimation'!D152>0,'6-Needs-Estimation'!D152,"-") -> - | E19: =IF('6-Needs-Estimation'!E152>0,'6-Needs-Estimation'!E152,"-") -> - | F19: =IF('6-Needs-Estimation'!F152>0,'6-Needs-Estimation'!F152,"-") -> - | G19: =IF('6-Needs-Estimation'!G152>0,'6-Needs-Estimation'!G152,"-") -> - | H19: =IF('6-Needs-Estimation'!H152>0,'6-Needs-Estimation'!H152,"-") -> - | I19: =IF('6-Needs-Estimation'!I152>0,'6-Needs-Estimation'!I152,"-") -> - | J19: =IF('6-Needs-Estimation'!J152>0,'6-Needs-Estimation'!J152,"-") -> - | K19: =IF('6-Needs-Estimation'!K152>0,'6-Needs-Estimation'!K152,"-") -> - | L19: =IF('6-Needs-Estimation'!L152>0,'6-Needs-Estimation'!L152,"-") -> - | M19: =IF('6-Needs-Estimation'!M152>0,'6-Needs-Estimation'!M152,"-") -> - | N19: =IF('6-Needs-Estimation'!N152>0,'6-Needs-Estimation'!N152,"-") -> - | O19: =IF('6-Needs-Estimation'!O152>0,'6-Needs-Estimation'!O152,"-") -> - | P19: =IF('6-Needs-Estimation'!P152>0,'6-Needs-Estimation'!P152,"-") -> - | Q19: =IF('6-Needs-Estimation'!Q152>0,'6-Needs-Estimation'!Q152,"-") -> - | R19: =IF('6-Needs-Estimation'!R152>0,'6-Needs-Estimation'!R152,"-") -> -
B20: ='5-Data-Inputs'!B17 -> - | C20: 0 | D20: =IF('6-Needs-Estimation'!D167>0,'6-Needs-Estimation'!D167,"-") -> - | E20: =IF('6-Needs-Estimation'!E167>0,'6-Needs-Estimation'!E167,"-") -> - | F20: =IF('6-Needs-Estimation'!F167>0,'6-Needs-Estimation'!F167,"-") -> - | G20: =IF('6-Needs-Estimation'!G167>0,'6-Needs-Estimation'!G167,"-") -> - | H20: =IF('6-Needs-Estimation'!H167>0,'6-Needs-Estimation'!H167,"-") -> - | I20: =IF('6-Needs-Estimation'!I167>0,'6-Needs-Estimation'!I167,"-") -> - | J20: =IF('6-Needs-Estimation'!J167>0,'6-Needs-Estimation'!J167,"-") -> - | K20: =IF('6-Needs-Estimation'!K167>0,'6-Needs-Estimation'!K167,"-") -> - | L20: =IF('6-Needs-Estimation'!L167>0,'6-Needs-Estimation'!L167,"-") -> - | M20: =IF('6-Needs-Estimation'!M167>0,'6-Needs-Estimation'!M167,"-") -> - | N20: =IF('6-Needs-Estimation'!N167>0,'6-Needs-Estimation'!N167,"-") -> - | O20: =IF('6-Needs-Estimation'!O167>0,'6-Needs-Estimation'!O167,"-") -> - | P20: =IF('6-Needs-Estimation'!P167>0,'6-Needs-Estimation'!P167,"-") -> - | Q20: =IF('6-Needs-Estimation'!Q167>0,'6-Needs-Estimation'!Q167,"-") -> - | R20: =IF('6-Needs-Estimation'!R167>0,'6-Needs-Estimation'!R167,"-") -> -
B21: ='5-Data-Inputs'!B18 -> - | C21: 0 | D21: =IF('6-Needs-Estimation'!D182>0,'6-Needs-Estimation'!D182,"-") -> - | E21: =IF('6-Needs-Estimation'!E182>0,'6-Needs-Estimation'!E182,"-") -> - | F21: =IF('6-Needs-Estimation'!F182>0,'6-Needs-Estimation'!F182,"-") -> - | G21: =IF('6-Needs-Estimation'!G182>0,'6-Needs-Estimation'!G182,"-") -> - | H21: =IF('6-Needs-Estimation'!H182>0,'6-Needs-Estimation'!H182,"-") -> - | I21: =IF('6-Needs-Estimation'!I182>0,'6-Needs-Estimation'!I182,"-") -> - | J21: =IF('6-Needs-Estimation'!J182>0,'6-Needs-Estimation'!J182,"-") -> - | K21: =IF('6-Needs-Estimation'!K182>0,'6-Needs-Estimation'!K182,"-") -> - | L21: =IF('6-Needs-Estimation'!L182>0,'6-Needs-Estimation'!L182,"-") -> - | M21: =IF('6-Needs-Estimation'!M182>0,'6-Needs-Estimation'!M182,"-") -> - | N21: =IF('6-Needs-Estimation'!N182>0,'6-Needs-Estimation'!N182,"-") -> - | O21: =IF('6-Needs-Estimation'!O182>0,'6-Needs-Estimation'!O182,"-") -> - | P21: =IF('6-Needs-Estimation'!P182>0,'6-Needs-Estimation'!P182,"-") -> - | Q21: =IF('6-Needs-Estimation'!Q182>0,'6-Needs-Estimation'!Q182,"-") -> - | R21: =IF('6-Needs-Estimation'!R182>0,'6-Needs-Estimation'!R182,"-") -> -
B22: ='5-Data-Inputs'!B19 -> - | C22: 0 | D22: =IF('6-Needs-Estimation'!D197>0,'6-Needs-Estimation'!D197,"-") -> - | E22: =IF('6-Needs-Estimation'!E197>0,'6-Needs-Estimation'!E197,"-") -> - | F22: =IF('6-Needs-Estimation'!F197>0,'6-Needs-Estimation'!F197,"-") -> - | G22: =IF('6-Needs-Estimation'!G197>0,'6-Needs-Estimation'!G197,"-") -> - | H22: =IF('6-Needs-Estimation'!H197>0,'6-Needs-Estimation'!H197,"-") -> - | I22: =IF('6-Needs-Estimation'!I197>0,'6-Needs-Estimation'!I197,"-") -> - | J22: =IF('6-Needs-Estimation'!J197>0,'6-Needs-Estimation'!J197,"-") -> - | K22: =IF('6-Needs-Estimation'!K197>0,'6-Needs-Estimation'!K197,"-") -> - | L22: =IF('6-Needs-Estimation'!L197>0,'6-Needs-Estimation'!L197,"-") -> - | M22: =IF('6-Needs-Estimation'!M197>0,'6-Needs-Estimation'!M197,"-") -> - | N22: =IF('6-Needs-Estimation'!N197>0,'6-Needs-Estimation'!N197,"-") -> - | O22: =IF('6-Needs-Estimation'!O197>0,'6-Needs-Estimation'!O197,"-") -> - | P22: =IF('6-Needs-Estimation'!P197>0,'6-Needs-Estimation'!P197,"-") -> - | Q22: =IF('6-Needs-Estimation'!Q197>0,'6-Needs-Estimation'!Q197,"-") -> - | R22: =IF('6-Needs-Estimation'!R197>0,'6-Needs-Estimation'!R197,"-") -> -
B23: ='5-Data-Inputs'!B20 -> - | C23: 0 | D23: =IF('6-Needs-Estimation'!D212>0,'6-Needs-Estimation'!D212,"-") -> - | E23: =IF('6-Needs-Estimation'!E212>0,'6-Needs-Estimation'!E212,"-") -> - | F23: =IF('6-Needs-Estimation'!F212>0,'6-Needs-Estimation'!F212,"-") -> - | G23: =IF('6-Needs-Estimation'!G212>0,'6-Needs-Estimation'!G212,"-") -> - | H23: =IF('6-Needs-Estimation'!H212>0,'6-Needs-Estimation'!H212,"-") -> - | I23: =IF('6-Needs-Estimation'!I212>0,'6-Needs-Estimation'!I212,"-") -> - | J23: =IF('6-Needs-Estimation'!J212>0,'6-Needs-Estimation'!J212,"-") -> - | K23: =IF('6-Needs-Estimation'!K212>0,'6-Needs-Estimation'!K212,"-") -> - | L23: =IF('6-Needs-Estimation'!L212>0,'6-Needs-Estimation'!L212,"-") -> - | M23: =IF('6-Needs-Estimation'!M212>0,'6-Needs-Estimation'!M212,"-") -> - | N23: =IF('6-Needs-Estimation'!N212>0,'6-Needs-Estimation'!N212,"-") -> - | O23: =IF('6-Needs-Estimation'!O212>0,'6-Needs-Estimation'!O212,"-") -> - | P23: =IF('6-Needs-Estimation'!P212>0,'6-Needs-Estimation'!P212,"-") -> - | Q23: =IF('6-Needs-Estimation'!Q212>0,'6-Needs-Estimation'!Q212,"-") -> - | R23: =IF('6-Needs-Estimation'!R212>0,'6-Needs-Estimation'!R212,"-") -> -
B24: ='5-Data-Inputs'!B21 -> - | C24: 0 | D24: =IF('6-Needs-Estimation'!D227>0,'6-Needs-Estimation'!D227,"-") -> - | E24: =IF('6-Needs-Estimation'!E227>0,'6-Needs-Estimation'!E227,"-") -> - | F24: =IF('6-Needs-Estimation'!F227>0,'6-Needs-Estimation'!F227,"-") -> - | G24: =IF('6-Needs-Estimation'!G227>0,'6-Needs-Estimation'!G227,"-") -> - | H24: =IF('6-Needs-Estimation'!H227>0,'6-Needs-Estimation'!H227,"-") -> - | I24: =IF('6-Needs-Estimation'!I227>0,'6-Needs-Estimation'!I227,"-") -> - | J24: =IF('6-Needs-Estimation'!J227>0,'6-Needs-Estimation'!J227,"-") -> - | K24: =IF('6-Needs-Estimation'!K227>0,'6-Needs-Estimation'!K227,"-") -> - | L24: =IF('6-Needs-Estimation'!L227>0,'6-Needs-Estimation'!L227,"-") -> - | M24: =IF('6-Needs-Estimation'!M227>0,'6-Needs-Estimation'!M227,"-") -> - | N24: =IF('6-Needs-Estimation'!N227>0,'6-Needs-Estimation'!N227,"-") -> - | O24: =IF('6-Needs-Estimation'!O227>0,'6-Needs-Estimation'!O227,"-") -> - | P24: =IF('6-Needs-Estimation'!P227>0,'6-Needs-Estimation'!P227,"-") -> - | Q24: =IF('6-Needs-Estimation'!Q227>0,'6-Needs-Estimation'!Q227,"-") -> - | R24: =IF('6-Needs-Estimation'!R227>0,'6-Needs-Estimation'!R227,"-") -> -
C25: =SUM(C10:C24) -> 300698646.9 | D25: =SUM(D10:D24) -> 121153400 | E25: 86576559.38 | F25: 92968687.5 | G25: 0 | H25: 0 | I25: 0 | J25: 0 | K25: 0 | L25: 0 | M25: 0 | N25: 0 | O25: 0 | P25: 0 | Q25: 0 | R25: 0
B27: Tale 8-2: Intermediate steps to Calculate Final Allocation across different asset types given the Strategy Inputs, Asset Inventory, Current Rating, Target Rating and Timelines
B28: Asset-Activity Group (AAG) | C28: Needs based Allocation Total | D28: Simple Prorated State Total | E28: Difference: (Allocation Needed less Simple Proration) | F28: Asset Ranking | G28: % Maximum Deviation from Delta | H28: Lower Limit of Allocation | I28: Upper Limit of Allocation | J28: Optimized Allocation (Using Linear Optimization) | K28: Estimated Time to target Rating* | L28: Difference (Estimated Time less Desired Time) | M28: Standard Error Calculation | N28: Time difference | O28: Needs Based Allocation | P28: Historical Allocation for Assets not allocated by Needs | Q28: % Allocation for NBP Assets | R28: Final Allocation (Available > Deterioration) | S28: Final Allocation (Available < Deterioration) | T28: Final Allocation | U28: Needs if Data is Unavailable | V28: Pavement Asset Flag | W28: Pavement Asset Funds | X28: Pro-rate based on Deterioration | Y28: Difference: (Deterioration Need -Pro rate) | Z28: Constrained Situation (Lower limit) | AA28: Constrained Situation (Upper limit) | AB28: Allocation Percentage
M29: Std Dev Error | AB29: Allocation Percentage
B30: =B10 -> Bridges | C30: =IF('4-Strategy-Inputs'!$E$10="No", IF(U30>0,0, IF(SUM(D10:R10)>0,SUM(D10:R10),0)),IF(O30="Yes",IF(SUM(D10:R10)>0,SUM(D10:R10),0),0)) -> 111501500 | D30: =IF(ISNUMBER(C30*($D$4/$C$45)),C30*($D$4/$C$45),0) -> 82414292.01 | E30: =IF(ISNUMBER(C30-D30),C30-D30,0) -> 29087207.99 | F30: =IF('4-Strategy-Inputs'!G16>0,'4-Strategy-Inputs'!G16,"-") -> 2 | G30: =IF('4-Strategy-Inputs'!$E$11 = "Yes", IF(F30> 0, IF(ISNUMBER(VLOOKUP(F30,'4-Strategy-Inputs'!$N$16:$O$30,2,)), VLOOKUP(F30,'4-Strategy-Inputs'!$N$16:$O$30,2,), "-"),100%),100%) -> 1.1 | H30: =IF($J$67>$D$4, Z30, IF($J$67>$D$4,#REF!,IF(C30=0,0,IF(IF(ISNUMBER(MIN(D30-(E30*G30),C30)),MIN(D30-(E30*G30),C30),0)<J52,J52+1,IF(ISNUMBER(MIN(D30-(E30*G30),C30)),MIN(D30-(E30*G30),C30),0))))) -> 57750001 | I30: =IF($J$67>$D$4, AA30,IF(ISNUMBER(MIN(D30+(E30*G30),C30)),MIN(D30+(E30*G30),C30),0)) -> 111501500 | J30: 66574055.62 | K30: =D52 -> 12.63608309 | L30: =IF(K30>0, IF(ISNUMBER(K30-'4-Strategy-Inputs'!F16),K30-'4-Strategy-Inputs'!F16,"-"),IF(K30<0,K30," ")) -> 10.63608309 | M30: =IF(ISNUMBER(POWER(L30-$L$46,2)),POWER(L30-$L$46,2)," ") -> 9.921773154e-09 | N30: =IF(ISNUMBER(L30), L30," ") -> 10.63608309 | O30: ='4-Strategy-Inputs'!H16 -> Yes | P30: =IF(O30="Yes","-", '5-Data-Inputs'!D106) -> - | Q30: =IF(J30>1,"-",IF(ISNUMBER($I$6*(AB30/$AB$45)),$I$6*(AB30/$AB$45),"-")) -> - | R30: =IF(J30>1,J30,IF(Q30<>"-",Q30,U30)) -> 66574055.62 | S30: =IF($J$67> $D$4,(J52/$J$67)*$D$4,"-") -> - | T30: =IF(S30<>"-",S30,R30) -> 66574055.62 | U30: ='6-Needs-Estimation'!D233 -> 0 | V30: ='4-Strategy-Inputs'!I16 -> No | W30: =IF(V30="Yes",J30,0) -> 0 | X30: =$D$4*(J52/$J$67) -> 64063734.29 | Y30: =J52-X30 -> -6313734.289 | Z30: =IF(ISNUMBER(X30-(Y30*G30)),X30-(Y30*G30),"-") -> 71008842.01 | AA30: =IF(ISNUMBER(X30+(Y30*G30)),X30+(Y30*G30),"-") -> 57118626.57 | AB30: =IF(O30="No",'4-Strategy-Inputs'!J16,0%) -> 0
B31: Pavements | C31: =IF('4-Strategy-Inputs'!$E$10="No", IF(U31>0,0, IF(SUM(D11:R11)>0,SUM(D11:R11),0)),IF(O31="Yes",IF(SUM(D11:R11)>0,SUM(D11:R11),0),0)) -> 176121000 | D31: 130176612.2 | E31: 45944387.81 | F31: =IF('4-Strategy-Inputs'!G17>0,'4-Strategy-Inputs'!G17,"-") -> 1 | G31: =IF('4-Strategy-Inputs'!$E$11 = "Yes", IF(F31> 0, IF(ISNUMBER(VLOOKUP(F31,'4-Strategy-Inputs'!$N$16:$O$30,2,)), VLOOKUP(F31,'4-Strategy-Inputs'!$N$16:$O$30,2,), "-"),100%),100%) -> 1 | H31: =IF($J$67>$D$4, X31, IF($J$67>$D$4,#REF!,IF(C31=0,0,IF(IF(ISNUMBER(MIN(D31-(E31*G31),C31)),MIN(D31-(E31*G31),C31),0)<J53,J53+1,IF(ISNUMBER(MIN(D31-(E31*G31),C31)),MIN(D31-(E31*G31),C31),0))))) -> 124500001 | I31: =IF($J$67>$D$4, AA31,IF(ISNUMBER(MIN(D31+(E31*G31),C31)),MIN(D31+(E31*G31),C31),0)) -> 176121000 | J31: 138437860 | K31: 12.63615791 | L31: =IF(K31>0, IF(ISNUMBER(K31-'4-Strategy-Inputs'!F17),K31-'4-Strategy-Inputs'!F17,"-"),IF(K31<0,K31," ")) -> 10.63615791 | M31: 6.147756577e-10 | N31: =IF(ISNUMBER(L31), L31," ") -> 10.63615791 | O31: ='4-Strategy-Inputs'!H17 -> Yes | P31: =IF(O31="Yes","-", '5-Data-Inputs'!D107) -> - | Q31: =IF(J31>1,"-",IF(ISNUMBER($I$6*(AB31/$AB$45)),$I$6*(AB31/$AB$45),"-")) -> - | R31: =IF(J31>1,J31,IF(Q31<>"-",Q31,U31)) -> 138437860 | S31: - | T31: 138437860 | U31: ='6-Needs-Estimation'!D234 -> 0 | V31: ='4-Strategy-Inputs'!I17 -> Yes | W31: =IF(V31="Yes",J31,0) -> 138437860 | X31: =$D$4*(J53/$J$67) -> 138111427.2 | Y31: =J53-X31 -> -13611427.17 | Z31: =IF(ISNUMBER(X31-(Y31*G31)),X31-(Y31*G31),"-") -> 151722854.3 | AA31: =IF(ISNUMBER(X31+(Y31*G31)),X31+(Y31*G31),"-") -> 124500000 | AB31: =IF(O31="No",'4-Strategy-Inputs'!J17,0%) -> 0
B32: Signs | C32: =IF('4-Strategy-Inputs'!$E$10="No", IF(U32>0,0, IF(SUM(D12:R12)>0,SUM(D12:R12),0)),IF(O32="Yes",IF(SUM(D12:R12)>0,SUM(D12:R12),0),0)) -> 0 | D32: 0 | E32: 0 | F32: =IF('4-Strategy-Inputs'!G18>0,'4-Strategy-Inputs'!G18,"-") -> 4 | G32: =IF('4-Strategy-Inputs'!$E$11 = "Yes", IF(F32> 0, IF(ISNUMBER(VLOOKUP(F32,'4-Strategy-Inputs'!$N$16:$O$30,2,)), VLOOKUP(F32,'4-Strategy-Inputs'!$N$16:$O$30,2,), "-"),100%),100%) -> 1.3 | H32: =IF($J$67>$D$4, X32, IF($J$67>$D$4,#REF!,IF(C32=0,0,IF(IF(ISNUMBER(MIN(D32-(E32*G32),C32)),MIN(D32-(E32*G32),C32),0)<J54,J54+1,IF(ISNUMBER(MIN(D32-(E32*G32),C32)),MIN(D32-(E32*G32),C32),0))))) -> 0 | I32: 0 | J32: 0 | K32: 0 | L32: =IF(K32>0, IF(ISNUMBER(K32-'4-Strategy-Inputs'!F18),K32-'4-Strategy-Inputs'!F18,"-"),IF(K32<0,K32," ")) ->  | O32: ='4-Strategy-Inputs'!H18 -> No | P32: =IF(O32="Yes","-", '5-Data-Inputs'!D108) -> 4395333.333 | Q32: 3460946.5 | R32: =IF(J32>1,J32,IF(Q32<>"-",Q32,U32)) -> 3460946.5 | S32: - | T32: 3460946.5 | U32: ='6-Needs-Estimation'!D235 -> 4615100 | V32: ='4-Strategy-Inputs'!I18 -> No | W32: 0 | X32: 8453084.94 | Y32: -833084.94 | Z32: 9536095.362 | AA32: 7370074.518 | AB32: =IF(O32="No",'4-Strategy-Inputs'!J18,0%) -> 0.025
B33: Highway Lighting | C33: =IF('4-Strategy-Inputs'!$E$10="No", IF(U33>0,0, IF(SUM(D13:R13)>0,SUM(D13:R13),0)),IF(O33="Yes",IF(SUM(D13:R13)>0,SUM(D13:R13),0),0)) -> 3114421.875 | D33: 2301967.901 | E33: 812453.9745 | F33: =IF('4-Strategy-Inputs'!G19>0,'4-Strategy-Inputs'!G19,"-") -> 6 | G33: =IF('4-Strategy-Inputs'!$E$11 = "Yes", IF(F33> 0, IF(ISNUMBER(VLOOKUP(F33,'4-Strategy-Inputs'!$N$16:$O$30,2,)), VLOOKUP(F33,'4-Strategy-Inputs'!$N$16:$O$30,2,), "-"),100%),100%) -> 1.5 | H33: =IF($J$67>$D$4, X33, IF($J$67>$D$4,#REF!,IF(C33=0,0,IF(IF(ISNUMBER(MIN(D33-(E33*G33),C33)),MIN(D33-(E33*G33),C33),0)<J55,J55+1,IF(ISNUMBER(MIN(D33-(E33*G33),C33)),MIN(D33-(E33*G33),C33),0))))) -> 2730501 | I33: 3114421.875 | J33: 2943288.749 | K33: 14.63621499 | L33: =IF(K33>0, IF(ISNUMBER(K33-'4-Strategy-Inputs'!F19),K33-'4-Strategy-Inputs'!F19,"-"),IF(K33<0,K33," ")) -> 10.63621499 | M33: 1.042647025e-09 | N33: 10.63621499 | O33: ='4-Strategy-Inputs'!H19 -> Yes | P33: =IF(O33="Yes","-", '5-Data-Inputs'!D109) -> - | Q33: - | R33: =IF(J33>1,J33,IF(Q33<>"-",Q33,U33)) -> 2943288.749 | S33: - | T33: 2943288.749 | U33: ='6-Needs-Estimation'!D236 -> 0 | V33: ='4-Strategy-Inputs'!I19 -> No | W33: 0 | X33: 3029022.104 | Y33: -298522.1035 | Z33: 3476805.259 | AA33: 2581238.948 | AB33: =IF(O33="No",'4-Strategy-Inputs'!J19,0%) -> 0
B34: Guardrail | C34: =IF('4-Strategy-Inputs'!$E$10="No", IF(U34>0,0, IF(SUM(D14:R14)>0,SUM(D14:R14),0)),IF(O34="Yes",IF(SUM(D14:R14)>0,SUM(D14:R14),0),0)) -> 0 | D34: 0 | E34: 0 | F34: =IF('4-Strategy-Inputs'!G20>0,'4-Strategy-Inputs'!G20,"-") -> 2 | G34: =IF('4-Strategy-Inputs'!$E$11 = "Yes", IF(F34> 0, IF(ISNUMBER(VLOOKUP(F34,'4-Strategy-Inputs'!$N$16:$O$30,2,)), VLOOKUP(F34,'4-Strategy-Inputs'!$N$16:$O$30,2,), "-"),100%),100%) -> 1.1 | H34: =IF($J$67>$D$4, X34, IF($J$67>$D$4,#REF!,IF(C34=0,0,IF(IF(ISNUMBER(MIN(D34-(E34*G34),C34)),MIN(D34-(E34*G34),C34),0)<J56,J56+1,IF(ISNUMBER(MIN(D34-(E34*G34),C34)),MIN(D34-(E34*G34),C34),0))))) -> 0 | I34: 0 | J34: 0 | K34: 0 | L34: =IF(K34>0, IF(ISNUMBER(K34-'4-Strategy-Inputs'!F20),K34-'4-Strategy-Inputs'!F20,"-"),IF(K34<0,K34," ")) ->  | O34: ='4-Strategy-Inputs'!H20 -> No | P34: =IF(O34="Yes","-", '5-Data-Inputs'!D110) -> 1269000 | Q34: 3460946.5 | R34: 3460946.5 | S34: - | T34: 3460946.5 | U34: ='6-Needs-Estimation'!D237 -> 1332450 | V34: ='4-Strategy-Inputs'!I20 -> No | W34: 0 | X34: 1217377.351 | Y34: -119977.3508 | Z34: 1349352.437 | AA34: 1085402.265 | AB34: =IF(O34="No",'4-Strategy-Inputs'!J20,0%) -> 0.025
B35: Weigh Stations | C35: =IF('4-Strategy-Inputs'!$E$10="No", IF(U35>0,0, IF(SUM(D15:R15)>0,SUM(D15:R15),0)),IF(O35="Yes",IF(SUM(D15:R15)>0,SUM(D15:R15),0),0)) -> 144937.5 | D35: 107127.8992 | E35: 37809.60084 | F35: =IF('4-Strategy-Inputs'!G21>0,'4-Strategy-Inputs'!G21,"-") -> 5 | G35: =IF('4-Strategy-Inputs'!$E$11 = "Yes", IF(F35> 0, IF(ISNUMBER(VLOOKUP(F35,'4-Strategy-Inputs'!$N$16:$O$30,2,)), VLOOKUP(F35,'4-Strategy-Inputs'!$N$16:$O$30,2,), "-"),100%),100%) -> 1.4 | H35: =IF($J$67>$D$4, X35, IF($J$67>$D$4,#REF!,IF(C35=0,0,IF(IF(ISNUMBER(MIN(D35-(E35*G35),C35)),MIN(D35-(E35*G35),C35),0)<J57,J57+1,IF(ISNUMBER(MIN(D35-(E35*G35),C35)),MIN(D35-(E35*G35),C35),0))))) -> 113001 | I35: 144937.5 | J35: 122902.6222 | K35: 14.63627481 | L35: =IF(K35>0, IF(ISNUMBER(K35-'4-Strategy-Inputs'!F21),K35-'4-Strategy-Inputs'!F21,"-"),IF(K35<0,K35," ")) -> 10.63627481 | M35: 8.484753642e-09 | N35: 10.63627481 | O35: ='4-Strategy-Inputs'!H21 -> Yes | P35: =IF(O35="Yes","-", '5-Data-Inputs'!D111) -> - | Q35: - | R35: 122902.6222 | S35: - | T35: 122902.6222 | U35: ='6-Needs-Estimation'!D238 -> 0 | V35: ='4-Strategy-Inputs'!I21 -> No | W35: 0 | X35: 125354.1467 | Y35: -12354.14675 | Z35: 142649.9522 | AA35: 108058.3413 | AB35: =IF(O35="No",'4-Strategy-Inputs'!J21,0%) -> 0
B36: - | C36: =IF('4-Strategy-Inputs'!$E$10="No", IF(U36>0,0, IF(SUM(D16:R16)>0,SUM(D16:R16),0)),IF(O36="Yes",IF(SUM(D16:R16)>0,SUM(D16:R16),0),0)) -> 0 | D36: 0 | E36: 0 | F36: =IF('4-Strategy-Inputs'!G22>0,'4-Strategy-Inputs'!G22,"-") -> - | G36: =IF('4-Strategy-Inputs'!$E$11 = "Yes", IF(F36> 0, IF(ISNUMBER(VLOOKUP(F36,'4-Strategy-Inputs'!$N$16:$O$30,2,)), VLOOKUP(F36,'4-Strategy-Inputs'!$N$16:$O$30,2,), "-"),100%),100%) -> - | H36: =IF($J$67>$D$4, X36, IF($J$67>$D$4,#REF!,IF(C36=0,0,IF(IF(ISNUMBER(MIN(D36-(E36*G36),C36)),MIN(D36-(E36*G36),C36),0)<J58,J58+1,IF(ISNUMBER(MIN(D36-(E36*G36),C36)),MIN(D36-(E36*G36),C36),0))))) -> 0 | I36: 0 | J36: 0 | K36: - | L36: =IF(K36>0, IF(ISNUMBER(K36-'4-Strategy-Inputs'!F22),K36-'4-Strategy-Inputs'!F22,"-"),IF(K36<0,K36," ")) -> - | O36: ='4-Strategy-Inputs'!H22 -> 0 | P36: =IF(O36="Yes","-", '5-Data-Inputs'!D112) -> - | Q36: 0 | R36: 0 | S36: - | T36: 0 | U36: ='6-Needs-Estimation'!D239 -> - | V36: ='4-Strategy-Inputs'!I22 -> 0 | W36: 0 | X36: 0 | Y36: 0 | Z36: - | AA36: - | AB36: =IF(O36="No",'4-Strategy-Inputs'!J22,0%) -> 0
B37: - | C37: =IF('4-Strategy-Inputs'!$E$10="No", IF(U37>0,0, IF(SUM(D17:R17)>0,SUM(D17:R17),0)),IF(O37="Yes",IF(SUM(D17:R17)>0,SUM(D17:R17),0),0)) -> 0 | D37: 0 | E37: 0 | F37: =IF('4-Strategy-Inputs'!G23>0,'4-Strategy-Inputs'!G23,"-") -> - | G37: =IF('4-Strategy-Inputs'!$E$11 = "Yes", IF(F37> 0, IF(ISNUMBER(VLOOKUP(F37,'4-Strategy-Inputs'!$N$16:$O$30,2,)), VLOOKUP(F37,'4-Strategy-Inputs'!$N$16:$O$30,2,), "-"),100%),100%) -> - | H37: =IF($J$67>$D$4, X37, IF($J$67>$D$4,#REF!,IF(C37=0,0,IF(IF(ISNUMBER(MIN(D37-(E37*G37),C37)),MIN(D37-(E37*G37),C37),0)<J59,J59+1,IF(ISNUMBER(MIN(D37-(E37*G37),C37)),MIN(D37-(E37*G37),C37),0))))) -> 0 | I37: 0 | J37: 0 | K37: - | L37: =IF(K37>0, IF(ISNUMBER(K37-'4-Strategy-Inputs'!F23),K37-'4-Strategy-Inputs'!F23,"-"),IF(K37<0,K37," ")) -> - | O37: ='4-Strategy-Inputs'!H23 -> 0 | P37: =IF(O37="Yes","-", '5-Data-Inputs'!D113) -> - | Q37: 0 | R37: 0 | S37: - | T37: 0 | U37: ='6-Needs-Estimation'!D240 -> - | V37: ='4-Strategy-Inputs'!I23 -> 0 | W37: 0 | X37: 0 | Y37: 0 | Z37: - | AA37: - | AB37: =IF(O37="No",'4-Strategy-Inputs'!J23,0%) -> 0
B38: - | C38: =IF('4-Strategy-Inputs'!$E$10="No", IF(U38>0,0, IF(SUM(D18:R18)>0,SUM(D18:R18),0)),IF(O38="Yes",IF(SUM(D18:R18)>0,SUM(D18:R18),0),0)) -> 0 | D38: 0 | E38: 0 | F38: =IF('4-Strategy-Inputs'!G24>0,'4-Strategy-Inputs'!G24,"-") -> - | G38: =IF('4-Strategy-Inputs'!$E$11 = "Yes", IF(F38> 0, IF(ISNUMBER(VLOOKUP(F38,'4-Strategy-Inputs'!$N$16:$O$30,2,)), VLOOKUP(F38,'4-Strategy-Inputs'!$N$16:$O$30,2,), "-"),100%),100%) -> - | H38: =IF($J$67>$D$4, X38, IF($J$67>$D$4,#REF!,IF(C38=0,0,IF(IF(ISNUMBER(MIN(D38-(E38*G38),C38)),MIN(D38-(E38*G38),C38),0)<J60,J60+1,IF(ISNUMBER(MIN(D38-(E38*G38),C38)),MIN(D38-(E38*G38),C38),0))))) -> 0 | I38: 0 | J38: 0 | K38: - | L38: =IF(K38>0, IF(ISNUMBER(K38-'4-Strategy-Inputs'!F24),K38-'4-Strategy-Inputs'!F24,"-"),IF(K38<0,K38," ")) -> - | O38: ='4-Strategy-Inputs'!H24 -> 0 | P38: =IF(O38="Yes","-", '5-Data-Inputs'!D114) -> - | Q38: 0 | R38: 0 | S38: - | T38: 0 | U38: ='6-Needs-Estimation'!D241 -> - | V38: ='4-Strategy-Inputs'!I24 -> 0 | W38: 0 | X38: 0 | Y38: 0 | Z38: - | AA38: - | AB38: =IF(O38="No",'4-Strategy-Inputs'!J24,0%) -> 0
B39: - | C39: =IF('4-Strategy-Inputs'!$E$10="No", IF(U39>0,0, IF(SUM(D19:R19)>0,SUM(D19:R19),0)),IF(O39="Yes",IF(SUM(D19:R19)>0,SUM(D19:R19),0),0)) -> 0 | D39: 0 | E39: 0 | F39: =IF('4-Strategy-Inputs'!G25>0,'4-Strategy-Inputs'!G25,"-") -> - | G39: =IF('4-Strategy-Inputs'!$E$11 = "Yes", IF(F39> 0, IF(ISNUMBER(VLOOKUP(F39,'4-Strategy-Inputs'!$N$16:$O$30,2,)), VLOOKUP(F39,'4-Strategy-Inputs'!$N$16:$O$30,2,), "-"),100%),100%) -> - | H39: =IF($J$67>$D$4, X39, IF($J$67>$D$4,#REF!,IF(C39=0,0,IF(IF(ISNUMBER(MIN(D39-(E39*G39),C39)),MIN(D39-(E39*G39),C39),0)<J61,J61+1,IF(ISNUMBER(MIN(D39-(E39*G39),C39)),MIN(D39-(E39*G39),C39),0))))) -> 0 | I39: 0 | J39: 0 | K39: - | L39: =IF(K39>0, IF(ISNUMBER(K39-'4-Strategy-Inputs'!F25),K39-'4-Strategy-Inputs'!F25,"-"),IF(K39<0,K39," ")) -> - | O39: ='4-Strategy-Inputs'!H25 -> 0 | P39: =IF(O39="Yes","-", '5-Data-Inputs'!D115) -> - | Q39: 0 | R39: 0 | S39: - | T39: 0 | U39: ='6-Needs-Estimation'!D242 -> - | V39: ='4-Strategy-Inputs'!I25 -> 0 | W39: 0 | X39: 0 | Y39: 0 | Z39: - | AA39: - | AB39: =IF(O39="No",'4-Strategy-Inputs'!J25,0%) -> 0
B40: - | C40: =IF('4-Strategy-Inputs'!$E$10="No", IF(U40>0,0, IF(SUM(D20:R20)>0,SUM(D20:R20),0)),IF(O40="Yes",IF(SUM(D20:R20)>0,SUM(D20:R20),0),0)) -> 0 | D40: 0 | E40: 0 | F40: =IF('4-Strategy-Inputs'!G26>0,'4-Strategy-Inputs'!G26,"-") -> - | G40: =IF('4-Strategy-Inputs'!$E$11 = "Yes", IF(F40> 0, IF(ISNUMBER(VLOOKUP(F40,'4-Strategy-Inputs'!$N$16:$O$30,2,)), VLOOKUP(F40,'4-Strategy-Inputs'!$N$16:$O$30,2,), "-"),100%),100%) -> - | H40: =IF($J$67>$D$4, X40, IF($J$67>$D$4,#REF!,IF(C40=0,0,IF(IF(ISNUMBER(MIN(D40-(E40*G40),C40)),MIN(D40-(E40*G40),C40),0)<J62,J62+1,IF(ISNUMBER(MIN(D40-(E40*G40),C40)),MIN(D40-(E40*G40),C40),0))))) -> 0 | I40: 0 | J40: 0 | K40: - | L40: =IF(K40>0, IF(ISNUMBER(K40-'4-Strategy-Inputs'!F26),K40-'4-Strategy-Inputs'!F26,"-"),IF(K40<0,K40," ")) -> - | O40: ='4-Strategy-Inputs'!H26 -> 0 | P40: =IF(O40="Yes","-", '5-Data-Inputs'!D116) -> - | Q40: 0 | R40: 0 | S40: - | T40: 0 | U40: ='6-Needs-Estimation'!D243 -> - | V40: ='4-Strategy-Inputs'!I26 -> 0 | W40: 0 | X40: 0 | Y40: 0 | Z40: - | AA40: - | AB40: =IF(O40="No",'4-Strategy-Inputs'!J26,0%) -> 0
B41: - | C41: =IF('4-Strategy-Inputs'!$E$10="No", IF(U41>0,0, IF(SUM(D21:R21)>0,SUM(D21:R21),0)),IF(O41="Yes",IF(SUM(D21:R21)>0,SUM(D21:R21),0),0)) -> 0 | D41: 0 | E41: 0 | F41: =IF('4-Strategy-Inputs'!G27>0,'4-Strategy-Inputs'!G27,"-") -> - | G41: =IF('4-Strategy-Inputs'!$E$11 = "Yes", IF(F41> 0, IF(ISNUMBER(VLOOKUP(F41,'4-Strategy-Inputs'!$N$16:$O$30,2,)), VLOOKUP(F41,'4-Strategy-Inputs'!$N$16:$O$30,2,), "-"),100%),100%) -> - | H41: =IF($J$67>$D$4, X41, IF($J$67>$D$4,#REF!,IF(C41=0,0,IF(IF(ISNUMBER(MIN(D41-(E41*G41),C41)),MIN(D41-(E41*G41),C41),0)<J63,J63+1,IF(ISNUMBER(MIN(D41-(E41*G41),C41)),MIN(D41-(E41*G41),C41),0))))) -> 0 | I41: 0 | J41: 0 | K41: - | L41: =IF(K41>0, IF(ISNUMBER(K41-'4-Strategy-Inputs'!F27),K41-'4-Strategy-Inputs'!F27,"-"),IF(K41<0,K41," ")) -> - | O41: ='4-Strategy-Inputs'!H27 -> 0 | P41: =IF(O41="Yes","-", '5-Data-Inputs'!D117) -> - | Q41: 0 | R41: 0 | S41: - | T41: 0 | U41: ='6-Needs-Estimation'!D244 -> - | V41: ='4-Strategy-Inputs'!I27 -> 0 | W41: 0 | X41: 0 | Y41: 0 | Z41: - | AA41: - | AB41: =IF(O41="No",'4-Strategy-Inputs'!J27,0%) -> 0
B42: - | C42: =IF('4-Strategy-Inputs'!$E$10="No", IF(U42>0,0, IF(SUM(D22:R22)>0,SUM(D22:R22),0)),IF(O42="Yes",IF(SUM(D22:R22)>0,SUM(D22:R22),0),0)) -> 0 | D42: 0 | E42: 0 | F42: =IF('4-Strategy-Inputs'!G28>0,'4-Strategy-Inputs'!G28,"-") -> - | G42: =IF('4-Strategy-Inputs'!$E$11 = "Yes", IF(F42> 0, IF(ISNUMBER(VLOOKUP(F42,'4-Strategy-Inputs'!$N$16:$O$30,2,)), VLOOKUP(F42,'4-Strategy-Inputs'!$N$16:$O$30,2,), "-"),100%),100%) -> - | H42: =IF($J$67>$D$4, X42, IF($J$67>$D$4,#REF!,IF(C42=0,0,IF(IF(ISNUMBER(MIN(D42-(E42*G42),C42)),MIN(D42-(E42*G42),C42),0)<J64,J64+1,IF(ISNUMBER(MIN(D42-(E42*G42),C42)),MIN(D42-(E42*G42),C42),0))))) -> 0 | I42: 0 | J42: 0 | K42: - | L42: =IF(K42>0, IF(ISNUMBER(K42-'4-Strategy-Inputs'!F28),K42-'4-Strategy-Inputs'!F28,"-"),IF(K42<0,K42," ")) -> - | O42: ='4-Strategy-Inputs'!H28 -> 0 | P42: =IF(O42="Yes","-", '5-Data-Inputs'!D118) -> - | Q42: 0 | R42: 0 | S42: - | T42: 0 | U42: ='6-Needs-Estimation'!D245 -> - | V42: ='4-Strategy-Inputs'!I28 -> 0 | W42: 0 | X42: 0 | Y42: 0 | Z42: - | AA42: - | AB42: =IF(O42="No",'4-Strategy-Inputs'!J28,0%) -> 0
B43: - | C43: =IF('4-Strategy-Inputs'!$E$10="No", IF(U43>0,0, IF(SUM(D23:R23)>0,SUM(D23:R23),0)),IF(O43="Yes",IF(SUM(D23:R23)>0,SUM(D23:R23),0),0)) -> 0 | D43: 0 | E43: 0 | F43: =IF('4-Strategy-Inputs'!G29>0,'4-Strategy-Inputs'!G29,"-") -> - | G43: =IF('4-Strategy-Inputs'!$E$11 = "Yes", IF(F43> 0, IF(ISNUMBER(VLOOKUP(F43,'4-Strategy-Inputs'!$N$16:$O$30,2,)), VLOOKUP(F43,'4-Strategy-Inputs'!$N$16:$O$30,2,), "-"),100%),100%) -> - | H43: =IF($J$67>$D$4, X43, IF($J$67>$D$4,#REF!,IF(C43=0,0,IF(IF(ISNUMBER(MIN(D43-(E43*G43),C43)),MIN(D43-(E43*G43),C43),0)<J65,J65+1,IF(ISNUMBER(MIN(D43-(E43*G43),C43)),MIN(D43-(E43*G43),C43),0))))) -> 0 | I43: 0 | J43: 0 | K43: - | L43: =IF(K43>0, IF(ISNUMBER(K43-'4-Strategy-Inputs'!F29),K43-'4-Strategy-Inputs'!F29,"-"),IF(K43<0,K43," ")) -> - | O43: ='4-Strategy-Inputs'!H29 -> 0 | P43: =IF(O43="Yes","-", '5-Data-Inputs'!D119) -> - | Q43: 0 | R43: 0 | S43: - | T43: 0 | U43: ='6-Needs-Estimation'!D246 -> - | V43: ='4-Strategy-Inputs'!I29 -> 0 | W43: 0 | X43: 0 | Y43: 0 | Z43: - | AA43: - | AB43: =IF(O43="No",'4-Strategy-Inputs'!J29,0%) -> 0
B44: - | C44: =IF('4-Strategy-Inputs'!$E$10="No", IF(U44>0,0, IF(SUM(D24:R24)>0,SUM(D24:R24),0)),IF(O44="Yes",IF(SUM(D24:R24)>0,SUM(D24:R24),0),0)) -> 0 | D44: 0 | E44: 0 | F44: =IF('4-Strategy-Inputs'!G30>0,'4-Strategy-Inputs'!G30,"-") -> - | G44: =IF('4-Strategy-Inputs'!$E$11 = "Yes", IF(F44> 0, IF(ISNUMBER(VLOOKUP(F44,'4-Strategy-Inputs'!$N$16:$O$30,2,)), VLOOKUP(F44,'4-Strategy-Inputs'!$N$16:$O$30,2,), "-"),100%),100%) -> - | H44: =IF($J$67>$D$4, X44, IF($J$67>$D$4,#REF!,IF(C44=0,0,IF(IF(ISNUMBER(MIN(D44-(E44*G44),C44)),MIN(D44-(E44*G44),C44),0)<J66,J66+1,IF(ISNUMBER(MIN(D44-(E44*G44),C44)),MIN(D44-(E44*G44),C44),0))))) -> 0 | I44: 0 | J44: 0 | K44: - | L44: =IF(K44>0, IF(ISNUMBER(K44-'4-Strategy-Inputs'!F30),K44-'4-Strategy-Inputs'!F30,"-"),IF(K44<0,K44," ")) -> - | O44: ='4-Strategy-Inputs'!H30 -> 0 | P44: =IF(O44="Yes","-", '5-Data-Inputs'!D120) -> - | Q44: 0 | R44: 0 | S44: - | T44: 0 | U44: ='6-Needs-Estimation'!D247 -> - | V44: ='4-Strategy-Inputs'!I30 -> 0 | W44: 0 | X44: 0 | Y44: 0 | Z44: - | AA44: - | AB44: =IF(O44="No",'4-Strategy-Inputs'!J30,0%) -> 0
C45: =SUM(C30:C44) -> 290881859.4 | D45: =SUM(D30:D44) -> 215000000 | E45: =SUM(E30:E44) -> 75881859.38 | H45: =SUM(H30:H44) -> 185093504 | J45: =SUM(J30:J44) -> 208078107 | K45: Std Dev | L45: =SQRT(M45/(COUNT(N30:N44)-1)) -> 8.178009024e-05 | M45: =SUM(M30:M44) -> 2.006394948e-08 | P45: =SUM(P30:P44) -> 5664333.333 | Q45: 6921893.001 | R45: 215000000 | S45: 0 | T45: 215000000 | U45: 5947550 | W45: =SUM(W30:W44) -> 138437860 | Y45: =SUM(Y30:Y44) -> -21189100 | Z45: =SUM(Z30:Z44) -> 237236599.4 | AA45: =SUM(AA30:AA44) -> 192763400.6 | AB45: =SUM(AB30:AB44) -> 0.05
J46: Avg. Time Difference | L46: =IF(ISNUMBER(AVERAGE('8-Calculations'!N30:N44)),AVERAGE('8-Calculations'!N30:N44),"NA") -> 10.6361827
B47: * Negative value indicates that the Target Rating will not be achieved
B49: Table 8-3: Intermediate steps to Calculate Final Allocation across different asset types given the Strategy Inputs, Asset Inventory, Current Rating, Target Rating and Timelines
B50: Asset-Activity Group (AAG) | C50: Allocation vs. Deterioration-- Annual Excess or (Shortfall) | D50: Years to Reach Target Rating | E50: Historical Allocation | F50: Funds needed for unit Rating improvement | G50: Current Rating | H50: Estimated Rating Result | I50: Target Rating | J50: Funds needed to cover Deterioration | K50: Allocation under constrained condition | L50: Allocation Needs | M50: Final Years to reach Target Rating
B52: =B30 -> Bridges | C52: =IF(ISNUMBER(T30-'6-Needs-Estimation'!C14), T30-'6-Needs-Estimation'!C14, "-") -> 8824055.617 | D52: =IF(ISNUMBER(C30/(J30-J52)),C30/(J30-J52),"-") -> 12.63608309 | E52: =IF('5-Data-Inputs'!D106 >0, '5-Data-Inputs'!D106,"-") -> 67998000 | F52: ='6-Needs-Estimation'!C18 -> 38500000 | G52: ='5-Data-Inputs'!D28 -> 0.7720771429 | H52: =IF(ISNUMBER(G52+((C52/F52)/100)),(G52+((C52/F52)/100)),"-") -> 0.7743691054 | I52: =IF('4-Strategy-Inputs'!E16>0,'4-Strategy-Inputs'!E16,"-") -> 0.8 | J52: ='6-Needs-Estimation'!C14 -> 57750000 | K52: =IF($D$4<$J$67,(J52*$D$4/$J$67),"NA") -> NA | L52: ='6-Needs-Estimation'!C17 -> 111501500 | M52: =IF(ISNUMBER(C10/(T30-J52)),C10/(T30-J52),"-") -> 12.63608309
B53: =B31 -> Pavements | C53: =IF(ISNUMBER(T31-'6-Needs-Estimation'!C29), T31-'6-Needs-Estimation'!C29, "-") -> 13937860.01 | D53: =(C31/(J31-J53)) -> 12.63615791 | E53: =IF('5-Data-Inputs'!D107 >0, '5-Data-Inputs'!D107,"-") -> 138419000 | F53: ='6-Needs-Estimation'!C33 -> 24900000 | G53: ='5-Data-Inputs'!D29 -> 0.7585373494 | H53: 0.7641348835 | I53: =IF('4-Strategy-Inputs'!E17>0,'4-Strategy-Inputs'!E17,"-") -> 0.8 | J53: ='6-Needs-Estimation'!C29 -> 124500000 | K53: NA | L53: ='6-Needs-Estimation'!C32 -> 176121000 | M53: =IF(ISNUMBER(C11/(T31-J53)),C11/(T31-J53),"-") -> 12.63615791
B54: Signs | C54: =IF(ISNUMBER(T32-'6-Needs-Estimation'!C44), T32-'6-Needs-Estimation'!C44, "-") -> -4159053.5 | D54: =IF(ISNUMBER(C32/(J32-J54)),C32/(J32-J54),"-") -> 0 | E54: =IF('5-Data-Inputs'!D108 >0, '5-Data-Inputs'!D108,"-") -> 4395333.333 | F54: ='6-Needs-Estimation'!C48 -> 762000 | G54: ='5-Data-Inputs'!D30 -> 0.9257585302 | H54: 0.8711777756 | I54: =IF('4-Strategy-Inputs'!E18>0,'4-Strategy-Inputs'!E18,"-") -> 1 | J54: ='6-Needs-Estimation'!C44 -> 7620000 | K54: NA | L54: ='6-Needs-Estimation'!C47 -> 8327150 | M54: -2.002174293
B55: Highway Lighting | C55: =IF(ISNUMBER(T33-'6-Needs-Estimation'!C59), T33-'6-Needs-Estimation'!C59, "-") -> 212788.7488 | D55: 14.63621499 | E55: =IF('5-Data-Inputs'!D109 >0, '5-Data-Inputs'!D109,"-") -> 1595000 | F55: ='6-Needs-Estimation'!C63 -> 682625 | G55: ='5-Data-Inputs'!D31 -> 0.8275032045 | H55: 0.8306204175 | I55: =IF('4-Strategy-Inputs'!E19>0,'4-Strategy-Inputs'!E19,"-") -> 0.85 | J55: ='6-Needs-Estimation'!C59 -> 2730500 | K55: NA | L55: ='6-Needs-Estimation'!C62 -> 3114421.875 | M55: 14.63621499
B56: Guardrail | C56: =IF(ISNUMBER(T34-'6-Needs-Estimation'!C74), T34-'6-Needs-Estimation'!C74, "-") -> 2363546.5 | D56: 0 | E56: =IF('5-Data-Inputs'!D110 >0, '5-Data-Inputs'!D110,"-") -> 1269000 | F56: ='6-Needs-Estimation'!C78 -> 365800 | G56: ='5-Data-Inputs'!D32 -> 0.757109076 | H56: 0.8217221569 | I56: =IF('4-Strategy-Inputs'!E20>0,'4-Strategy-Inputs'!E20,"-") -> 0.8 | J56: ='6-Needs-Estimation'!C74 -> 1097400 | K56: NA | L56: ='6-Needs-Estimation'!C77 -> 1489637.5 | M56: 0.6302552117
B57: Weigh Stations | C57: =IF(ISNUMBER(T35-'6-Needs-Estimation'!C89), T35-'6-Needs-Estimation'!C89, "-") -> 9902.622206 | D57: 14.63627481 | E57: =IF('5-Data-Inputs'!D111 >0, '5-Data-Inputs'!D111,"-") -> 195000 | F57: ='6-Needs-Estimation'!C93 -> 56500 | G57: ='5-Data-Inputs'!D33 -> 0.7773893805 | H57: 0.779142057 | I57: =IF('4-Strategy-Inputs'!E21>0,'4-Strategy-Inputs'!E21,"-") -> 0.8 | J57: ='6-Needs-Estimation'!C89 -> 113000 | K57: NA | L57: ='6-Needs-Estimation'!C92 -> 144937.5 | M57: 14.63627481
B58: - | C58: =IF(ISNUMBER(T36-'6-Needs-Estimation'!C104), T36-'6-Needs-Estimation'!C104, "-") -> 0 | D58: - | E58: =IF('5-Data-Inputs'!D112 >0, '5-Data-Inputs'!D112,"-") -> - | F58: ='6-Needs-Estimation'!C108 -> 0 | G58: ='5-Data-Inputs'!D34 -> - | H58: - | I58: =IF('4-Strategy-Inputs'!E22>0,'4-Strategy-Inputs'!E22,"-") -> - | J58: ='6-Needs-Estimation'!C104 -> 0 | K58: NA | L58: ='6-Needs-Estimation'!C107 -> 0 | M58: -
B59: - | C59: =IF(ISNUMBER(T37-'6-Needs-Estimation'!C119), T37-'6-Needs-Estimation'!C119, "-") -> 0 | D59: - | E59: =IF('5-Data-Inputs'!D113 >0, '5-Data-Inputs'!D113,"-") -> - | F59: ='6-Needs-Estimation'!C123 -> 0 | G59: ='5-Data-Inputs'!D35 -> - | H59: - | I59: =IF('4-Strategy-Inputs'!E23>0,'4-Strategy-Inputs'!E23,"-") -> - | J59: ='6-Needs-Estimation'!C119 -> 0 | K59: NA | L59: ='6-Needs-Estimation'!C122 -> 0 | M59: -
B60: - | C60: =IF(ISNUMBER(T38-'6-Needs-Estimation'!C134), T38-'6-Needs-Estimation'!C134, "-") -> 0 | D60: - | E60: =IF('5-Data-Inputs'!D114 >0, '5-Data-Inputs'!D114,"-") -> - | F60: ='6-Needs-Estimation'!C138 -> 0 | G60: ='5-Data-Inputs'!D36 -> - | H60: - | I60: =IF('4-Strategy-Inputs'!E24>0,'4-Strategy-Inputs'!E24,"-") -> - | J60: ='6-Needs-Estimation'!C134 -> 0 | K60: NA | L60: ='6-Needs-Estimation'!C137 -> 0 | M60: -
B61: - | C61: =IF(ISNUMBER(T39-'6-Needs-Estimation'!C149), T39-'6-Needs-Estimation'!C149, "-") -> 0 | D61: - | E61: =IF('5-Data-Inputs'!D115 >0, '5-Data-Inputs'!D115,"-") -> - | F61: ='6-Needs-Estimation'!C153 -> 0 | G61: ='5-Data-Inputs'!D37 -> - | H61: - | I61: =IF('4-Strategy-Inputs'!E25>0,'4-Strategy-Inputs'!E25,"-") -> - | J61: ='6-Needs-Estimation'!C149 -> 0 | K61: NA | L61: ='6-Needs-Estimation'!C152 -> 0 | M61: -
B62: - | C62: =IF(ISNUMBER(T40-'6-Needs-Estimation'!C164), T40-'6-Needs-Estimation'!C164, "-") -> 0 | D62: - | E62: =IF('5-Data-Inputs'!D116 >0, '5-Data-Inputs'!D116,"-") -> - | F62: ='6-Needs-Estimation'!C168 -> 0 | G62: ='5-Data-Inputs'!D38 -> - | H62: - | I62: =IF('4-Strategy-Inputs'!E26>0,'4-Strategy-Inputs'!E26,"-") -> - | J62: ='6-Needs-Estimation'!C164 -> 0 | K62: NA | L62: ='6-Needs-Estimation'!C167 -> 0 | M62: -
B63: - | C63: =IF(ISNUMBER(T41-'6-Needs-Estimation'!C179), T41-'6-Needs-Estimation'!C179, "-") -> 0 | D63: - | E63: =IF('5-Data-Inputs'!D117 >0, '5-Data-Inputs'!D117,"-") -> - | F63: ='6-Needs-Estimation'!C183 -> 0 | G63: ='5-Data-Inputs'!D39 -> - | H63: - | I63: =IF('4-Strategy-Inputs'!E27>0,'4-Strategy-Inputs'!E27,"-") -> - | J63: ='6-Needs-Estimation'!C179 -> 0 | K63: NA | L63: ='6-Needs-Estimation'!C182 -> 0 | M63: -
B64: - | C64: =IF(ISNUMBER(T42-'6-Needs-Estimation'!C194), T42-'6-Needs-Estimation'!C194, "-") -> 0 | D64: - | E64: =IF('5-Data-Inputs'!D118 >0, '5-Data-Inputs'!D118,"-") -> - | F64: ='6-Needs-Estimation'!C198 -> 0 | G64: ='5-Data-Inputs'!D40 -> - | H64: - | I64: =IF('4-Strategy-Inputs'!E28>0,'4-Strategy-Inputs'!E28,"-") -> - | J64: ='6-Needs-Estimation'!C194 -> 0 | K64: NA | L64: ='6-Needs-Estimation'!C197 -> 0 | M64: -
B65: - | C65: =IF(ISNUMBER(T43-'6-Needs-Estimation'!C209), T43-'6-Needs-Estimation'!C209, "-") -> 0 | D65: - | E65: =IF('5-Data-Inputs'!D119 >0, '5-Data-Inputs'!D119,"-") -> - | F65: ='6-Needs-Estimation'!C213 -> 0 | G65: ='5-Data-Inputs'!D41 -> - | H65: - | I65: =IF('4-Strategy-Inputs'!E29>0,'4-Strategy-Inputs'!E29,"-") -> - | J65: ='6-Needs-Estimation'!C209 -> 0 | K65: NA | L65: ='6-Needs-Estimation'!C212 -> 0 | M65: -
B66: - | C66: =IF(ISNUMBER(T44-'6-Needs-Estimation'!C224), T44-'6-Needs-Estimation'!C224, "-") -> 0 | D66: - | E66: =IF('5-Data-Inputs'!D120 >0, '5-Data-Inputs'!D120,"-") -> - | F66: ='6-Needs-Estimation'!C228 -> 0 | G66: ='5-Data-Inputs'!D42 -> - | H66: - | I66: =IF('4-Strategy-Inputs'!E30>0,'4-Strategy-Inputs'!E30,"-") -> - | J66: ='6-Needs-Estimation'!C224 -> 0 | K66: NA | L66: ='6-Needs-Estimation'!C227 -> 0 | M66: -
C67: =SUM(C52:C66) -> 21189100 | E67: =SUM(E52:E66) -> 213871333.3 | J67: =SUM(J52:J66) -> 193810900 | K67: =SUM(K52:K66) -> 0 | L67: =SUM(L52:L66) -> 300698646.9
B69: FINAL SUMMARY
B72: Table 8-4: Optimized Allocation Results adjusted for funds limit and program objectives
B73: Asset-Activity Group (AAG) | C73: Optimized Allocation | S73: Difference between Desired and Estimated Years to Reach Target Rating | V73: Difference between Current and Historical Allocation
C74: =D9 -> District 1 | D74: District 2 | E74: District 3 | F74: District 4 | G74: District 5 | H74: District 6 | I74: District 7 | J74: District 8 | K74: District 9 | L74: District 10 | M74: District 11 | N74: District 12 | O74: District 13 | P74: District 14 | Q74: District 15 | R74: Total | S74: Desired Number of Years to reach Target PCR | T74: Estimated Yrs to reach Target PCR with Optimal Allocation | U74: Difference between Desired and Estimated Timelines | V74: Average Historical Allocation (State) | W74: Difference between Current and Historical Allocation | X74: Allocation vs. Deterioration-- Excess or (Shortfall)* | Y74: Unconstrained Need
B75: =B10 -> Bridges | C75: =IF(ISNUMBER(IF($R75>0,(D10/$C10)*$R75,"-")),IF($R75>0,(D10/$C10)*$R75,"-"),"-") -> 28093574.99 | D75: =IF(ISNUMBER(IF($R75>0,(E10/$C10)*$R75,"-")),IF($R75>0,(E10/$C10)*$R75,"-"),"-") -> 19762376.89 | E75: =IF(ISNUMBER(IF($R75>0,(F10/$C10)*$R75,"-")),IF($R75>0,(F10/$C10)*$R75,"-"),"-") -> 18718103.73 | F75: - | G75: - | H75: - | I75: - | J75: - | K75: - | L75: - | M75: - | N75: - | O75: - | P75: - | Q75: - | R75: =IF(T30>0,T30,"-") -> 66574055.62 | S75: =IF('4-Strategy-Inputs'!F16>0, '4-Strategy-Inputs'!F16,"-") -> 2 | T75: =IF(ISNUMBER(K30), K30, "-") -> 12.63608309 | U75: =IF(ISNUMBER(T75-S75),T75-S75,"-") -> 10.63608309 | V75: =E52 -> 67998000 | W75: =IF(ISNUMBER(R75-V75),R75-V75,"-") -> -1423944.383 | X75: =IF(C52<>0,C52,"-") -> 8824055.617 | Y75: ='6-Needs-Estimation'!C13 -> 877503000
B76: Pavements | C76: =IF(ISNUMBER(IF($R76>0,(D11/$C11)*$R76,"-")),IF($R76>0,(D11/$C11)*$R76,"-"),"-") -> 53690034.99 | D76: 39177723.38 | E76: =IF(ISNUMBER(IF($R76>0,(F11/$C11)*$R76,"-")),IF($R76>0,(F11/$C11)*$R76,"-"),"-") -> 45570101.64 | F76: - | G76: - | H76: - | I76: - | J76: - | K76: - | L76: - | M76: - | N76: - | O76: - | P76: - | Q76: - | R76: 138437860 | S76: =IF('4-Strategy-Inputs'!F17>0, '4-Strategy-Inputs'!F17,"-") -> 2 | T76: 12.63615791 | U76: =IF(ISNUMBER(T76-S76),T76-S76,"-") -> 10.63615791 | V76: 138419000 | W76: =IF(ISNUMBER(R76-V76),R76-V76,"-") -> 18860.01167 | X76: 13937860.01 | Y76: ='6-Needs-Estimation'!C28 -> 601242000
B77: Signs | C77: 1269527.703 | D77: 1076970.043 | E77: =IF(ISNUMBER(IF($R77>0,(F12/$C12)*$R77,"-")),IF($R77>0,(F12/$C12)*$R77,"-"),"-") -> 1114448.754 | F77: - | G77: - | H77: - | I77: - | J77: - | K77: - | L77: - | M77: - | N77: - | O77: - | P77: - | Q77: - | R77: 3460946.5 | S77: =IF('4-Strategy-Inputs'!F18>0, '4-Strategy-Inputs'!F18,"-") -> 8 | T77: 0 | U77: -8 | V77: 4395333.333 | W77: -934386.833 | X77: -4159053.5 | Y77: ='6-Needs-Estimation'!C43 -> 5657200
B78: Highway Lighting | C78: 1876517.683 | D78: 620116.1482 | E78: =IF(ISNUMBER(IF($R78>0,(F13/$C13)*$R78,"-")),IF($R78>0,(F13/$C13)*$R78,"-"),"-") -> 446654.9173 | F78: - | G78: - | H78: - | I78: - | J78: - | K78: - | L78: - | M78: - | N78: - | O78: - | P78: - | Q78: - | R78: 2943288.749 | S78: =IF('4-Strategy-Inputs'!F19>0, '4-Strategy-Inputs'!F19,"-") -> 4 | T78: 14.63621499 | U78: 10.63621499 | V78: 1595000 | W78: 1348288.749 | X78: 212788.7488 | Y78: ='6-Needs-Estimation'!C58 -> 11775062.5
B79: Guardrail | C79: 1617398.801 | D79: 798302.4175 | E79: =IF(ISNUMBER(IF($R79>0,(F14/$C14)*$R79,"-")),IF($R79>0,(F14/$C14)*$R79,"-"),"-") -> 1045245.282 | F79: - | G79: - | H79: - | I79: - | J79: - | K79: - | L79: - | M79: - | N79: - | O79: - | P79: - | Q79: - | R79: 3460946.5 | S79: =IF('4-Strategy-Inputs'!F20>0, '4-Strategy-Inputs'!F20,"-") -> 4 | T79: 0 | U79: -4 | V79: 1269000 | W79: 2191946.5 | X79: 2363546.5 | Y79: ='6-Needs-Estimation'!C73 -> 8884950
B80: Weigh Stations | C80: 50878.18772 | D80: 37787.654 | E80: =IF(ISNUMBER(IF($R80>0,(F15/$C15)*$R80,"-")),IF($R80>0,(F15/$C15)*$R80,"-"),"-") -> 34236.78049 | F80: - | G80: - | H80: - | I80: - | J80: - | K80: - | L80: - | M80: - | N80: - | O80: - | P80: - | Q80: - | R80: 122902.6222 | S80: =IF('4-Strategy-Inputs'!F21>0, '4-Strategy-Inputs'!F21,"-") -> 4 | T80: 14.63627481 | U80: 10.63627481 | V80: 195000 | W80: -72097.37779 | X80: 9902.622206 | Y80: ='6-Needs-Estimation'!C88 -> 1257750
B81: - | C81: - | D81: - | E81: =IF(ISNUMBER(IF($R81>0,(F16/$C16)*$R81,"-")),IF($R81>0,(F16/$C16)*$R81,"-"),"-") -> - | F81: - | G81: - | H81: - | I81: - | J81: - | K81: - | L81: - | M81: - | N81: - | O81: - | P81: - | Q81: - | R81: - | S81: =IF('4-Strategy-Inputs'!F22>0, '4-Strategy-Inputs'!F22,"-") -> - | T81: - | U81: - | V81: - | W81: - | X81: - | Y81: ='6-Needs-Estimation'!C103 -> 0
B82: - | C82: - | D82: - | E82: =IF(ISNUMBER(IF($R82>0,(F17/$C17)*$R82,"-")),IF($R82>0,(F17/$C17)*$R82,"-"),"-") -> - | F82: - | G82: - | H82: - | I82: - | J82: - | K82: - | L82: - | M82: - | N82: - | O82: - | P82: - | Q82: - | R82: - | S82: =IF('4-Strategy-Inputs'!F23>0, '4-Strategy-Inputs'!F23,"-") -> - | T82: - | U82: - | V82: - | W82: - | X82: - | Y82: ='6-Needs-Estimation'!C118 -> 0
B83: - | C83: - | D83: - | E83: =IF(ISNUMBER(IF($R83>0,(F18/$C18)*$R83,"-")),IF($R83>0,(F18/$C18)*$R83,"-"),"-") -> - | F83: - | G83: - | H83: - | I83: - | J83: - | K83: - | L83: - | M83: - | N83: - | O83: - | P83: - | Q83: - | R83: - | S83: =IF('4-Strategy-Inputs'!F24>0, '4-Strategy-Inputs'!F24,"-") -> - | T83: - | U83: - | V83: - | W83: - | X83: - | Y83: ='6-Needs-Estimation'!C133 -> 0
B84: - | C84: - | D84: - | E84: =IF(ISNUMBER(IF($R84>0,(F19/$C19)*$R84,"-")),IF($R84>0,(F19/$C19)*$R84,"-"),"-") -> - | F84: - | G84: - | H84: - | I84: - | J84: - | K84: - | L84: - | M84: - | N84: - | O84: - | P84: - | Q84: - | R84: - | S84: =IF('4-Strategy-Inputs'!F25>0, '4-Strategy-Inputs'!F25,"-") -> - | T84: - | U84: - | V84: - | W84: - | X84: - | Y84: ='6-Needs-Estimation'!C148 -> 0
B85: - | C85: - | D85: - | E85: =IF(ISNUMBER(IF($R85>0,(F20/$C20)*$R85,"-")),IF($R85>0,(F20/$C20)*$R85,"-"),"-") -> - | F85: - | G85: - | H85: - | I85: - | J85: - | K85: - | L85: - | M85: - | N85: - | O85: - | P85: - | Q85: - | R85: - | S85: =IF('4-Strategy-Inputs'!F26>0, '4-Strategy-Inputs'!F26,"-") -> - | T85: - | U85: - | V85: - | W85: - | X85: - | Y85: ='6-Needs-Estimation'!C163 -> 0
B86: - | C86: - | D86: - | E86: =IF(ISNUMBER(IF($R86>0,(F21/$C21)*$R86,"-")),IF($R86>0,(F21/$C21)*$R86,"-"),"-") -> - | F86: - | G86: - | H86: - | I86: - | J86: - | K86: - | L86: - | M86: - | N86: - | O86: - | P86: - | Q86: - | R86: - | S86: =IF('4-Strategy-Inputs'!F27>0, '4-Strategy-Inputs'!F27,"-") -> - | T86: - | U86: - | V86: - | W86: - | X86: - | Y86: ='6-Needs-Estimation'!C178 -> 0
B87: - | C87: - | D87: - | E87: =IF(ISNUMBER(IF($R87>0,(F22/$C22)*$R87,"-")),IF($R87>0,(F22/$C22)*$R87,"-"),"-") -> - | F87: - | G87: - | H87: - | I87: - | J87: - | K87: - | L87: - | M87: - | N87: - | O87: - | P87: - | Q87: - | R87: - | S87: =IF('4-Strategy-Inputs'!F28>0, '4-Strategy-Inputs'!F28,"-") -> - | T87: - | U87: - | V87: - | W87: - | X87: - | Y87: ='6-Needs-Estimation'!C193 -> 0
B88: - | C88: - | D88: - | E88: =IF(ISNUMBER(IF($R88>0,(F23/$C23)*$R88,"-")),IF($R88>0,(F23/$C23)*$R88,"-"),"-") -> - | F88: - | G88: - | H88: - | I88: - | J88: - | K88: - | L88: - | M88: - | N88: - | O88: - | P88: - | Q88: - | R88: - | S88: =IF('4-Strategy-Inputs'!F29>0, '4-Strategy-Inputs'!F29,"-") -> - | T88: - | U88: - | V88: - | W88: - | X88: - | Y88: ='6-Needs-Estimation'!C208 -> 0
B89: - | C89: - | D89: - | E89: =IF(ISNUMBER(IF($R89>0,(F24/$C24)*$R89,"-")),IF($R89>0,(F24/$C24)*$R89,"-"),"-") -> - | F89: - | G89: - | H89: - | I89: - | J89: - | K89: - | L89: - | M89: - | N89: - | O89: - | P89: - | Q89: - | R89: - | S89: =IF('4-Strategy-Inputs'!F30>0, '4-Strategy-Inputs'!F30,"-") -> - | T89: - | U89: - | V89: - | W89: - | X89: - | Y89: ='6-Needs-Estimation'!C223 -> 0
C90: =IF(SUM(C75:C89)>0,SUM(C75:C89),"-") -> 86597932.36 | D90: =IF(SUM(D75:D89)>0,SUM(D75:D89),"-") -> 61473276.53 | E90: 66928791.11 | F90: - | G90: - | H90: - | I90: - | J90: - | K90: - | L90: - | M90: - | N90: - | O90: - | P90: - | Q90: - | R90: =SUM(R75:R89) -> 215000000 | V90: =SUM(V75:V89) -> 213871333.3 | W90: =R90-V90 -> 1128666.667 | X90: =SUM(X75:X89) -> 21189100 | Y90: =SUM(Y75:Y89) -> 1506319962
B91: * The Total Allocation less Deterioration Need column indicates excess amount over the amount needed to cover deterioration costs. This is the amount that is used for net improvement in condition/performance rating.
